{"text_format":"1","workbook":"xlsx","n_sheets":1,"sheets":["WORKSHEET"],"not_rendered":{"charts":0,"images":0,"macros":1,"external_links":0,"defined_names":0,"comments":0,"pivot_tables":0},"unopened":[],"bounds":{"document_bytes":16777216,"sheet_cells":100000,"rows_first":2000,"rows_last":500,"rows_between":2000,"halvings":0,"cell_chars":16384,"cell_head_chars":4096},"cells_cut":0,"cells_raw":0,"read":"whole","date_system":"1900"}

{"sheet":"WORKSHEET","index":0,"n_rows":17521,"n_cols":53,"rows_kept":1125,"cut":true,"hidden":false,"merged":[],"bounds":{"rows_first":500,"rows_last":125,"rows_between":500,"halvings":2}}
["XXX COUNT",{"$f":"COUNTIF(AQ2:AQ8761,\"XXX\")","v":2952},"OLD DATA",{"$f":"COUNTIF(D2:D8761,\"OOPS\")","v":5084},{"$f":"COUNTIF(E2:E8761,\"OOPS\")","v":8760},{"$f":"COUNTIF(F2:F8761,\"OOPS\")","v":0},"# RD","Action Code","State Code","County Code","Site ID","Parameter","POC","Sample Duration","Unit","Method","Date","Start Time","Sample Value","Null Data Code","Sampling Frequency","Monitor Protocol (MP) ID","Qualifier - 1","Qualifier - 2","Qualifier - 3","Qualifier - 4","Qualifier - 5","Qualifier - 6",null,"# RD","Action Code","State Code","County Code","Site ID","Parameter","POC","Sample Duration","Unit","Method","Date","Start Time","Sample Value","Null Data Code","Sampling Frequency","Monitor Protocol (MP) ID","Qualifier - 1","Qualifier - 2","Qualifier - 3","Qualifier - 4","Qualifier - 5","Qualifier - 6","FORMULA","FORMULA"]
[20210101,"00:00:00","paste here",{"$f":"IF(C2=AP2,\"\",\"OOPS\")","v":"OOPS"},{"$f":"IF(A2=AN2,\"\",\"OOPS\")","v":"OOPS"},{"$f":"IF(B2=AO2,\"\",\"OOPS\")","v":""},"paste here",null,null,null,null,null,null,null,null,null,null,null,null,null,null,null,null,null,null,null,null,null,null,null,null,null,null,null,null,null,null,null,null,20190101,"00:00:00",null,"XXX",null,null,null,null,null,null,null,null,"X","X"]
[20210101,"01:00:00",null,{"$f":"IF(C3=AP3,\"\",\"OOPS\")","v":""},{"$f":"IF(A3=AN3,\"\",\"OOPS\")","v":"OOPS"},{"$f":"IF(B3=AO3,\"\",\"OOPS\")","v":""},null,null,null,null,null,null,null,null,null,null,null,null,null,null,null,null,null,null,null,null,null,null,null,null,null,null,null,null,null,null,null,null,null,20190101,"01:00:00",null,"XXX",null,null,null,null,null,null,null,null,"X",{"$f":"IF(AO3=\"\",\"\",IF(AO3=AO2,IF(AP3=AP2,\"\",\"X\"),\"X\"))","v":"X"}]
[20210101,"02:00:00",null,"","OOPS","",null,null,null,null,null,null,null,null,null,null,null,null,null,null,null,null,null,null,null,null,null,null,null,null,null,null,null,null,null,null,null,null,null,20190101,"02:00:00",null,"XXX",null,null,null,null,null,null,null,null,"X",{"$f":"IF(AO4=\"\",\"\",IF(AO4=AO3,IF(AP4=AP3,\"\",\"X\"),\"X\"))","v":"X"}]
[20210101,"03:00:00",null,"","OOPS","",null,null,null,null,null,null,null,null,null,null,null,null,null,null,null,null,null,null,null,null,null,null,null,null,null,null,null,null,null,null,null,null,null,20190101,"03:00:00",null,"XXX",null,null,null,null,null,null,null,null,"X","X"]
[20210101,"04:00:00",null,"","OOPS","",null,null,null,null,null,null,null,null,null,null,null,null,null,null,null,null,null,null,null,null,null,null,null,null,null,null,null,null,null,null,null,null,null,20190101,"04:00:00",null,"XXX",null,null,null,null,null,null,null,null,"X","X"]
[20210101,"05:00:00",null,"","OOPS","",null,null,null,null,null,null,null,null,null,null,null,null,null,null,null,null,null,null,null,null,null,null,null,null,null,null,null,null,null,null,null,null,null,20190101,"05:00:00",null,"XXX",null,null,null,null,null,null,null,null,"X","X"]
[20210101,"06:00:00",null,"","OOPS","",null,null,null,null,null,null,null,null,null,null,null,null,null,null,null,null,null,null,null,null,null,null,null,null,null,null,null,null,null,null,null,null,null,20190101,"06:00:00",null,"XXX",null,null,null,null,null,null,null,null,"X","X"]
[20210101,"07:00:00",null,"","OOPS","",null,null,null,null,null,null,null,null,null,null,null,null,null,null,null,null,null,null,null,null,null,null,null,null,null,null,null,null,null,null,null,null,null,20190101,"07:00:00",null,"XXX",null,null,null,null,null,null,null,null,"X","X"]
[20210101,"08:00:00",null,"","OOPS","",null,null,null,null,null,null,null,null,null,null,null,null,null,null,null,null,null,null,null,null,null,null,null,null,null,null,null,null,null,null,null,null,null,20190101,"08:00:00",null,"XXX",null,null,null,null,null,null,null,null,"X","X"]
[20210101,"09:00:00",null,"","OOPS","",null,null,null,null,null,null,null,null,null,null,null,null,null,null,null,null,null,null,null,null,null,null,null,null,null,null,null,null,null,null,null,null,null,20190101,"09:00:00",null,"XXX",null,null,null,null,null,null,null,null,"X","X"]
[20210101,"10:00:00",null,"","OOPS","",null,null,null,null,null,null,null,null,null,null,null,null,null,null,null,null,null,null,null,null,null,null,null,null,null,null,null,null,null,null,null,null,null,20190101,"10:00:00",null,"XXX",null,null,null,null,null,null,null,null,"X","X"]
[20210101,"11:00:00",null,"","OOPS","",null,null,null,null,null,null,null,null,null,null,null,null,null,null,null,null,null,null,null,null,null,null,null,null,null,null,null,null,null,null,null,null,null,20190101,"11:00:00",null,"XXX",null,null,null,null,null,null,null,null,"X","X"]
[20210101,"12:00:00",null,"","OOPS","",null,null,null,null,null,null,null,null,null,null,null,null,null,null,null,null,null,null,null,null,null,null,null,null,null,null,null,null,null,null,null,null,null,20190101,"12:00:00",null,"XXX",null,null,null,null,null,null,null,null,"X","X"]
[20210101,"13:00:00",null,"","OOPS","",null,null,null,null,null,null,null,null,null,null,null,null,null,null,null,null,null,null,null,null,null,null,null,null,null,null,null,null,null,null,null,null,null,20190101,"13:00:00",null,"XXX",null,null,null,null,null,null,null,null,"X","X"]
[20210101,"14:00:00",null,"","OOPS","",null,null,null,null,null,null,null,null,null,null,null,null,null,null,null,null,null,null,null,null,null,null,null,null,null,null,null,null,null,null,null,null,null,20190101,"14:00:00",null,"XXX",null,null,null,null,null,null,null,null,"X","X"]
[20210101,"15:00:00",null,"","OOPS","",null,null,null,null,null,null,null,null,null,null,null,null,null,null,null,null,null,null,null,null,null,null,null,null,null,null,null,null,null,null,null,null,null,20190101,"15:00:00",null,"XXX",null,null,null,null,null,null,null,null,"X","X"]
[20210101,"16:00:00",null,"","OOPS","",null,null,null,null,null,null,null,null,null,null,null,null,null,null,null,null,null,null,null,null,null,null,null,null,null,null,null,null,null,null,null,null,null,20190101,"16:00:00",null,"XXX",null,null,null,null,null,null,null,null,"X","X"]
[20210101,"17:00:00",null,{"$f":"IF(C19=AP19,\"\",\"OOPS\")","v":""},{"$f":"IF(A19=AN19,\"\",\"OOPS\")","v":"OOPS"},{"$f":"IF(B19=AO19,\"\",\"OOPS\")","v":""},null,null,null,null,null,null,null,null,null,null,null,null,null,null,null,null,null,null,null,null,null,null,null,null,null,null,null,null,null,null,null,null,null,20190101,"17:00:00",null,"XXX",null,null,null,null,null,null,null,null,"X","X"]
[20210101,"18:00:00",null,"","OOPS","",null,null,null,null,null,null,null,null,null,null,null,null,null,null,null,null,null,null,null,null,null,null,null,null,null,null,null,null,null,null,null,null,null,20190101,"18:00:00",null,"XXX",null,null,null,null,null,null,null,null,"X","X"]
[20210101,"19:00:00",null,"","OOPS","",null,null,null,null,null,null,null,null,null,null,null,null,null,null,null,null,null,null,null,null,null,null,null,null,null,null,null,null,null,null,null,null,null,20190101,"19:00:00",null,"XXX",null,null,null,null,null,null,null,null,"X","X"]
[20210101,"20:00:00",null,"","OOPS","",null,null,null,null,null,null,null,null,null,null,null,null,null,null,null,null,null,null,null,null,null,null,null,null,null,null,null,null,null,null,null,null,null,20190101,"20:00:00",null,"XXX",null,null,null,null,null,null,null,null,"X","X"]
[20210101,"21:00:00",null,"","OOPS","",null,null,null,null,null,null,null,null,null,null,null,null,null,null,null,null,null,null,null,null,null,null,null,null,null,null,null,null,null,null,null,null,null,20190101,"21:00:00",null,"XXX",null,null,null,null,null,null,null,null,"X","X"]
[20210101,"22:00:00",null,"","OOPS","",null,null,null,null,null,null,null,null,null,null,null,null,null,null,null,null,null,null,null,null,null,null,null,null,null,null,null,null,null,null,null,null,null,20190101,"22:00:00",null,"XXX",null,null,null,null,null,null,null,null,"X","X"]
[20210101,"23:00:00",null,"","OOPS","",null,null,null,null,null,null,null,null,null,null,null,null,null,null,null,null,null,null,null,null,null,null,null,null,null,null,null,null,null,null,null,null,null,20190101,"23:00:00",null,"XXX",null,null,null,null,null,null,null,null,"X","X"]
[20210102,"00:00:00",null,"","OOPS","",null,null,null,null,null,null,null,null,null,null,null,null,null,null,null,null,null,null,null,null,null,null,null,null,null,null,null,null,null,null,null,null,null,20190102,"00:00:00",null,"XXX",null,null,null,null,null,null,null,null,"X","X"]
[20210102,"01:00:00",null,"","OOPS","",null,null,null,null,null,null,null,null,null,null,null,null,null,null,null,null,null,null,null,null,null,null,null,null,null,null,null,null,null,null,null,null,null,20190102,"01:00:00",null,"XXX",null,null,null,null,null,null,null,null,"X","X"]
[20210102,"02:00:00",null,"","OOPS","",null,null,null,null,null,null,null,null,null,null,null,null,null,null,null,null,null,null,null,null,null,null,null,null,null,null,null,null,null,null,null,null,null,20190102,"02:00:00",null,"XXX",null,null,null,null,null,null,null,null,"X","X"]
[20210102,"03:00:00",null,"","OOPS","",null,null,null,null,null,null,null,null,null,null,null,null,null,null,null,null,null,null,null,null,null,null,null,null,null,null,null,null,null,null,null,null,null,20190102,"03:00:00",null,"XXX",null,null,null,null,null,null,null,null,"X","X"]
[20210102,"04:00:00",null,"","OOPS","",null,null,null,null,null,null,null,null,null,null,null,null,null,null,null,null,null,null,null,null,null,null,null,null,null,null,null,null,null,null,null,null,null,20190102,"04:00:00",null,"XXX",null,null,null,null,null,null,null,null,"X","X"]
[20210102,"05:00:00",null,"","OOPS","",null,null,null,null,null,null,null,null,null,null,null,null,null,null,null,null,null,null,null,null,null,null,null,null,null,null,null,null,null,null,null,null,null,20190102,"05:00:00",null,"XXX",null,null,null,null,null,null,null,null,"X","X"]
[20210102,"06:00:00",null,"","OOPS","",null,null,null,null,null,null,null,null,null,null,null,null,null,null,null,null,null,null,null,null,null,null,null,null,null,null,null,null,null,null,null,null,null,20190102,"06:00:00",null,"XXX",null,null,null,null,null,null,null,null,"X","X"]
[20210102,"07:00:00",null,"","OOPS","",null,null,null,null,null,null,null,null,null,null,null,null,null,null,null,null,null,null,null,null,null,null,null,null,null,null,null,null,null,null,null,null,null,20190102,"07:00:00",null,"XXX",null,null,null,null,null,null,null,null,"X","X"]
[20210102,"08:00:00",null,"","OOPS","",null,null,null,null,null,null,null,null,null,null,null,null,null,null,null,null,null,null,null,null,null,null,null,null,null,null,null,null,null,null,null,null,null,20190102,"08:00:00",null,"XXX",null,null,null,null,null,null,null,null,"X","X"]
[20210102,"09:00:00",null,"","OOPS","",null,null,null,null,null,null,null,null,null,null,null,null,null,null,null,null,null,null,null,null,null,null,null,null,null,null,null,null,null,null,null,null,null,20190102,"09:00:00",null,"XXX",null,null,null,null,null,null,null,null,"X","X"]
[20210102,"10:00:00",null,"","OOPS","",null,null,null,null,null,null,null,null,null,null,null,null,null,null,null,null,null,null,null,null,null,null,null,null,null,null,null,null,null,null,null,null,null,20190102,"10:00:00",null,"XXX",null,null,null,null,null,null,null,null,"X","X"]
[20210102,"11:00:00",null,"","OOPS","",null,null,null,null,null,null,null,null,null,null,null,null,null,null,null,null,null,null,null,null,null,null,null,null,null,null,null,null,null,null,null,null,null,20190102,"11:00:00",null,"XXX",null,null,null,null,null,null,null,null,"X","X"]
[20210102,"12:00:00",null,"","OOPS","",null,null,null,null,null,null,null,null,null,null,null,null,null,null,null,null,null,null,null,null,null,null,null,null,null,null,null,null,null,null,null,null,null,20190102,"12:00:00",null,"XXX",null,null,null,null,null,null,null,null,"X","X"]
[20210102,"13:00:00",null,"","OOPS","",null,null,null,null,null,null,null,null,null,null,null,null,null,null,null,null,null,null,null,null,null,null,null,null,null,null,null,null,null,null,null,null,null,20190102,"13:00:00",null,"XXX",null,null,null,null,null,null,null,null,"X","X"]
[20210102,"14:00:00",null,"","OOPS","",null,null,null,null,null,null,null,null,null,null,null,null,null,null,null,null,null,null,null,null,null,null,null,null,null,null,null,null,null,null,null,null,null,20190102,"14:00:00",null,"XXX",null,null,null,null,null,null,null,null,"X","X"]
[20210102,"15:00:00",null,"","OOPS","",null,null,null,null,null,null,null,null,null,null,null,null,null,null,null,null,null,null,null,null,null,null,null,null,null,null,null,null,null,null,null,null,null,20190102,"15:00:00",null,"XXX",null,null,null,null,null,null,null,null,"X","X"]
[20210102,"16:00:00",null,"","OOPS","",null,null,null,null,null,null,null,null,null,null,null,null,null,null,null,null,null,null,null,null,null,null,null,null,null,null,null,null,null,null,null,null,null,20190102,"16:00:00",null,"XXX",null,null,null,null,null,null,null,null,"X","X"]
[20210102,"17:00:00",null,"","OOPS","",null,null,null,null,null,null,null,null,null,null,null,null,null,null,null,null,null,null,null,null,null,null,null,null,null,null,null,null,null,null,null,null,null,20190102,"17:00:00",null,"XXX",null,null,null,null,null,null,null,null,"X","X"]
[20210102,"18:00:00",null,"","OOPS","",null,null,null,null,null,null,null,null,null,null,null,null,null,null,null,null,null,null,null,null,null,null,null,null,null,null,null,null,null,null,null,null,null,20190102,"18:00:00",null,"XXX",null,null,null,null,null,null,null,null,"X","X"]
[20210102,"19:00:00",null,"","OOPS","",null,null,null,null,null,null,null,null,null,null,null,null,null,null,null,null,null,null,null,null,null,null,null,null,null,null,null,null,null,null,null,null,null,20190102,"19:00:00",null,"XXX",null,null,null,null,null,null,null,null,"X","X"]
[20210102,"20:00:00",null,"","OOPS","",null,null,null,null,null,null,null,null,null,null,null,null,null,null,null,null,null,null,null,null,null,null,null,null,null,null,null,null,null,null,null,null,null,20190102,"20:00:00",null,"XXX",null,null,null,null,null,null,null,null,"X","X"]
[20210102,"21:00:00",null,"","OOPS","",null,null,null,null,null,null,null,null,null,null,null,null,null,null,null,null,null,null,null,null,null,null,null,null,null,null,null,null,null,null,null,null,null,20190102,"21:00:00",null,"XXX",null,null,null,null,null,null,null,null,"X","X"]
[20210102,"22:00:00",null,"","OOPS","",null,null,null,null,null,null,null,null,null,null,null,null,null,null,null,null,null,null,null,null,null,null,null,null,null,null,null,null,null,null,null,null,null,20190102,"22:00:00",null,"XXX",null,null,null,null,null,null,null,null,"X","X"]
[20210102,"23:00:00",null,"","OOPS","",null,null,null,null,null,null,null,null,null,null,null,null,null,null,null,null,null,null,null,null,null,null,null,null,null,null,null,null,null,null,null,null,null,20190102,"23:00:00",null,"XXX",null,null,null,null,null,null,null,null,"X","X"]
[20210103,"00:00:00",null,"","OOPS","",null,null,null,null,null,null,null,null,null,null,null,null,null,null,null,null,null,null,null,null,null,null,null,null,null,null,null,null,null,null,null,null,null,20190103,"00:00:00",null,"XXX",null,null,null,null,null,null,null,null,"X","X"]
[20210103,"01:00:00",null,"","OOPS","",null,null,null,null,null,null,null,null,null,null,null,null,null,null,null,null,null,null,null,null,null,null,null,null,null,null,null,null,null,null,null,null,null,20190103,"01:00:00",null,"XXX",null,null,null,null,null,null,null,null,"X","X"]
[20210103,"02:00:00",null,"","OOPS","",null,null,null,null,null,null,null,null,null,null,null,null,null,null,null,null,null,null,null,null,null,null,null,null,null,null,null,null,null,null,null,null,null,20190103,"02:00:00",null,"XXX",null,null,null,null,null,null,null,null,"X","X"]
[20210103,"03:00:00",null,"","OOPS","",null,null,null,null,null,null,null,null,null,null,null,null,null,null,null,null,null,null,null,null,null,null,null,null,null,null,null,null,null,null,null,null,null,20190103,"03:00:00",null,"XXX",null,null,null,null,null,null,null,null,"X","X"]
[20210103,"04:00:00",null,"","OOPS","",null,null,null,null,null,null,null,null,null,null,null,null,null,null,null,null,null,null,null,null,null,null,null,null,null,null,null,null,null,null,null,null,null,20190103,"04:00:00",null,"XXX",null,null,null,null,null,null,null,null,"X","X"]
[20210103,"05:00:00",null,"","OOPS","",null,null,null,null,null,null,null,null,null,null,null,null,null,null,null,null,null,null,null,null,null,null,null,null,null,null,null,null,null,null,null,null,null,20190103,"05:00:00",null,"XXX",null,null,null,null,null,null,null,null,"X","X"]
[20210103,"06:00:00",null,"","OOPS","",null,null,null,null,null,null,null,null,null,null,null,null,null,null,null,null,null,null,null,null,null,null,null,null,null,null,null,null,null,null,null,null,null,20190103,"06:00:00",null,"XXX",null,null,null,null,null,null,null,null,"X","X"]
[20210103,"07:00:00",null,"","OOPS","",null,null,null,null,null,null,null,null,null,null,null,null,null,null,null,null,null,null,null,null,null,null,null,null,null,null,null,null,null,null,null,null,null,20190103,"07:00:00",null,"XXX",null,null,null,null,null,null,null,null,"X","X"]
[20210103,"08:00:00",null,"","OOPS","",null,null,null,null,null,null,null,null,null,null,null,null,null,null,null,null,null,null,null,null,null,null,null,null,null,null,null,null,null,null,null,null,null,20190103,"08:00:00",null,"XXX",null,null,null,null,null,null,null,null,"X","X"]
[20210103,"09:00:00",null,"","OOPS","",null,null,null,null,null,null,null,null,null,null,null,null,null,null,null,null,null,null,null,null,null,null,null,null,null,null,null,null,null,null,null,null,null,20190103,"09:00:00",null,"XXX",null,null,null,null,null,null,null,null,"X","X"]
[20210103,"10:00:00",null,"","OOPS","",null,null,null,null,null,null,null,null,null,null,null,null,null,null,null,null,null,null,null,null,null,null,null,null,null,null,null,null,null,null,null,null,null,20190103,"10:00:00",null,"XXX",null,null,null,null,null,null,null,null,"X","X"]
[20210103,"11:00:00",null,"","OOPS","",null,null,null,null,null,null,null,null,null,null,null,null,null,null,null,null,null,null,null,null,null,null,null,null,null,null,null,null,null,null,null,null,null,20190103,"11:00:00",null,"XXX",null,null,null,null,null,null,null,null,"X","X"]
[20210103,"12:00:00",null,"","OOPS","",null,null,null,null,null,null,null,null,null,null,null,null,null,null,null,null,null,null,null,null,null,null,null,null,null,null,null,null,null,null,null,null,null,20190103,"12:00:00",null,"XXX",null,null,null,null,null,null,null,null,"X","X"]
[20210103,"13:00:00",null,"","OOPS","",null,null,null,null,null,null,null,null,null,null,null,null,null,null,null,null,null,null,null,null,null,null,null,null,null,null,null,null,null,null,null,null,null,20190103,"13:00:00",null,"XXX",null,null,null,null,null,null,null,null,"X","X"]
[20210103,"14:00:00",null,"","OOPS","",null,null,null,null,null,null,null,null,null,null,null,null,null,null,null,null,null,null,null,null,null,null,null,null,null,null,null,null,null,null,null,null,null,20190103,"14:00:00",null,"XXX",null,null,null,null,null,null,null,null,"X","X"]
[20210103,"15:00:00",null,"","OOPS","",null,null,null,null,null,null,null,null,null,null,null,null,null,null,null,null,null,null,null,null,null,null,null,null,null,null,null,null,null,null,null,null,null,20190103,"15:00:00",null,"XXX",null,null,null,null,null,null,null,null,"X","X"]
[20210103,"16:00:00",null,"","OOPS","",null,null,null,null,null,null,null,null,null,null,null,null,null,null,null,null,null,null,null,null,null,null,null,null,null,null,null,null,null,null,null,null,null,20190103,"16:00:00",null,"XXX",null,null,null,null,null,null,null,null,"X","X"]
[20210103,"17:00:00",null,"","OOPS","",null,null,null,null,null,null,null,null,null,null,null,null,null,null,null,null,null,null,null,null,null,null,null,null,null,null,null,null,null,null,null,null,null,20190103,"17:00:00",null,"XXX",null,null,null,null,null,null,null,null,"X","X"]
[20210103,"18:00:00",null,"","OOPS","",null,null,null,null,null,null,null,null,null,null,null,null,null,null,null,null,null,null,null,null,null,null,null,null,null,null,null,null,null,null,null,null,null,20190103,"18:00:00",null,"XXX",null,null,null,null,null,null,null,null,"X",{"$f":"IF(AO68=\"\",\"\",IF(AO68=AO67,IF(AP68=AP67,\"\",\"X\"),\"X\"))","v":"X"}]
[20210103,"19:00:00",null,"","OOPS","",null,null,null,null,null,null,null,null,null,null,null,null,null,null,null,null,null,null,null,null,null,null,null,null,null,null,null,null,null,null,null,null,null,20190103,"19:00:00",null,"XXX",null,null,null,null,null,null,null,null,"X","X"]
[20210103,"20:00:00",null,"","OOPS","",null,null,null,null,null,null,null,null,null,null,null,null,null,null,null,null,null,null,null,null,null,null,null,null,null,null,null,null,null,null,null,null,null,20190103,"20:00:00",null,"XXX",null,null,null,null,null,null,null,null,"X","X"]
[20210103,"21:00:00",null,"","OOPS","",null,null,null,null,null,null,null,null,null,null,null,null,null,null,null,null,null,null,null,null,null,null,null,null,null,null,null,null,null,null,null,null,null,20190103,"21:00:00",null,"XXX",null,null,null,null,null,null,null,null,"X","X"]
[20210103,"22:00:00",null,"","OOPS","",null,null,null,null,null,null,null,null,null,null,null,null,null,null,null,null,null,null,null,null,null,null,null,null,null,null,null,null,null,null,null,null,null,20190103,"22:00:00",null,"XXX",null,null,null,null,null,null,null,null,"X","X"]
[20210103,"23:00:00",null,"","OOPS","",null,null,null,null,null,null,null,null,null,null,null,null,null,null,null,null,null,null,null,null,null,null,null,null,null,null,null,null,null,null,null,null,null,20190103,"23:00:00",null,"XXX",null,null,null,null,null,null,null,null,"X","X"]
[20210104,"00:00:00",null,"","OOPS","",null,null,null,null,null,null,null,null,null,null,null,null,null,null,null,null,null,null,null,null,null,null,null,null,null,null,null,null,null,null,null,null,null,20190104,"00:00:00",null,"XXX",null,null,null,null,null,null,null,null,"X","X"]
[20210104,"01:00:00",null,"","OOPS","",null,null,null,null,null,null,null,null,null,null,null,null,null,null,null,null,null,null,null,null,null,null,null,null,null,null,null,null,null,null,null,null,null,20190104,"01:00:00",null,"XXX",null,null,null,null,null,null,null,null,"X","X"]
[20210104,"02:00:00",null,"","OOPS","",null,null,null,null,null,null,null,null,null,null,null,null,null,null,null,null,null,null,null,null,null,null,null,null,null,null,null,null,null,null,null,null,null,20190104,"02:00:00",null,"XXX",null,null,null,null,null,null,null,null,"X","X"]
[20210104,"03:00:00",null,"","OOPS","",null,null,null,null,null,null,null,null,null,null,null,null,null,null,null,null,null,null,null,null,null,null,null,null,null,null,null,null,null,null,null,null,null,20190104,"03:00:00",null,"XXX",null,null,null,null,null,null,null,null,"X","X"]
[20210104,"04:00:00",null,"","OOPS","",null,null,null,null,null,null,null,null,null,null,null,null,null,null,null,null,null,null,null,null,null,null,null,null,null,null,null,null,null,null,null,null,null,20190104,"04:00:00",null,"XXX",null,null,null,null,null,null,null,null,"X","X"]
[20210104,"05:00:00",null,"","OOPS","",null,null,null,null,null,null,null,null,null,null,null,null,null,null,null,null,null,null,null,null,null,null,null,null,null,null,null,null,null,null,null,null,null,20190104,"05:00:00",null,"XXX",null,null,null,null,null,null,null,null,"X","X"]
[20210104,"06:00:00",null,"","OOPS","",null,null,null,null,null,null,null,null,null,null,null,null,null,null,null,null,null,null,null,null,null,null,null,null,null,null,null,null,null,null,null,null,null,20190104,"06:00:00",null,"XXX",null,null,null,null,null,null,null,null,"X","X"]
[20210104,"07:00:00",null,"","OOPS","",null,null,null,null,null,null,null,null,null,null,null,null,null,null,null,null,null,null,null,null,null,null,null,null,null,null,null,null,null,null,null,null,null,20190104,"07:00:00",null,"XXX",null,null,null,null,null,null,null,null,"X","X"]
[20210104,"08:00:00",null,"","OOPS","",null,null,null,null,null,null,null,null,null,null,null,null,null,null,null,null,null,null,null,null,null,null,null,null,null,null,null,null,null,null,null,null,null,20190104,"08:00:00",null,"XXX",null,null,null,null,null,null,null,null,"X","X"]
[20210104,"09:00:00",null,{"$f":"IF(C83=AP83,\"\",\"OOPS\")","v":""},{"$f":"IF(A83=AN83,\"\",\"OOPS\")","v":"OOPS"},{"$f":"IF(B83=AO83,\"\",\"OOPS\")","v":""},null,null,null,null,null,null,null,null,null,null,null,null,null,null,null,null,null,null,null,null,null,null,null,null,null,null,null,null,null,null,null,null,null,20190104,"09:00:00",null,"XXX",null,null,null,null,null,null,null,null,"X","X"]
[20210104,"10:00:00",null,"","OOPS","",null,null,null,null,null,null,null,null,null,null,null,null,null,null,null,null,null,null,null,null,null,null,null,null,null,null,null,null,null,null,null,null,null,20190104,"10:00:00",null,"XXX",null,null,null,null,null,null,null,null,"X","X"]
[20210104,"11:00:00",null,"","OOPS","",null,null,null,null,null,null,null,null,null,null,null,null,null,null,null,null,null,null,null,null,null,null,null,null,null,null,null,null,null,null,null,null,null,20190104,"11:00:00",null,"XXX",null,null,null,null,null,null,null,null,"X","X"]
[20210104,"12:00:00",null,"","OOPS","",null,null,null,null,null,null,null,null,null,null,null,null,null,null,null,null,null,null,null,null,null,null,null,null,null,null,null,null,null,null,null,null,null,20190104,"12:00:00",null,"XXX",null,null,null,null,null,null,null,null,"X","X"]
[20210104,"13:00:00",null,"","OOPS","",null,null,null,null,null,null,null,null,null,null,null,null,null,null,null,null,null,null,null,null,null,null,null,null,null,null,null,null,null,null,null,null,null,20190104,"13:00:00",null,"XXX",null,null,null,null,null,null,null,null,"X","X"]
[20210104,"14:00:00",null,"","OOPS","",null,null,null,null,null,null,null,null,null,null,null,null,null,null,null,null,null,null,null,null,null,null,null,null,null,null,null,null,null,null,null,null,null,20190104,"14:00:00",null,"XXX",null,null,null,null,null,null,null,null,"X","X"]
[20210104,"15:00:00",null,"","OOPS","",null,null,null,null,null,null,null,null,null,null,null,null,null,null,null,null,null,null,null,null,null,null,null,null,null,null,null,null,null,null,null,null,null,20190104,"15:00:00",null,"XXX",null,null,null,null,null,null,null,null,"X","X"]
[20210104,"16:00:00",null,"","OOPS","",null,null,null,null,null,null,null,null,null,null,null,null,null,null,null,null,null,null,null,null,null,null,null,null,null,null,null,null,null,null,null,null,null,20190104,"16:00:00",null,"XXX",null,null,null,null,null,null,null,null,"X","X"]
[20210104,"17:00:00",null,"","OOPS","",null,null,null,null,null,null,null,null,null,null,null,null,null,null,null,null,null,null,null,null,null,null,null,null,null,null,null,null,null,null,null,null,null,20190104,"17:00:00",null,"XXX",null,null,null,null,null,null,null,null,"X","X"]
[20210104,"18:00:00",null,"","OOPS","",null,null,null,null,null,null,null,null,null,null,null,null,null,null,null,null,null,null,null,null,null,null,null,null,null,null,null,null,null,null,null,null,null,20190104,"18:00:00",null,"XXX",null,null,null,null,null,null,null,null,"X","X"]
[20210104,"19:00:00",null,"","OOPS","",null,null,null,null,null,null,null,null,null,null,null,null,null,null,null,null,null,null,null,null,null,null,null,null,null,null,null,null,null,null,null,null,null,20190104,"19:00:00",null,"XXX",null,null,null,null,null,null,null,null,"X","X"]
[20210104,"20:00:00",null,"","OOPS","",null,null,null,null,null,null,null,null,null,null,null,null,null,null,null,null,null,null,null,null,null,null,null,null,null,null,null,null,null,null,null,null,null,20190104,"20:00:00",null,"XXX",null,null,null,null,null,null,null,null,"X","X"]
[20210104,"21:00:00",null,"","OOPS","",null,null,null,null,null,null,null,null,null,null,null,null,null,null,null,null,null,null,null,null,null,null,null,null,null,null,null,null,null,null,null,null,null,20190104,"21:00:00",null,"XXX",null,null,null,null,null,null,null,null,"X","X"]
[20210104,"22:00:00",null,"","OOPS","",null,null,null,null,null,null,null,null,null,null,null,null,null,null,null,null,null,null,null,null,null,null,null,null,null,null,null,null,null,null,null,null,null,20190104,"22:00:00",null,"XXX",null,null,null,null,null,null,null,null,"X","X"]
[20210104,"23:00:00",null,"","OOPS","",null,null,null,null,null,null,null,null,null,null,null,null,null,null,null,null,null,null,null,null,null,null,null,null,null,null,null,null,null,null,null,null,null,20190104,"23:00:00",null,"XXX",null,null,null,null,null,null,null,null,"X","X"]
[20210105,"00:00:00",null,"","OOPS","",null,null,null,null,null,null,null,null,null,null,null,null,null,null,null,null,null,null,null,null,null,null,null,null,null,null,null,null,null,null,null,null,null,20190105,"00:00:00",null,"XXX",null,null,null,null,null,null,null,null,"X","X"]
[20210105,"01:00:00",null,"","OOPS","",null,null,null,null,null,null,null,null,null,null,null,null,null,null,null,null,null,null,null,null,null,null,null,null,null,null,null,null,null,null,null,null,null,20190105,"01:00:00",null,"XXX",null,null,null,null,null,null,null,null,"X","X"]
[20210105,"02:00:00",null,"","OOPS","",null,null,null,null,null,null,null,null,null,null,null,null,null,null,null,null,null,null,null,null,null,null,null,null,null,null,null,null,null,null,null,null,null,20190105,"02:00:00",null,"XXX",null,null,null,null,null,null,null,null,"X","X"]
[20210105,"03:00:00",null,"","OOPS","",null,null,null,null,null,null,null,null,null,null,null,null,null,null,null,null,null,null,null,null,null,null,null,null,null,null,null,null,null,null,null,null,null,20190105,"03:00:00",null,"XXX",null,null,null,null,null,null,null,null,"X","X"]
[20210105,"04:00:00",null,"","OOPS","",null,null,null,null,null,null,null,null,null,null,null,null,null,null,null,null,null,null,null,null,null,null,null,null,null,null,null,null,null,null,null,null,null,20190105,"04:00:00",null,"XXX",null,null,null,null,null,null,null,null,"X","X"]
[20210105,"05:00:00",null,"","OOPS","",null,null,null,null,null,null,null,null,null,null,null,null,null,null,null,null,null,null,null,null,null,null,null,null,null,null,null,null,null,null,null,null,null,20190105,"05:00:00",null,"XXX",null,null,null,null,null,null,null,null,"X","X"]
[20210105,"06:00:00",null,"","OOPS","",null,null,null,null,null,null,null,null,null,null,null,null,null,null,null,null,null,null,null,null,null,null,null,null,null,null,null,null,null,null,null,null,null,20190105,"06:00:00",null,"XXX",null,null,null,null,null,null,null,null,"X","X"]
[20210105,"07:00:00",null,"","OOPS","",null,null,null,null,null,null,null,null,null,null,null,null,null,null,null,null,null,null,null,null,null,null,null,null,null,null,null,null,null,null,null,null,null,20190105,"07:00:00",null,"XXX",null,null,null,null,null,null,null,null,"X","X"]
[20210105,"08:00:00",null,"","OOPS","",null,null,null,null,null,null,null,null,null,null,null,null,null,null,null,null,null,null,null,null,null,null,null,null,null,null,null,null,null,null,null,null,null,20190105,"08:00:00",null,"XXX",null,null,null,null,null,null,null,null,"X","X"]
[20210105,"09:00:00",null,"","OOPS","",null,null,null,null,null,null,null,null,null,null,null,null,null,null,null,null,null,null,null,null,null,null,null,null,null,null,null,null,null,null,null,null,null,20190105,"09:00:00",null,"XXX",null,null,null,null,null,null,null,null,"X","X"]
[20210105,"10:00:00",null,"","OOPS","",null,null,null,null,null,null,null,null,null,null,null,null,null,null,null,null,null,null,null,null,null,null,null,null,null,null,null,null,null,null,null,null,null,20190105,"10:00:00",null,"XXX",null,null,null,null,null,null,null,null,"X","X"]
[20210105,"11:00:00",null,"","OOPS","",null,null,null,null,null,null,null,null,null,null,null,null,null,null,null,null,null,null,null,null,null,null,null,null,null,null,null,null,null,null,null,null,null,20190105,"11:00:00",null,"XXX",null,null,null,null,null,null,null,null,"X","X"]
[20210105,"12:00:00",null,"","OOPS","",null,null,null,null,null,null,null,null,null,null,null,null,null,null,null,null,null,null,null,null,null,null,null,null,null,null,null,null,null,null,null,null,null,20190105,"12:00:00",null,"XXX",null,null,null,null,null,null,null,null,"X","X"]
[20210105,"13:00:00",null,"","OOPS","",null,null,null,null,null,null,null,null,null,null,null,null,null,null,null,null,null,null,null,null,null,null,null,null,null,null,null,null,null,null,null,null,null,20190105,"13:00:00",null,"XXX",null,null,null,null,null,null,null,null,"X","X"]
[20210105,"14:00:00",null,"","OOPS","",null,null,null,null,null,null,null,null,null,null,null,null,null,null,null,null,null,null,null,null,null,null,null,null,null,null,null,null,null,null,null,null,null,20190105,"14:00:00",null,"XXX",null,null,null,null,null,null,null,null,"X","X"]
[20210105,"15:00:00",null,"","OOPS","",null,null,null,null,null,null,null,null,null,null,null,null,null,null,null,null,null,null,null,null,null,null,null,null,null,null,null,null,null,null,null,null,null,20190105,"15:00:00",null,"XXX",null,null,null,null,null,null,null,null,"X","X"]
[20210105,"16:00:00",null,"","OOPS","",null,null,null,null,null,null,null,null,null,null,null,null,null,null,null,null,null,null,null,null,null,null,null,null,null,null,null,null,null,null,null,null,null,20190105,"16:00:00",null,"XXX",null,null,null,null,null,null,null,null,"X","X"]
[20210105,"17:00:00",null,"","OOPS","",null,null,null,null,null,null,null,null,null,null,null,null,null,null,null,null,null,null,null,null,null,null,null,null,null,null,null,null,null,null,null,null,null,20190105,"17:00:00",null,"XXX",null,null,null,null,null,null,null,null,"X","X"]
[20210105,"18:00:00",null,"","OOPS","",null,null,null,null,null,null,null,null,null,null,null,null,null,null,null,null,null,null,null,null,null,null,null,null,null,null,null,null,null,null,null,null,null,20190105,"18:00:00",null,"XXX",null,null,null,null,null,null,null,null,"X","X"]
[20210105,"19:00:00",null,"","OOPS","",null,null,null,null,null,null,null,null,null,null,null,null,null,null,null,null,null,null,null,null,null,null,null,null,null,null,null,null,null,null,null,null,null,20190105,"19:00:00",null,"XXX",null,null,null,null,null,null,null,null,"X","X"]
[20210105,"20:00:00",null,"","OOPS","",null,null,null,null,null,null,null,null,null,null,null,null,null,null,null,null,null,null,null,null,null,null,null,null,null,null,null,null,null,null,null,null,null,20190105,"20:00:00",null,"XXX",null,null,null,null,null,null,null,null,"X","X"]
[20210105,"21:00:00",null,"","OOPS","",null,null,null,null,null,null,null,null,null,null,null,null,null,null,null,null,null,null,null,null,null,null,null,null,null,null,null,null,null,null,null,null,null,20190105,"21:00:00",null,"XXX",null,null,null,null,null,null,null,null,"X","X"]
[20210105,"22:00:00",null,"","OOPS","",null,null,null,null,null,null,null,null,null,null,null,null,null,null,null,null,null,null,null,null,null,null,null,null,null,null,null,null,null,null,null,null,null,20190105,"22:00:00",null,"XXX",null,null,null,null,null,null,null,null,"X","X"]
[20210105,"23:00:00",null,"","OOPS","",null,null,null,null,null,null,null,null,null,null,null,null,null,null,null,null,null,null,null,null,null,null,null,null,null,null,null,null,null,null,null,null,null,20190105,"23:00:00",null,"XXX",null,null,null,null,null,null,null,null,"X","X"]
[20210106,"00:00:00",null,"","OOPS","",null,null,null,null,null,null,null,null,null,null,null,null,null,null,null,null,null,null,null,null,null,null,null,null,null,null,null,null,null,null,null,null,null,20190106,"00:00:00",null,"XXX",null,null,null,null,null,null,null,null,"X","X"]
[20210106,"01:00:00",null,"","OOPS","",null,null,null,null,null,null,null,null,null,null,null,null,null,null,null,null,null,null,null,null,null,null,null,null,null,null,null,null,null,null,null,null,null,20190106,"01:00:00",null,"XXX",null,null,null,null,null,null,null,null,"X","X"]
[20210106,"02:00:00",null,"","OOPS","",null,null,null,null,null,null,null,null,null,null,null,null,null,null,null,null,null,null,null,null,null,null,null,null,null,null,null,null,null,null,null,null,null,20190106,"02:00:00",null,"XXX",null,null,null,null,null,null,null,null,"X","X"]
[20210106,"03:00:00",null,"","OOPS","",null,null,null,null,null,null,null,null,null,null,null,null,null,null,null,null,null,null,null,null,null,null,null,null,null,null,null,null,null,null,null,null,null,20190106,"03:00:00",null,"XXX",null,null,null,null,null,null,null,null,"X","X"]
[20210106,"04:00:00",null,"","OOPS","",null,null,null,null,null,null,null,null,null,null,null,null,null,null,null,null,null,null,null,null,null,null,null,null,null,null,null,null,null,null,null,null,null,20190106,"04:00:00",null,"XXX",null,null,null,null,null,null,null,null,"X","X"]
[20210106,"05:00:00",null,"","OOPS","",null,null,null,null,null,null,null,null,null,null,null,null,null,null,null,null,null,null,null,null,null,null,null,null,null,null,null,null,null,null,null,null,null,20190106,"05:00:00",null,"XXX",null,null,null,null,null,null,null,null,"X","X"]
[20210106,"06:00:00",null,"","OOPS","",null,null,null,null,null,null,null,null,null,null,null,null,null,null,null,null,null,null,null,null,null,null,null,null,null,null,null,null,null,null,null,null,null,20190106,"06:00:00",null,"XXX",null,null,null,null,null,null,null,null,"X","X"]
[20210106,"07:00:00",null,"","OOPS","",null,null,null,null,null,null,null,null,null,null,null,null,null,null,null,null,null,null,null,null,null,null,null,null,null,null,null,null,null,null,null,null,null,20190106,"07:00:00",null,"XXX",null,null,null,null,null,null,null,null,"X","X"]
[20210106,"08:00:00",null,"","OOPS","",null,null,null,null,null,null,null,null,null,null,null,null,null,null,null,null,null,null,null,null,null,null,null,null,null,null,null,null,null,null,null,null,null,20190106,"08:00:00",null,"XXX",null,null,null,null,null,null,null,null,"X","X"]
[20210106,"09:00:00",null,"","OOPS","",null,null,null,null,null,null,null,null,null,null,null,null,null,null,null,null,null,null,null,null,null,null,null,null,null,null,null,null,null,null,null,null,null,20190106,"09:00:00",null,"XXX",null,null,null,null,null,null,null,null,"X","X"]
[20210106,"10:00:00",null,"","OOPS","",null,null,null,null,null,null,null,null,null,null,null,null,null,null,null,null,null,null,null,null,null,null,null,null,null,null,null,null,null,null,null,null,null,20190106,"10:00:00",null,"XXX",null,null,null,null,null,null,null,null,"X",{"$f":"IF(AO132=\"\",\"\",IF(AO132=AO131,IF(AP132=AP131,\"\",\"X\"),\"X\"))","v":"X"}]
[20210106,"11:00:00",null,"","OOPS","",null,null,null,null,null,null,null,null,null,null,null,null,null,null,null,null,null,null,null,null,null,null,null,null,null,null,null,null,null,null,null,null,null,20190106,"11:00:00",null,"XXX",null,null,null,null,null,null,null,null,"X","X"]
[20210106,"12:00:00",null,"","OOPS","",null,null,null,null,null,null,null,null,null,null,null,null,null,null,null,null,null,null,null,null,null,null,null,null,null,null,null,null,null,null,null,null,null,20190106,"12:00:00",null,"XXX",null,null,null,null,null,null,null,null,"X","X"]
[20210106,"13:00:00",null,"","OOPS","",null,null,null,null,null,null,null,null,null,null,null,null,null,null,null,null,null,null,null,null,null,null,null,null,null,null,null,null,null,null,null,null,null,20190106,"13:00:00",null,"XXX",null,null,null,null,null,null,null,null,"X","X"]
[20210106,"14:00:00",null,"","OOPS","",null,null,null,null,null,null,null,null,null,null,null,null,null,null,null,null,null,null,null,null,null,null,null,null,null,null,null,null,null,null,null,null,null,20190106,"14:00:00",null,"XXX",null,null,null,null,null,null,null,null,"X","X"]
[20210106,"15:00:00",null,"","OOPS","",null,null,null,null,null,null,null,null,null,null,null,null,null,null,null,null,null,null,null,null,null,null,null,null,null,null,null,null,null,null,null,null,null,20190106,"15:00:00",null,"XXX",null,null,null,null,null,null,null,null,"X","X"]
[20210106,"16:00:00",null,"","OOPS","",null,null,null,null,null,null,null,null,null,null,null,null,null,null,null,null,null,null,null,null,null,null,null,null,null,null,null,null,null,null,null,null,null,20190106,"16:00:00",null,"XXX",null,null,null,null,null,null,null,null,"X","X"]
[20210106,"17:00:00",null,"","OOPS","",null,null,null,null,null,null,null,null,null,null,null,null,null,null,null,null,null,null,null,null,null,null,null,null,null,null,null,null,null,null,null,null,null,20190106,"17:00:00",null,"XXX",null,null,null,null,null,null,null,null,"X","X"]
[20210106,"18:00:00",null,"","OOPS","",null,null,null,null,null,null,null,null,null,null,null,null,null,null,null,null,null,null,null,null,null,null,null,null,null,null,null,null,null,null,null,null,null,20190106,"18:00:00",null,"XXX",null,null,null,null,null,null,null,null,"X","X"]
[20210106,"19:00:00",null,"","OOPS","",null,null,null,null,null,null,null,null,null,null,null,null,null,null,null,null,null,null,null,null,null,null,null,null,null,null,null,null,null,null,null,null,null,20190106,"19:00:00",null,"XXX",null,null,null,null,null,null,null,null,"X","X"]
[20210106,"20:00:00",null,"","OOPS","",null,null,null,null,null,null,null,null,null,null,null,null,null,null,null,null,null,null,null,null,null,null,null,null,null,null,null,null,null,null,null,null,null,20190106,"20:00:00",null,"XXX",null,null,null,null,null,null,null,null,"X","X"]
[20210106,"21:00:00",null,"","OOPS","",null,null,null,null,null,null,null,null,null,null,null,null,null,null,null,null,null,null,null,null,null,null,null,null,null,null,null,null,null,null,null,null,null,20190106,"21:00:00",null,"XXX",null,null,null,null,null,null,null,null,"X","X"]
[20210106,"22:00:00",null,"","OOPS","",null,null,null,null,null,null,null,null,null,null,null,null,null,null,null,null,null,null,null,null,null,null,null,null,null,null,null,null,null,null,null,null,null,20190106,"22:00:00",null,"XXX",null,null,null,null,null,null,null,null,"X","X"]
[20210106,"23:00:00",null,"","OOPS","",null,null,null,null,null,null,null,null,null,null,null,null,null,null,null,null,null,null,null,null,null,null,null,null,null,null,null,null,null,null,null,null,null,20190106,"23:00:00",null,"XXX",null,null,null,null,null,null,null,null,"X","X"]
[20210107,"00:00:00",null,"","OOPS","",null,null,null,null,null,null,null,null,null,null,null,null,null,null,null,null,null,null,null,null,null,null,null,null,null,null,null,null,null,null,null,null,null,20190107,"00:00:00",null,"XXX",null,null,null,null,null,null,null,null,"X","X"]
[20210107,"01:00:00",null,{"$f":"IF(C147=AP147,\"\",\"OOPS\")","v":""},{"$f":"IF(A147=AN147,\"\",\"OOPS\")","v":"OOPS"},{"$f":"IF(B147=AO147,\"\",\"OOPS\")","v":""},null,null,null,null,null,null,null,null,null,null,null,null,null,null,null,null,null,null,null,null,null,null,null,null,null,null,null,null,null,null,null,null,null,20190107,"01:00:00",null,"XXX",null,null,null,null,null,null,null,null,"X","X"]
[20210107,"02:00:00",null,"","OOPS","",null,null,null,null,null,null,null,null,null,null,null,null,null,null,null,null,null,null,null,null,null,null,null,null,null,null,null,null,null,null,null,null,null,20190107,"02:00:00",null,"XXX",null,null,null,null,null,null,null,null,"X","X"]
[20210107,"03:00:00",null,"","OOPS","",null,null,null,null,null,null,null,null,null,null,null,null,null,null,null,null,null,null,null,null,null,null,null,null,null,null,null,null,null,null,null,null,null,20190107,"03:00:00",null,"XXX",null,null,null,null,null,null,null,null,"X","X"]
[20210107,"04:00:00",null,"","OOPS","",null,null,null,null,null,null,null,null,null,null,null,null,null,null,null,null,null,null,null,null,null,null,null,null,null,null,null,null,null,null,null,null,null,20190107,"04:00:00",null,"XXX",null,null,null,null,null,null,null,null,"X","X"]
[20210107,"05:00:00",null,"","OOPS","",null,null,null,null,null,null,null,null,null,null,null,null,null,null,null,null,null,null,null,null,null,null,null,null,null,null,null,null,null,null,null,null,null,20190107,"05:00:00",null,"XXX",null,null,null,null,null,null,null,null,"X","X"]
[20210107,"06:00:00",null,"","OOPS","",null,null,null,null,null,null,null,null,null,null,null,null,null,null,null,null,null,null,null,null,null,null,null,null,null,null,null,null,null,null,null,null,null,20190107,"06:00:00",null,"XXX",null,null,null,null,null,null,null,null,"X","X"]
[20210107,"07:00:00",null,"","OOPS","",null,null,null,null,null,null,null,null,null,null,null,null,null,null,null,null,null,null,null,null,null,null,null,null,null,null,null,null,null,null,null,null,null,20190107,"07:00:00",null,"XXX",null,null,null,null,null,null,null,null,"X","X"]
[20210107,"08:00:00",null,"","OOPS","",null,null,null,null,null,null,null,null,null,null,null,null,null,null,null,null,null,null,null,null,null,null,null,null,null,null,null,null,null,null,null,null,null,20190107,"08:00:00",null,"XXX",null,null,null,null,null,null,null,null,"X","X"]
[20210107,"09:00:00",null,"","OOPS","",null,null,null,null,null,null,null,null,null,null,null,null,null,null,null,null,null,null,null,null,null,null,null,null,null,null,null,null,null,null,null,null,null,20190107,"09:00:00",null,"XXX",null,null,null,null,null,null,null,null,"X","X"]
[20210107,"10:00:00",null,"","OOPS","",null,null,null,null,null,null,null,null,null,null,null,null,null,null,null,null,null,null,null,null,null,null,null,null,null,null,null,null,null,null,null,null,null,20190107,"10:00:00",null,"XXX",null,null,null,null,null,null,null,null,"X","X"]
[20210107,"11:00:00",null,"","OOPS","",null,null,null,null,null,null,null,null,null,null,null,null,null,null,null,null,null,null,null,null,null,null,null,null,null,null,null,null,null,null,null,null,null,20190107,"11:00:00",null,"XXX",null,null,null,null,null,null,null,null,"X","X"]
[20210107,"12:00:00",null,"","OOPS","",null,null,null,null,null,null,null,null,null,null,null,null,null,null,null,null,null,null,null,null,null,null,null,null,null,null,null,null,null,null,null,null,null,20190107,"12:00:00",null,"XXX",null,null,null,null,null,null,null,null,"X","X"]
[20210107,"13:00:00",null,"","OOPS","",null,null,null,null,null,null,null,null,null,null,null,null,null,null,null,null,null,null,null,null,null,null,null,null,null,null,null,null,null,null,null,null,null,20190107,"13:00:00",null,"XXX",null,null,null,null,null,null,null,null,"X","X"]
[20210107,"14:00:00",null,"","OOPS","",null,null,null,null,null,null,null,null,null,null,null,null,null,null,null,null,null,null,null,null,null,null,null,null,null,null,null,null,null,null,null,null,null,20190107,"14:00:00",null,"XXX",null,null,null,null,null,null,null,null,"X","X"]
[20210107,"15:00:00",null,"","OOPS","",null,null,null,null,null,null,null,null,null,null,null,null,null,null,null,null,null,null,null,null,null,null,null,null,null,null,null,null,null,null,null,null,null,20190107,"15:00:00",null,"XXX",null,null,null,null,null,null,null,null,"X","X"]
[20210107,"16:00:00",null,"","OOPS","",null,null,null,null,null,null,null,null,null,null,null,null,null,null,null,null,null,null,null,null,null,null,null,null,null,null,null,null,null,null,null,null,null,20190107,"16:00:00",null,"XXX",null,null,null,null,null,null,null,null,"X","X"]
[20210107,"17:00:00",null,"","OOPS","",null,null,null,null,null,null,null,null,null,null,null,null,null,null,null,null,null,null,null,null,null,null,null,null,null,null,null,null,null,null,null,null,null,20190107,"17:00:00",null,"XXX",null,null,null,null,null,null,null,null,"X","X"]
[20210107,"18:00:00",null,"","OOPS","",null,null,null,null,null,null,null,null,null,null,null,null,null,null,null,null,null,null,null,null,null,null,null,null,null,null,null,null,null,null,null,null,null,20190107,"18:00:00",null,"XXX",null,null,null,null,null,null,null,null,"X","X"]
[20210107,"19:00:00",null,"","OOPS","",null,null,null,null,null,null,null,null,null,null,null,null,null,null,null,null,null,null,null,null,null,null,null,null,null,null,null,null,null,null,null,null,null,20190107,"19:00:00",null,"XXX",null,null,null,null,null,null,null,null,"X","X"]
[20210107,"20:00:00",null,"","OOPS","",null,null,null,null,null,null,null,null,null,null,null,null,null,null,null,null,null,null,null,null,null,null,null,null,null,null,null,null,null,null,null,null,null,20190107,"20:00:00",null,"XXX",null,null,null,null,null,null,null,null,"X","X"]
[20210107,"21:00:00",null,"","OOPS","",null,null,null,null,null,null,null,null,null,null,null,null,null,null,null,null,null,null,null,null,null,null,null,null,null,null,null,null,null,null,null,null,null,20190107,"21:00:00",null,"XXX",null,null,null,null,null,null,null,null,"X","X"]
[20210107,"22:00:00",null,"","OOPS","",null,null,null,null,null,null,null,null,null,null,null,null,null,null,null,null,null,null,null,null,null,null,null,null,null,null,null,null,null,null,null,null,null,20190107,"22:00:00",null,"XXX",null,null,null,null,null,null,null,null,"X","X"]
[20210107,"23:00:00",null,"","OOPS","",null,null,null,null,null,null,null,null,null,null,null,null,null,null,null,null,null,null,null,null,null,null,null,null,null,null,null,null,null,null,null,null,null,20190107,"23:00:00",null,"XXX",null,null,null,null,null,null,null,null,"X","X"]
[20210108,"00:00:00",null,"","OOPS","",null,null,null,null,null,null,null,null,null,null,null,null,null,null,null,null,null,null,null,null,null,null,null,null,null,null,null,null,null,null,null,null,null,20190108,"00:00:00",null,"XXX",null,null,null,null,null,null,null,null,"X","X"]
[20210108,"01:00:00",null,"","OOPS","",null,null,null,null,null,null,null,null,null,null,null,null,null,null,null,null,null,null,null,null,null,null,null,null,null,null,null,null,null,null,null,null,null,20190108,"01:00:00",null,"XXX",null,null,null,null,null,null,null,null,"X","X"]
[20210108,"02:00:00",null,"","OOPS","",null,null,null,null,null,null,null,null,null,null,null,null,null,null,null,null,null,null,null,null,null,null,null,null,null,null,null,null,null,null,null,null,null,20190108,"02:00:00",null,"XXX",null,null,null,null,null,null,null,null,"X","X"]
[20210108,"03:00:00",null,"","OOPS","",null,null,null,null,null,null,null,null,null,null,null,null,null,null,null,null,null,null,null,null,null,null,null,null,null,null,null,null,null,null,null,null,null,20190108,"03:00:00",null,"XXX",null,null,null,null,null,null,null,null,"X","X"]
[20210108,"04:00:00",null,"","OOPS","",null,null,null,null,null,null,null,null,null,null,null,null,null,null,null,null,null,null,null,null,null,null,null,null,null,null,null,null,null,null,null,null,null,20190108,"04:00:00",null,"XXX",null,null,null,null,null,null,null,null,"X","X"]
[20210108,"05:00:00",null,"","OOPS","",null,null,null,null,null,null,null,null,null,null,null,null,null,null,null,null,null,null,null,null,null,null,null,null,null,null,null,null,null,null,null,null,null,20190108,"05:00:00",null,"XXX",null,null,null,null,null,null,null,null,"X","X"]
[20210108,"06:00:00",null,"","OOPS","",null,null,null,null,null,null,null,null,null,null,null,null,null,null,null,null,null,null,null,null,null,null,null,null,null,null,null,null,null,null,null,null,null,20190108,"06:00:00",null,"XXX",null,null,null,null,null,null,null,null,"X","X"]
[20210108,"07:00:00",null,"","OOPS","",null,null,null,null,null,null,null,null,null,null,null,null,null,null,null,null,null,null,null,null,null,null,null,null,null,null,null,null,null,null,null,null,null,20190108,"07:00:00",null,"XXX",null,null,null,null,null,null,null,null,"X","X"]
[20210108,"08:00:00",null,"","OOPS","",null,null,null,null,null,null,null,null,null,null,null,null,null,null,null,null,null,null,null,null,null,null,null,null,null,null,null,null,null,null,null,null,null,20190108,"08:00:00",null,"XXX",null,null,null,null,null,null,null,null,"X","X"]
[20210108,"09:00:00",null,"","OOPS","",null,null,null,null,null,null,null,null,null,null,null,null,null,null,null,null,null,null,null,null,null,null,null,null,null,null,null,null,null,null,null,null,null,20190108,"09:00:00",null,"XXX",null,null,null,null,null,null,null,null,"X","X"]
[20210108,"10:00:00",null,"","OOPS","",null,null,null,null,null,null,null,null,null,null,null,null,null,null,null,null,null,null,null,null,null,null,null,null,null,null,null,null,null,null,null,null,null,20190108,"10:00:00",null,"XXX",null,null,null,null,null,null,null,null,"X","X"]
[20210108,"11:00:00",null,"","OOPS","",null,null,null,null,null,null,null,null,null,null,null,null,null,null,null,null,null,null,null,null,null,null,null,null,null,null,null,null,null,null,null,null,null,20190108,"11:00:00",null,"XXX",null,null,null,null,null,null,null,null,"X","X"]
[20210108,"12:00:00",null,"","OOPS","",null,null,null,null,null,null,null,null,null,null,null,null,null,null,null,null,null,null,null,null,null,null,null,null,null,null,null,null,null,null,null,null,null,20190108,"12:00:00",null,"XXX",null,null,null,null,null,null,null,null,"X","X"]
[20210108,"13:00:00",null,"","OOPS","",null,null,null,null,null,null,null,null,null,null,null,null,null,null,null,null,null,null,null,null,null,null,null,null,null,null,null,null,null,null,null,null,null,20190108,"13:00:00",null,"XXX",null,null,null,null,null,null,null,null,"X","X"]
[20210108,"14:00:00",null,"","OOPS","",null,null,null,null,null,null,null,null,null,null,null,null,null,null,null,null,null,null,null,null,null,null,null,null,null,null,null,null,null,null,null,null,null,20190108,"14:00:00",null,"XXX",null,null,null,null,null,null,null,null,"X","X"]
[20210108,"15:00:00",null,"","OOPS","",null,null,null,null,null,null,null,null,null,null,null,null,null,null,null,null,null,null,null,null,null,null,null,null,null,null,null,null,null,null,null,null,null,20190108,"15:00:00",null,"XXX",null,null,null,null,null,null,null,null,"X","X"]
[20210108,"16:00:00",null,"","OOPS","",null,null,null,null,null,null,null,null,null,null,null,null,null,null,null,null,null,null,null,null,null,null,null,null,null,null,null,null,null,null,null,null,null,20190108,"16:00:00",null,"XXX",null,null,null,null,null,null,null,null,"X","X"]
[20210108,"17:00:00",null,"","OOPS","",null,null,null,null,null,null,null,null,null,null,null,null,null,null,null,null,null,null,null,null,null,null,null,null,null,null,null,null,null,null,null,null,null,20190108,"17:00:00",null,"XXX",null,null,null,null,null,null,null,null,"X","X"]
[20210108,"18:00:00",null,"","OOPS","",null,null,null,null,null,null,null,null,null,null,null,null,null,null,null,null,null,null,null,null,null,null,null,null,null,null,null,null,null,null,null,null,null,20190108,"18:00:00",null,"XXX",null,null,null,null,null,null,null,null,"X","X"]
[20210108,"19:00:00",null,"","OOPS","",null,null,null,null,null,null,null,null,null,null,null,null,null,null,null,null,null,null,null,null,null,null,null,null,null,null,null,null,null,null,null,null,null,20190108,"19:00:00",null,"XXX",null,null,null,null,null,null,null,null,"X","X"]
[20210108,"20:00:00",null,"","OOPS","",null,null,null,null,null,null,null,null,null,null,null,null,null,null,null,null,null,null,null,null,null,null,null,null,null,null,null,null,null,null,null,null,null,20190108,"20:00:00",null,"XXX",null,null,null,null,null,null,null,null,"X","X"]
[20210108,"21:00:00",null,"","OOPS","",null,null,null,null,null,null,null,null,null,null,null,null,null,null,null,null,null,null,null,null,null,null,null,null,null,null,null,null,null,null,null,null,null,20190108,"21:00:00",null,"XXX",null,null,null,null,null,null,null,null,"X","X"]
[20210108,"22:00:00",null,"","OOPS","",null,null,null,null,null,null,null,null,null,null,null,null,null,null,null,null,null,null,null,null,null,null,null,null,null,null,null,null,null,null,null,null,null,20190108,"22:00:00",null,"XXX",null,null,null,null,null,null,null,null,"X","X"]
[20210108,"23:00:00",null,"","OOPS","",null,null,null,null,null,null,null,null,null,null,null,null,null,null,null,null,null,null,null,null,null,null,null,null,null,null,null,null,null,null,null,null,null,20190108,"23:00:00",null,"XXX",null,null,null,null,null,null,null,null,"X","X"]
[20210109,"00:00:00",null,"","OOPS","",null,null,null,null,null,null,null,null,null,null,null,null,null,null,null,null,null,null,null,null,null,null,null,null,null,null,null,null,null,null,null,null,null,20190109,"00:00:00",null,"XXX",null,null,null,null,null,null,null,null,"X","X"]
[20210109,"01:00:00",null,"","OOPS","",null,null,null,null,null,null,null,null,null,null,null,null,null,null,null,null,null,null,null,null,null,null,null,null,null,null,null,null,null,null,null,null,null,20190109,"01:00:00",null,"XXX",null,null,null,null,null,null,null,null,"X","X"]
[20210109,"02:00:00",null,"","OOPS","",null,null,null,null,null,null,null,null,null,null,null,null,null,null,null,null,null,null,null,null,null,null,null,null,null,null,null,null,null,null,null,null,null,20190109,"02:00:00",null,"XXX",null,null,null,null,null,null,null,null,"X",{"$f":"IF(AO196=\"\",\"\",IF(AO196=AO195,IF(AP196=AP195,\"\",\"X\"),\"X\"))","v":"X"}]
[20210109,"03:00:00",null,"","OOPS","",null,null,null,null,null,null,null,null,null,null,null,null,null,null,null,null,null,null,null,null,null,null,null,null,null,null,null,null,null,null,null,null,null,20190109,"03:00:00",null,"XXX",null,null,null,null,null,null,null,null,"X","X"]
[20210109,"04:00:00",null,"","OOPS","",null,null,null,null,null,null,null,null,null,null,null,null,null,null,null,null,null,null,null,null,null,null,null,null,null,null,null,null,null,null,null,null,null,20190109,"04:00:00",null,"XXX",null,null,null,null,null,null,null,null,"X","X"]
[20210109,"05:00:00",null,"","OOPS","",null,null,null,null,null,null,null,null,null,null,null,null,null,null,null,null,null,null,null,null,null,null,null,null,null,null,null,null,null,null,null,null,null,20190109,"05:00:00",null,"XXX",null,null,null,null,null,null,null,null,"X","X"]
[20210109,"06:00:00",null,"","OOPS","",null,null,null,null,null,null,null,null,null,null,null,null,null,null,null,null,null,null,null,null,null,null,null,null,null,null,null,null,null,null,null,null,null,20190109,"06:00:00",null,"XXX",null,null,null,null,null,null,null,null,"X","X"]
[20210109,"07:00:00",null,"","OOPS","",null,null,null,null,null,null,null,null,null,null,null,null,null,null,null,null,null,null,null,null,null,null,null,null,null,null,null,null,null,null,null,null,null,20190109,"07:00:00",null,"XXX",null,null,null,null,null,null,null,null,"X","X"]
[20210109,"08:00:00",null,"","OOPS","",null,null,null,null,null,null,null,null,null,null,null,null,null,null,null,null,null,null,null,null,null,null,null,null,null,null,null,null,null,null,null,null,null,20190109,"08:00:00",null,"XXX",null,null,null,null,null,null,null,null,"X","X"]
[20210109,"09:00:00",null,"","OOPS","",null,null,null,null,null,null,null,null,null,null,null,null,null,null,null,null,null,null,null,null,null,null,null,null,null,null,null,null,null,null,null,null,null,20190109,"09:00:00",null,"XXX",null,null,null,null,null,null,null,null,"X","X"]
[20210109,"10:00:00",null,"","OOPS","",null,null,null,null,null,null,null,null,null,null,null,null,null,null,null,null,null,null,null,null,null,null,null,null,null,null,null,null,null,null,null,null,null,20190109,"10:00:00",null,"XXX",null,null,null,null,null,null,null,null,"X","X"]
[20210109,"11:00:00",null,"","OOPS","",null,null,null,null,null,null,null,null,null,null,null,null,null,null,null,null,null,null,null,null,null,null,null,null,null,null,null,null,null,null,null,null,null,20190109,"11:00:00",null,"XXX",null,null,null,null,null,null,null,null,"X","X"]
[20210109,"12:00:00",null,"","OOPS","",null,null,null,null,null,null,null,null,null,null,null,null,null,null,null,null,null,null,null,null,null,null,null,null,null,null,null,null,null,null,null,null,null,20190109,"12:00:00",null,"XXX",null,null,null,null,null,null,null,null,"X","X"]
[20210109,"13:00:00",null,"","OOPS","",null,null,null,null,null,null,null,null,null,null,null,null,null,null,null,null,null,null,null,null,null,null,null,null,null,null,null,null,null,null,null,null,null,20190109,"13:00:00",null,"XXX",null,null,null,null,null,null,null,null,"X","X"]
[20210109,"14:00:00",null,"","OOPS","",null,null,null,null,null,null,null,null,null,null,null,null,null,null,null,null,null,null,null,null,null,null,null,null,null,null,null,null,null,null,null,null,null,20190109,"14:00:00",null,"XXX",null,null,null,null,null,null,null,null,"X","X"]
[20210109,"15:00:00",null,"","OOPS","",null,null,null,null,null,null,null,null,null,null,null,null,null,null,null,null,null,null,null,null,null,null,null,null,null,null,null,null,null,null,null,null,null,20190109,"15:00:00",null,"XXX",null,null,null,null,null,null,null,null,"X","X"]
[20210109,"16:00:00",null,"","OOPS","",null,null,null,null,null,null,null,null,null,null,null,null,null,null,null,null,null,null,null,null,null,null,null,null,null,null,null,null,null,null,null,null,null,20190109,"16:00:00",null,"XXX",null,null,null,null,null,null,null,null,"X","X"]
[20210109,"17:00:00",null,{"$f":"IF(C211=AP211,\"\",\"OOPS\")","v":""},{"$f":"IF(A211=AN211,\"\",\"OOPS\")","v":"OOPS"},{"$f":"IF(B211=AO211,\"\",\"OOPS\")","v":""},null,null,null,null,null,null,null,null,null,null,null,null,null,null,null,null,null,null,null,null,null,null,null,null,null,null,null,null,null,null,null,null,null,20190109,"17:00:00",null,"XXX",null,null,null,null,null,null,null,null,"X","X"]
[20210109,"18:00:00",null,"","OOPS","",null,null,null,null,null,null,null,null,null,null,null,null,null,null,null,null,null,null,null,null,null,null,null,null,null,null,null,null,null,null,null,null,null,20190109,"18:00:00",null,"XXX",null,null,null,null,null,null,null,null,"X","X"]
[20210109,"19:00:00",null,"","OOPS","",null,null,null,null,null,null,null,null,null,null,null,null,null,null,null,null,null,null,null,null,null,null,null,null,null,null,null,null,null,null,null,null,null,20190109,"19:00:00",null,"XXX",null,null,null,null,null,null,null,null,"X","X"]
[20210109,"20:00:00",null,"","OOPS","",null,null,null,null,null,null,null,null,null,null,null,null,null,null,null,null,null,null,null,null,null,null,null,null,null,null,null,null,null,null,null,null,null,20190109,"20:00:00",null,"XXX",null,null,null,null,null,null,null,null,"X","X"]
[20210109,"21:00:00",null,"","OOPS","",null,null,null,null,null,null,null,null,null,null,null,null,null,null,null,null,null,null,null,null,null,null,null,null,null,null,null,null,null,null,null,null,null,20190109,"21:00:00",null,"XXX",null,null,null,null,null,null,null,null,"X","X"]
[20210109,"22:00:00",null,"","OOPS","",null,null,null,null,null,null,null,null,null,null,null,null,null,null,null,null,null,null,null,null,null,null,null,null,null,null,null,null,null,null,null,null,null,20190109,"22:00:00",null,"XXX",null,null,null,null,null,null,null,null,"X","X"]
[20210109,"23:00:00",null,"","OOPS","",null,null,null,null,null,null,null,null,null,null,null,null,null,null,null,null,null,null,null,null,null,null,null,null,null,null,null,null,null,null,null,null,null,20190109,"23:00:00",null,"XXX",null,null,null,null,null,null,null,null,"X","X"]
[20210110,"00:00:00",null,"","OOPS","",null,null,null,null,null,null,null,null,null,null,null,null,null,null,null,null,null,null,null,null,null,null,null,null,null,null,null,null,null,null,null,null,null,20190110,"00:00:00",null,"XXX",null,null,null,null,null,null,null,null,"X","X"]
[20210110,"01:00:00",null,"","OOPS","",null,null,null,null,null,null,null,null,null,null,null,null,null,null,null,null,null,null,null,null,null,null,null,null,null,null,null,null,null,null,null,null,null,20190110,"01:00:00",null,"XXX",null,null,null,null,null,null,null,null,"X","X"]
[20210110,"02:00:00",null,"","OOPS","",null,null,null,null,null,null,null,null,null,null,null,null,null,null,null,null,null,null,null,null,null,null,null,null,null,null,null,null,null,null,null,null,null,20190110,"02:00:00",null,"XXX",null,null,null,null,null,null,null,null,"X","X"]
[20210110,"03:00:00",null,"","OOPS","",null,null,null,null,null,null,null,null,null,null,null,null,null,null,null,null,null,null,null,null,null,null,null,null,null,null,null,null,null,null,null,null,null,20190110,"03:00:00",null,"XXX",null,null,null,null,null,null,null,null,"X","X"]
[20210110,"04:00:00",null,"","OOPS","",null,null,null,null,null,null,null,null,null,null,null,null,null,null,null,null,null,null,null,null,null,null,null,null,null,null,null,null,null,null,null,null,null,20190110,"04:00:00",null,"XXX",null,null,null,null,null,null,null,null,"X","X"]
[20210110,"05:00:00",null,"","OOPS","",null,null,null,null,null,null,null,null,null,null,null,null,null,null,null,null,null,null,null,null,null,null,null,null,null,null,null,null,null,null,null,null,null,20190110,"05:00:00",null,"XXX",null,null,null,null,null,null,null,null,"X","X"]
[20210110,"06:00:00",null,"","OOPS","",null,null,null,null,null,null,null,null,null,null,null,null,null,null,null,null,null,null,null,null,null,null,null,null,null,null,null,null,null,null,null,null,null,20190110,"06:00:00",null,"XXX",null,null,null,null,null,null,null,null,"X","X"]
[20210110,"07:00:00",null,"","OOPS","",null,null,null,null,null,null,null,null,null,null,null,null,null,null,null,null,null,null,null,null,null,null,null,null,null,null,null,null,null,null,null,null,null,20190110,"07:00:00",null,"XXX",null,null,null,null,null,null,null,null,"X","X"]
[20210110,"08:00:00",null,"","OOPS","",null,null,null,null,null,null,null,null,null,null,null,null,null,null,null,null,null,null,null,null,null,null,null,null,null,null,null,null,null,null,null,null,null,20190110,"08:00:00",null,"XXX",null,null,null,null,null,null,null,null,"X","X"]
[20210110,"09:00:00",null,"","OOPS","",null,null,null,null,null,null,null,null,null,null,null,null,null,null,null,null,null,null,null,null,null,null,null,null,null,null,null,null,null,null,null,null,null,20190110,"09:00:00",null,"XXX",null,null,null,null,null,null,null,null,"X","X"]
[20210110,"10:00:00",null,"","OOPS","",null,null,null,null,null,null,null,null,null,null,null,null,null,null,null,null,null,null,null,null,null,null,null,null,null,null,null,null,null,null,null,null,null,20190110,"10:00:00",null,"XXX",null,null,null,null,null,null,null,null,"X","X"]
[20210110,"11:00:00",null,"","OOPS","",null,null,null,null,null,null,null,null,null,null,null,null,null,null,null,null,null,null,null,null,null,null,null,null,null,null,null,null,null,null,null,null,null,20190110,"11:00:00",null,"XXX",null,null,null,null,null,null,null,null,"X","X"]
[20210110,"12:00:00",null,"","OOPS","",null,null,null,null,null,null,null,null,null,null,null,null,null,null,null,null,null,null,null,null,null,null,null,null,null,null,null,null,null,null,null,null,null,20190110,"12:00:00",null,"XXX",null,null,null,null,null,null,null,null,"X","X"]
[20210110,"13:00:00",null,"","OOPS","",null,null,null,null,null,null,null,null,null,null,null,null,null,null,null,null,null,null,null,null,null,null,null,null,null,null,null,null,null,null,null,null,null,20190110,"13:00:00",null,"XXX",null,null,null,null,null,null,null,null,"X","X"]
[20210110,"14:00:00",null,"","OOPS","",null,null,null,null,null,null,null,null,null,null,null,null,null,null,null,null,null,null,null,null,null,null,null,null,null,null,null,null,null,null,null,null,null,20190110,"14:00:00",null,"XXX",null,null,null,null,null,null,null,null,"X","X"]
[20210110,"15:00:00",null,"","OOPS","",null,null,null,null,null,null,null,null,null,null,null,null,null,null,null,null,null,null,null,null,null,null,null,null,null,null,null,null,null,null,null,null,null,20190110,"15:00:00",null,"XXX",null,null,null,null,null,null,null,null,"X","X"]
[20210110,"16:00:00",null,"","OOPS","",null,null,null,null,null,null,null,null,null,null,null,null,null,null,null,null,null,null,null,null,null,null,null,null,null,null,null,null,null,null,null,null,null,20190110,"16:00:00",null,"XXX",null,null,null,null,null,null,null,null,"X","X"]
[20210110,"17:00:00",null,"","OOPS","",null,null,null,null,null,null,null,null,null,null,null,null,null,null,null,null,null,null,null,null,null,null,null,null,null,null,null,null,null,null,null,null,null,20190110,"17:00:00",null,"XXX",null,null,null,null,null,null,null,null,"X","X"]
[20210110,"18:00:00",null,"","OOPS","",null,null,null,null,null,null,null,null,null,null,null,null,null,null,null,null,null,null,null,null,null,null,null,null,null,null,null,null,null,null,null,null,null,20190110,"18:00:00",null,"XXX",null,null,null,null,null,null,null,null,"X","X"]
[20210110,"19:00:00",null,"","OOPS","",null,null,null,null,null,null,null,null,null,null,null,null,null,null,null,null,null,null,null,null,null,null,null,null,null,null,null,null,null,null,null,null,null,20190110,"19:00:00",null,"XXX",null,null,null,null,null,null,null,null,"X","X"]
[20210110,"20:00:00",null,"","OOPS","",null,null,null,null,null,null,null,null,null,null,null,null,null,null,null,null,null,null,null,null,null,null,null,null,null,null,null,null,null,null,null,null,null,20190110,"20:00:00",null,"XXX",null,null,null,null,null,null,null,null,"X","X"]
[20210110,"21:00:00",null,"","OOPS","",null,null,null,null,null,null,null,null,null,null,null,null,null,null,null,null,null,null,null,null,null,null,null,null,null,null,null,null,null,null,null,null,null,20190110,"21:00:00",null,"XXX",null,null,null,null,null,null,null,null,"X","X"]
[20210110,"22:00:00",null,"","OOPS","",null,null,null,null,null,null,null,null,null,null,null,null,null,null,null,null,null,null,null,null,null,null,null,null,null,null,null,null,null,null,null,null,null,20190110,"22:00:00",null,"XXX",null,null,null,null,null,null,null,null,"X","X"]
[20210110,"23:00:00",null,"","OOPS","",null,null,null,null,null,null,null,null,null,null,null,null,null,null,null,null,null,null,null,null,null,null,null,null,null,null,null,null,null,null,null,null,null,20190110,"23:00:00",null,"XXX",null,null,null,null,null,null,null,null,"X","X"]
[20210111,"00:00:00",null,"","OOPS","",null,null,null,null,null,null,null,null,null,null,null,null,null,null,null,null,null,null,null,null,null,null,null,null,null,null,null,null,null,null,null,null,null,20190111,"00:00:00",null,"XXX",null,null,null,null,null,null,null,null,"X","X"]
[20210111,"01:00:00",null,"","OOPS","",null,null,null,null,null,null,null,null,null,null,null,null,null,null,null,null,null,null,null,null,null,null,null,null,null,null,null,null,null,null,null,null,null,20190111,"01:00:00",null,"XXX",null,null,null,null,null,null,null,null,"X","X"]
[20210111,"02:00:00",null,"","OOPS","",null,null,null,null,null,null,null,null,null,null,null,null,null,null,null,null,null,null,null,null,null,null,null,null,null,null,null,null,null,null,null,null,null,20190111,"02:00:00",null,"XXX",null,null,null,null,null,null,null,null,"X","X"]
[20210111,"03:00:00",null,"","OOPS","",null,null,null,null,null,null,null,null,null,null,null,null,null,null,null,null,null,null,null,null,null,null,null,null,null,null,null,null,null,null,null,null,null,20190111,"03:00:00",null,"XXX",null,null,null,null,null,null,null,null,"X","X"]
[20210111,"04:00:00",null,"","OOPS","",null,null,null,null,null,null,null,null,null,null,null,null,null,null,null,null,null,null,null,null,null,null,null,null,null,null,null,null,null,null,null,null,null,20190111,"04:00:00",null,"XXX",null,null,null,null,null,null,null,null,"X","X"]
[20210111,"05:00:00",null,"","OOPS","",null,null,null,null,null,null,null,null,null,null,null,null,null,null,null,null,null,null,null,null,null,null,null,null,null,null,null,null,null,null,null,null,null,20190111,"05:00:00",null,"XXX",null,null,null,null,null,null,null,null,"X","X"]
[20210111,"06:00:00",null,"","OOPS","",null,null,null,null,null,null,null,null,null,null,null,null,null,null,null,null,null,null,null,null,null,null,null,null,null,null,null,null,null,null,null,null,null,20190111,"06:00:00",null,"XXX",null,null,null,null,null,null,null,null,"X","X"]
[20210111,"07:00:00",null,"","OOPS","",null,null,null,null,null,null,null,null,null,null,null,null,null,null,null,null,null,null,null,null,null,null,null,null,null,null,null,null,null,null,null,null,null,20190111,"07:00:00",null,"XXX",null,null,null,null,null,null,null,null,"X","X"]
[20210111,"08:00:00",null,"","OOPS","",null,null,null,null,null,null,null,null,null,null,null,null,null,null,null,null,null,null,null,null,null,null,null,null,null,null,null,null,null,null,null,null,null,20190111,"08:00:00",null,"XXX",null,null,null,null,null,null,null,null,"X","X"]
[20210111,"09:00:00",null,"","OOPS","",null,null,null,null,null,null,null,null,null,null,null,null,null,null,null,null,null,null,null,null,null,null,null,null,null,null,null,null,null,null,null,null,null,20190111,"09:00:00",null,"XXX",null,null,null,null,null,null,null,null,"X","X"]
[20210111,"10:00:00",null,"","OOPS","",null,null,null,null,null,null,null,null,null,null,null,null,null,null,null,null,null,null,null,null,null,null,null,null,null,null,null,null,null,null,null,null,null,20190111,"10:00:00",null,"XXX",null,null,null,null,null,null,null,null,"X","X"]
[20210111,"11:00:00",null,"","OOPS","",null,null,null,null,null,null,null,null,null,null,null,null,null,null,null,null,null,null,null,null,null,null,null,null,null,null,null,null,null,null,null,null,null,20190111,"11:00:00",null,"XXX",null,null,null,null,null,null,null,null,"X","X"]
[20210111,"12:00:00",null,"","OOPS","",null,null,null,null,null,null,null,null,null,null,null,null,null,null,null,null,null,null,null,null,null,null,null,null,null,null,null,null,null,null,null,null,null,20190111,"12:00:00",null,"XXX",null,null,null,null,null,null,null,null,"X","X"]
[20210111,"13:00:00",null,"","OOPS","",null,null,null,null,null,null,null,null,null,null,null,null,null,null,null,null,null,null,null,null,null,null,null,null,null,null,null,null,null,null,null,null,null,20190111,"13:00:00",null,"XXX",null,null,null,null,null,null,null,null,"X","X"]
[20210111,"14:00:00",null,"","OOPS","",null,null,null,null,null,null,null,null,null,null,null,null,null,null,null,null,null,null,null,null,null,null,null,null,null,null,null,null,null,null,null,null,null,20190111,"14:00:00",null,"XXX",null,null,null,null,null,null,null,null,"X","X"]
[20210111,"15:00:00",null,"","OOPS","",null,null,null,null,null,null,null,null,null,null,null,null,null,null,null,null,null,null,null,null,null,null,null,null,null,null,null,null,null,null,null,null,null,20190111,"15:00:00",null,"XXX",null,null,null,null,null,null,null,null,"X","X"]
[20210111,"16:00:00",null,"","OOPS","",null,null,null,null,null,null,null,null,null,null,null,null,null,null,null,null,null,null,null,null,null,null,null,null,null,null,null,null,null,null,null,null,null,20190111,"16:00:00",null,"XXX",null,null,null,null,null,null,null,null,"X","X"]
[20210111,"17:00:00",null,"","OOPS","",null,null,null,null,null,null,null,null,null,null,null,null,null,null,null,null,null,null,null,null,null,null,null,null,null,null,null,null,null,null,null,null,null,20190111,"17:00:00",null,"XXX",null,null,null,null,null,null,null,null,"X","X"]
[20210111,"18:00:00",null,"","OOPS","",null,null,null,null,null,null,null,null,null,null,null,null,null,null,null,null,null,null,null,null,null,null,null,null,null,null,null,null,null,null,null,null,null,20190111,"18:00:00",null,"XXX",null,null,null,null,null,null,null,null,"X",{"$f":"IF(AO260=\"\",\"\",IF(AO260=AO259,IF(AP260=AP259,\"\",\"X\"),\"X\"))","v":"X"}]
[20210111,"19:00:00",null,"","OOPS","",null,null,null,null,null,null,null,null,null,null,null,null,null,null,null,null,null,null,null,null,null,null,null,null,null,null,null,null,null,null,null,null,null,20190111,"19:00:00",null,"XXX",null,null,null,null,null,null,null,null,"X","X"]
[20210111,"20:00:00",null,"","OOPS","",null,null,null,null,null,null,null,null,null,null,null,null,null,null,null,null,null,null,null,null,null,null,null,null,null,null,null,null,null,null,null,null,null,20190111,"20:00:00",null,"XXX",null,null,null,null,null,null,null,null,"X","X"]
[20210111,"21:00:00",null,"","OOPS","",null,null,null,null,null,null,null,null,null,null,null,null,null,null,null,null,null,null,null,null,null,null,null,null,null,null,null,null,null,null,null,null,null,20190111,"21:00:00",null,"XXX",null,null,null,null,null,null,null,null,"X","X"]
[20210111,"22:00:00",null,"","OOPS","",null,null,null,null,null,null,null,null,null,null,null,null,null,null,null,null,null,null,null,null,null,null,null,null,null,null,null,null,null,null,null,null,null,20190111,"22:00:00",null,"XXX",null,null,null,null,null,null,null,null,"X","X"]
[20210111,"23:00:00",null,"","OOPS","",null,null,null,null,null,null,null,null,null,null,null,null,null,null,null,null,null,null,null,null,null,null,null,null,null,null,null,null,null,null,null,null,null,20190111,"23:00:00",null,"XXX",null,null,null,null,null,null,null,null,"X","X"]
[20210112,"00:00:00",null,"","OOPS","",null,null,null,null,null,null,null,null,null,null,null,null,null,null,null,null,null,null,null,null,null,null,null,null,null,null,null,null,null,null,null,null,null,20190112,"00:00:00",null,"XXX",null,null,null,null,null,null,null,null,"X","X"]
[20210112,"01:00:00",null,"","OOPS","",null,null,null,null,null,null,null,null,null,null,null,null,null,null,null,null,null,null,null,null,null,null,null,null,null,null,null,null,null,null,null,null,null,20190112,"01:00:00",null,"XXX",null,null,null,null,null,null,null,null,"X","X"]
[20210112,"02:00:00",null,"","OOPS","",null,null,null,null,null,null,null,null,null,null,null,null,null,null,null,null,null,null,null,null,null,null,null,null,null,null,null,null,null,null,null,null,null,20190112,"02:00:00",null,"XXX",null,null,null,null,null,null,null,null,"X","X"]
[20210112,"03:00:00",null,"","OOPS","",null,null,null,null,null,null,null,null,null,null,null,null,null,null,null,null,null,null,null,null,null,null,null,null,null,null,null,null,null,null,null,null,null,20190112,"03:00:00",null,"XXX",null,null,null,null,null,null,null,null,"X","X"]
[20210112,"04:00:00",null,"","OOPS","",null,null,null,null,null,null,null,null,null,null,null,null,null,null,null,null,null,null,null,null,null,null,null,null,null,null,null,null,null,null,null,null,null,20190112,"04:00:00",null,"XXX",null,null,null,null,null,null,null,null,"X","X"]
[20210112,"05:00:00",null,"","OOPS","",null,null,null,null,null,null,null,null,null,null,null,null,null,null,null,null,null,null,null,null,null,null,null,null,null,null,null,null,null,null,null,null,null,20190112,"05:00:00",null,"XXX",null,null,null,null,null,null,null,null,"X","X"]
[20210112,"06:00:00",null,"","OOPS","",null,null,null,null,null,null,null,null,null,null,null,null,null,null,null,null,null,null,null,null,null,null,null,null,null,null,null,null,null,null,null,null,null,20190112,"06:00:00",null,"XXX",null,null,null,null,null,null,null,null,"X","X"]
[20210112,"07:00:00",null,"","OOPS","",null,null,null,null,null,null,null,null,null,null,null,null,null,null,null,null,null,null,null,null,null,null,null,null,null,null,null,null,null,null,null,null,null,20190112,"07:00:00",null,"XXX",null,null,null,null,null,null,null,null,"X","X"]
[20210112,"08:00:00",null,"","OOPS","",null,null,null,null,null,null,null,null,null,null,null,null,null,null,null,null,null,null,null,null,null,null,null,null,null,null,null,null,null,null,null,null,null,20190112,"08:00:00",null,"XXX",null,null,null,null,null,null,null,null,"X","X"]
[20210112,"09:00:00",null,{"$f":"IF(C275=AP275,\"\",\"OOPS\")","v":""},{"$f":"IF(A275=AN275,\"\",\"OOPS\")","v":"OOPS"},{"$f":"IF(B275=AO275,\"\",\"OOPS\")","v":""},null,null,null,null,null,null,null,null,null,null,null,null,null,null,null,null,null,null,null,null,null,null,null,null,null,null,null,null,null,null,null,null,null,20190112,"09:00:00",null,"XXX",null,null,null,null,null,null,null,null,"X","X"]
[20210112,"10:00:00",null,"","OOPS","",null,null,null,null,null,null,null,null,null,null,null,null,null,null,null,null,null,null,null,null,null,null,null,null,null,null,null,null,null,null,null,null,null,20190112,"10:00:00",null,"XXX",null,null,null,null,null,null,null,null,"X","X"]
[20210112,"11:00:00",null,"","OOPS","",null,null,null,null,null,null,null,null,null,null,null,null,null,null,null,null,null,null,null,null,null,null,null,null,null,null,null,null,null,null,null,null,null,20190112,"11:00:00",null,"XXX",null,null,null,null,null,null,null,null,"X","X"]
[20210112,"12:00:00",null,"","OOPS","",null,null,null,null,null,null,null,null,null,null,null,null,null,null,null,null,null,null,null,null,null,null,null,null,null,null,null,null,null,null,null,null,null,20190112,"12:00:00",null,"XXX",null,null,null,null,null,null,null,null,"X","X"]
[20210112,"13:00:00",null,"","OOPS","",null,null,null,null,null,null,null,null,null,null,null,null,null,null,null,null,null,null,null,null,null,null,null,null,null,null,null,null,null,null,null,null,null,20190112,"13:00:00",null,"XXX",null,null,null,null,null,null,null,null,"X","X"]
[20210112,"14:00:00",null,"","OOPS","",null,null,null,null,null,null,null,null,null,null,null,null,null,null,null,null,null,null,null,null,null,null,null,null,null,null,null,null,null,null,null,null,null,20190112,"14:00:00",null,"XXX",null,null,null,null,null,null,null,null,"X","X"]
[20210112,"15:00:00",null,"","OOPS","",null,null,null,null,null,null,null,null,null,null,null,null,null,null,null,null,null,null,null,null,null,null,null,null,null,null,null,null,null,null,null,null,null,20190112,"15:00:00",null,"XXX",null,null,null,null,null,null,null,null,"X","X"]
[20210112,"16:00:00",null,"","OOPS","",null,null,null,null,null,null,null,null,null,null,null,null,null,null,null,null,null,null,null,null,null,null,null,null,null,null,null,null,null,null,null,null,null,20190112,"16:00:00",null,"XXX",null,null,null,null,null,null,null,null,"X","X"]
[20210112,"17:00:00",null,"","OOPS","",null,null,null,null,null,null,null,null,null,null,null,null,null,null,null,null,null,null,null,null,null,null,null,null,null,null,null,null,null,null,null,null,null,20190112,"17:00:00",null,"XXX",null,null,null,null,null,null,null,null,"X","X"]
[20210112,"18:00:00",null,"","OOPS","",null,null,null,null,null,null,null,null,null,null,null,null,null,null,null,null,null,null,null,null,null,null,null,null,null,null,null,null,null,null,null,null,null,20190112,"18:00:00",null,"XXX",null,null,null,null,null,null,null,null,"X","X"]
[20210112,"19:00:00",null,"","OOPS","",null,null,null,null,null,null,null,null,null,null,null,null,null,null,null,null,null,null,null,null,null,null,null,null,null,null,null,null,null,null,null,null,null,20190112,"19:00:00",null,"XXX",null,null,null,null,null,null,null,null,"X","X"]
[20210112,"20:00:00",null,"","OOPS","",null,null,null,null,null,null,null,null,null,null,null,null,null,null,null,null,null,null,null,null,null,null,null,null,null,null,null,null,null,null,null,null,null,20190112,"20:00:00",null,"XXX",null,null,null,null,null,null,null,null,"X","X"]
[20210112,"21:00:00",null,"","OOPS","",null,null,null,null,null,null,null,null,null,null,null,null,null,null,null,null,null,null,null,null,null,null,null,null,null,null,null,null,null,null,null,null,null,20190112,"21:00:00",null,"XXX",null,null,null,null,null,null,null,null,"X","X"]
[20210112,"22:00:00",null,"","OOPS","",null,null,null,null,null,null,null,null,null,null,null,null,null,null,null,null,null,null,null,null,null,null,null,null,null,null,null,null,null,null,null,null,null,20190112,"22:00:00",null,"XXX",null,null,null,null,null,null,null,null,"X","X"]
[20210112,"23:00:00",null,"","OOPS","",null,null,null,null,null,null,null,null,null,null,null,null,null,null,null,null,null,null,null,null,null,null,null,null,null,null,null,null,null,null,null,null,null,20190112,"23:00:00",null,"XXX",null,null,null,null,null,null,null,null,"X","X"]
[20210113,"00:00:00",null,"","OOPS","",null,null,null,null,null,null,null,null,null,null,null,null,null,null,null,null,null,null,null,null,null,null,null,null,null,null,null,null,null,null,null,null,null,20190113,"00:00:00",null,"XXX",null,null,null,null,null,null,null,null,"X","X"]
[20210113,"01:00:00",null,"","OOPS","",null,null,null,null,null,null,null,null,null,null,null,null,null,null,null,null,null,null,null,null,null,null,null,null,null,null,null,null,null,null,null,null,null,20190113,"01:00:00",null,"XXX",null,null,null,null,null,null,null,null,"X","X"]
[20210113,"02:00:00",null,"","OOPS","",null,null,null,null,null,null,null,null,null,null,null,null,null,null,null,null,null,null,null,null,null,null,null,null,null,null,null,null,null,null,null,null,null,20190113,"02:00:00",null,"XXX",null,null,null,null,null,null,null,null,"X","X"]
[20210113,"03:00:00",null,"","OOPS","",null,null,null,null,null,null,null,null,null,null,null,null,null,null,null,null,null,null,null,null,null,null,null,null,null,null,null,null,null,null,null,null,null,20190113,"03:00:00",null,"XXX",null,null,null,null,null,null,null,null,"X","X"]
[20210113,"04:00:00",null,"","OOPS","",null,null,null,null,null,null,null,null,null,null,null,null,null,null,null,null,null,null,null,null,null,null,null,null,null,null,null,null,null,null,null,null,null,20190113,"04:00:00",null,"XXX",null,null,null,null,null,null,null,null,"X","X"]
[20210113,"05:00:00",null,"","OOPS","",null,null,null,null,null,null,null,null,null,null,null,null,null,null,null,null,null,null,null,null,null,null,null,null,null,null,null,null,null,null,null,null,null,20190113,"05:00:00",null,"XXX",null,null,null,null,null,null,null,null,"X","X"]
[20210113,"06:00:00",null,"","OOPS","",null,null,null,null,null,null,null,null,null,null,null,null,null,null,null,null,null,null,null,null,null,null,null,null,null,null,null,null,null,null,null,null,null,20190113,"06:00:00",null,"XXX",null,null,null,null,null,null,null,null,"X","X"]
[20210113,"07:00:00",null,"","OOPS","",null,null,null,null,null,null,null,null,null,null,null,null,null,null,null,null,null,null,null,null,null,null,null,null,null,null,null,null,null,null,null,null,null,20190113,"07:00:00",null,"XXX",null,null,null,null,null,null,null,null,"X","X"]
[20210113,"08:00:00",null,"","OOPS","",null,null,null,null,null,null,null,null,null,null,null,null,null,null,null,null,null,null,null,null,null,null,null,null,null,null,null,null,null,null,null,null,null,20190113,"08:00:00",null,"XXX",null,null,null,null,null,null,null,null,"X","X"]
[20210113,"09:00:00",null,"","OOPS","",null,null,null,null,null,null,null,null,null,null,null,null,null,null,null,null,null,null,null,null,null,null,null,null,null,null,null,null,null,null,null,null,null,20190113,"09:00:00",null,"XXX",null,null,null,null,null,null,null,null,"X","X"]
[20210113,"10:00:00",null,"","OOPS","",null,null,null,null,null,null,null,null,null,null,null,null,null,null,null,null,null,null,null,null,null,null,null,null,null,null,null,null,null,null,null,null,null,20190113,"10:00:00",null,"XXX",null,null,null,null,null,null,null,null,"X","X"]
[20210113,"11:00:00",null,"","OOPS","",null,null,null,null,null,null,null,null,null,null,null,null,null,null,null,null,null,null,null,null,null,null,null,null,null,null,null,null,null,null,null,null,null,20190113,"11:00:00",null,"XXX",null,null,null,null,null,null,null,null,"X","X"]
[20210113,"12:00:00",null,"","OOPS","",null,null,null,null,null,null,null,null,null,null,null,null,null,null,null,null,null,null,null,null,null,null,null,null,null,null,null,null,null,null,null,null,null,20190113,"12:00:00",null,"XXX",null,null,null,null,null,null,null,null,"X","X"]
[20210113,"13:00:00",null,"","OOPS","",null,null,null,null,null,null,null,null,null,null,null,null,null,null,null,null,null,null,null,null,null,null,null,null,null,null,null,null,null,null,null,null,null,20190113,"13:00:00",null,"XXX",null,null,null,null,null,null,null,null,"X","X"]
[20210113,"14:00:00",null,"","OOPS","",null,null,null,null,null,null,null,null,null,null,null,null,null,null,null,null,null,null,null,null,null,null,null,null,null,null,null,null,null,null,null,null,null,20190113,"14:00:00",null,"XXX",null,null,null,null,null,null,null,null,"X","X"]
[20210113,"15:00:00",null,"","OOPS","",null,null,null,null,null,null,null,null,null,null,null,null,null,null,null,null,null,null,null,null,null,null,null,null,null,null,null,null,null,null,null,null,null,20190113,"15:00:00",null,"XXX",null,null,null,null,null,null,null,null,"X","X"]
[20210113,"16:00:00",null,"","OOPS","",null,null,null,null,null,null,null,null,null,null,null,null,null,null,null,null,null,null,null,null,null,null,null,null,null,null,null,null,null,null,null,null,null,20190113,"16:00:00",null,"XXX",null,null,null,null,null,null,null,null,"X","X"]
[20210113,"17:00:00",null,"","OOPS","",null,null,null,null,null,null,null,null,null,null,null,null,null,null,null,null,null,null,null,null,null,null,null,null,null,null,null,null,null,null,null,null,null,20190113,"17:00:00",null,"XXX",null,null,null,null,null,null,null,null,"X","X"]
[20210113,"18:00:00",null,"","OOPS","",null,null,null,null,null,null,null,null,null,null,null,null,null,null,null,null,null,null,null,null,null,null,null,null,null,null,null,null,null,null,null,null,null,20190113,"18:00:00",null,"XXX",null,null,null,null,null,null,null,null,"X","X"]
[20210113,"19:00:00",null,"","OOPS","",null,null,null,null,null,null,null,null,null,null,null,null,null,null,null,null,null,null,null,null,null,null,null,null,null,null,null,null,null,null,null,null,null,20190113,"19:00:00",null,"XXX",null,null,null,null,null,null,null,null,"X","X"]
[20210113,"20:00:00",null,"","OOPS","",null,null,null,null,null,null,null,null,null,null,null,null,null,null,null,null,null,null,null,null,null,null,null,null,null,null,null,null,null,null,null,null,null,20190113,"20:00:00",null,"XXX",null,null,null,null,null,null,null,null,"X","X"]
[20210113,"21:00:00",null,"","OOPS","",null,null,null,null,null,null,null,null,null,null,null,null,null,null,null,null,null,null,null,null,null,null,null,null,null,null,null,null,null,null,null,null,null,20190113,"21:00:00",null,"XXX",null,null,null,null,null,null,null,null,"X","X"]
[20210113,"22:00:00",null,"","OOPS","",null,null,null,null,null,null,null,null,null,null,null,null,null,null,null,null,null,null,null,null,null,null,null,null,null,null,null,null,null,null,null,null,null,20190113,"22:00:00",null,"XXX",null,null,null,null,null,null,null,null,"X","X"]
[20210113,"23:00:00",null,"","OOPS","",null,null,null,null,null,null,null,null,null,null,null,null,null,null,null,null,null,null,null,null,null,null,null,null,null,null,null,null,null,null,null,null,null,20190113,"23:00:00",null,"XXX",null,null,null,null,null,null,null,null,"X","X"]
[20210114,"00:00:00",null,"","OOPS","",null,null,null,null,null,null,null,null,null,null,null,null,null,null,null,null,null,null,null,null,null,null,null,null,null,null,null,null,null,null,null,null,null,20190114,"00:00:00",null,"XXX",null,null,null,null,null,null,null,null,"X","X"]
[20210114,"01:00:00",null,"","OOPS","",null,null,null,null,null,null,null,null,null,null,null,null,null,null,null,null,null,null,null,null,null,null,null,null,null,null,null,null,null,null,null,null,null,20190114,"01:00:00",null,"XXX",null,null,null,null,null,null,null,null,"X","X"]
[20210114,"02:00:00",null,"","OOPS","",null,null,null,null,null,null,null,null,null,null,null,null,null,null,null,null,null,null,null,null,null,null,null,null,null,null,null,null,null,null,null,null,null,20190114,"02:00:00",null,"XXX",null,null,null,null,null,null,null,null,"X","X"]
[20210114,"03:00:00",null,"","OOPS","",null,null,null,null,null,null,null,null,null,null,null,null,null,null,null,null,null,null,null,null,null,null,null,null,null,null,null,null,null,null,null,null,null,20190114,"03:00:00",null,"XXX",null,null,null,null,null,null,null,null,"X","X"]
[20210114,"04:00:00",null,"","OOPS","",null,null,null,null,null,null,null,null,null,null,null,null,null,null,null,null,null,null,null,null,null,null,null,null,null,null,null,null,null,null,null,null,null,20190114,"04:00:00",null,"XXX",null,null,null,null,null,null,null,null,"X","X"]
[20210114,"05:00:00",null,"","OOPS","",null,null,null,null,null,null,null,null,null,null,null,null,null,null,null,null,null,null,null,null,null,null,null,null,null,null,null,null,null,null,null,null,null,20190114,"05:00:00",null,"XXX",null,null,null,null,null,null,null,null,"X","X"]
[20210114,"06:00:00",null,"","OOPS","",null,null,null,null,null,null,null,null,null,null,null,null,null,null,null,null,null,null,null,null,null,null,null,null,null,null,null,null,null,null,null,null,null,20190114,"06:00:00",null,"XXX",null,null,null,null,null,null,null,null,"X","X"]
[20210114,"07:00:00",null,"","OOPS","",null,null,null,null,null,null,null,null,null,null,null,null,null,null,null,null,null,null,null,null,null,null,null,null,null,null,null,null,null,null,null,null,null,20190114,"07:00:00",null,"XXX",null,null,null,null,null,null,null,null,"X","X"]
[20210114,"08:00:00",null,"","OOPS","",null,null,null,null,null,null,null,null,null,null,null,null,null,null,null,null,null,null,null,null,null,null,null,null,null,null,null,null,null,null,null,null,null,20190114,"08:00:00",null,"XXX",null,null,null,null,null,null,null,null,"X","X"]
[20210114,"09:00:00",null,"","OOPS","",null,null,null,null,null,null,null,null,null,null,null,null,null,null,null,null,null,null,null,null,null,null,null,null,null,null,null,null,null,null,null,null,null,20190114,"09:00:00",null,"XXX",null,null,null,null,null,null,null,null,"X","X"]
[20210114,"10:00:00",null,"","OOPS","",null,null,null,null,null,null,null,null,null,null,null,null,null,null,null,null,null,null,null,null,null,null,null,null,null,null,null,null,null,null,null,null,null,20190114,"10:00:00",null,"XXX",null,null,null,null,null,null,null,null,"X",{"$f":"IF(AO324=\"\",\"\",IF(AO324=AO323,IF(AP324=AP323,\"\",\"X\"),\"X\"))","v":"X"}]
[20210114,"11:00:00",null,"","OOPS","",null,null,null,null,null,null,null,null,null,null,null,null,null,null,null,null,null,null,null,null,null,null,null,null,null,null,null,null,null,null,null,null,null,20190114,"11:00:00",null,"XXX",null,null,null,null,null,null,null,null,"X","X"]
[20210114,"12:00:00",null,"","OOPS","",null,null,null,null,null,null,null,null,null,null,null,null,null,null,null,null,null,null,null,null,null,null,null,null,null,null,null,null,null,null,null,null,null,20190114,"12:00:00",null,"XXX",null,null,null,null,null,null,null,null,"X","X"]
[20210114,"13:00:00",null,"","OOPS","",null,null,null,null,null,null,null,null,null,null,null,null,null,null,null,null,null,null,null,null,null,null,null,null,null,null,null,null,null,null,null,null,null,20190114,"13:00:00",null,"XXX",null,null,null,null,null,null,null,null,"X","X"]
[20210114,"14:00:00",null,"","OOPS","",null,null,null,null,null,null,null,null,null,null,null,null,null,null,null,null,null,null,null,null,null,null,null,null,null,null,null,null,null,null,null,null,null,20190114,"14:00:00",null,"XXX",null,null,null,null,null,null,null,null,"X","X"]
[20210114,"15:00:00",null,"","OOPS","",null,null,null,null,null,null,null,null,null,null,null,null,null,null,null,null,null,null,null,null,null,null,null,null,null,null,null,null,null,null,null,null,null,20190114,"15:00:00",null,"XXX",null,null,null,null,null,null,null,null,"X","X"]
[20210114,"16:00:00",null,"","OOPS","",null,null,null,null,null,null,null,null,null,null,null,null,null,null,null,null,null,null,null,null,null,null,null,null,null,null,null,null,null,null,null,null,null,20190114,"16:00:00",null,"XXX",null,null,null,null,null,null,null,null,"X","X"]
[20210114,"17:00:00",null,"","OOPS","",null,null,null,null,null,null,null,null,null,null,null,null,null,null,null,null,null,null,null,null,null,null,null,null,null,null,null,null,null,null,null,null,null,20190114,"17:00:00",null,"XXX",null,null,null,null,null,null,null,null,"X","X"]
[20210114,"18:00:00",null,"","OOPS","",null,null,null,null,null,null,null,null,null,null,null,null,null,null,null,null,null,null,null,null,null,null,null,null,null,null,null,null,null,null,null,null,null,20190114,"18:00:00",null,"XXX",null,null,null,null,null,null,null,null,"X","X"]
[20210114,"19:00:00",null,"","OOPS","",null,null,null,null,null,null,null,null,null,null,null,null,null,null,null,null,null,null,null,null,null,null,null,null,null,null,null,null,null,null,null,null,null,20190114,"19:00:00",null,"XXX",null,null,null,null,null,null,null,null,"X","X"]
[20210114,"20:00:00",null,"","OOPS","",null,null,null,null,null,null,null,null,null,null,null,null,null,null,null,null,null,null,null,null,null,null,null,null,null,null,null,null,null,null,null,null,null,20190114,"20:00:00",null,"XXX",null,null,null,null,null,null,null,null,"X","X"]
[20210114,"21:00:00",null,"","OOPS","",null,null,null,null,null,null,null,null,null,null,null,null,null,null,null,null,null,null,null,null,null,null,null,null,null,null,null,null,null,null,null,null,null,20190114,"21:00:00",null,"XXX",null,null,null,null,null,null,null,null,"X","X"]
[20210114,"22:00:00",null,"","OOPS","",null,null,null,null,null,null,null,null,null,null,null,null,null,null,null,null,null,null,null,null,null,null,null,null,null,null,null,null,null,null,null,null,null,20190114,"22:00:00",null,"XXX",null,null,null,null,null,null,null,null,"X","X"]
[20210114,"23:00:00",null,"","OOPS","",null,null,null,null,null,null,null,null,null,null,null,null,null,null,null,null,null,null,null,null,null,null,null,null,null,null,null,null,null,null,null,null,null,20190114,"23:00:00",null,"XXX",null,null,null,null,null,null,null,null,"X","X"]
[20210115,"00:00:00",null,"","OOPS","",null,null,null,null,null,null,null,null,null,null,null,null,null,null,null,null,null,null,null,null,null,null,null,null,null,null,null,null,null,null,null,null,null,20190115,"00:00:00",null,"XXX",null,null,null,null,null,null,null,null,"X","X"]
[20210115,"01:00:00",null,{"$f":"IF(C339=AP339,\"\",\"OOPS\")","v":""},{"$f":"IF(A339=AN339,\"\",\"OOPS\")","v":"OOPS"},{"$f":"IF(B339=AO339,\"\",\"OOPS\")","v":""},null,null,null,null,null,null,null,null,null,null,null,null,null,null,null,null,null,null,null,null,null,null,null,null,null,null,null,null,null,null,null,null,null,20190115,"01:00:00",null,"XXX",null,null,null,null,null,null,null,null,"X","X"]
[20210115,"02:00:00",null,"","OOPS","",null,null,null,null,null,null,null,null,null,null,null,null,null,null,null,null,null,null,null,null,null,null,null,null,null,null,null,null,null,null,null,null,null,20190115,"02:00:00",null,"XXX",null,null,null,null,null,null,null,null,"X","X"]
[20210115,"03:00:00",null,"","OOPS","",null,null,null,null,null,null,null,null,null,null,null,null,null,null,null,null,null,null,null,null,null,null,null,null,null,null,null,null,null,null,null,null,null,20190115,"03:00:00",null,"XXX",null,null,null,null,null,null,null,null,"X","X"]
[20210115,"04:00:00",null,"","OOPS","",null,null,null,null,null,null,null,null,null,null,null,null,null,null,null,null,null,null,null,null,null,null,null,null,null,null,null,null,null,null,null,null,null,20190115,"04:00:00",null,"XXX",null,null,null,null,null,null,null,null,"X","X"]
[20210115,"05:00:00",null,"","OOPS","",null,null,null,null,null,null,null,null,null,null,null,null,null,null,null,null,null,null,null,null,null,null,null,null,null,null,null,null,null,null,null,null,null,20190115,"05:00:00",null,"XXX",null,null,null,null,null,null,null,null,"X","X"]
[20210115,"06:00:00",null,"","OOPS","",null,null,null,null,null,null,null,null,null,null,null,null,null,null,null,null,null,null,null,null,null,null,null,null,null,null,null,null,null,null,null,null,null,20190115,"06:00:00",null,"XXX",null,null,null,null,null,null,null,null,"X","X"]
[20210115,"07:00:00",null,"","OOPS","",null,null,null,null,null,null,null,null,null,null,null,null,null,null,null,null,null,null,null,null,null,null,null,null,null,null,null,null,null,null,null,null,null,20190115,"07:00:00",null,"XXX",null,null,null,null,null,null,null,null,"X","X"]
[20210115,"08:00:00",null,"","OOPS","",null,null,null,null,null,null,null,null,null,null,null,null,null,null,null,null,null,null,null,null,null,null,null,null,null,null,null,null,null,null,null,null,null,20190115,"08:00:00",null,"XXX",null,null,null,null,null,null,null,null,"X","X"]
[20210115,"09:00:00",null,"","OOPS","",null,null,null,null,null,null,null,null,null,null,null,null,null,null,null,null,null,null,null,null,null,null,null,null,null,null,null,null,null,null,null,null,null,20190115,"09:00:00",null,"XXX",null,null,null,null,null,null,null,null,"X","X"]
[20210115,"10:00:00",null,"","OOPS","",null,null,null,null,null,null,null,null,null,null,null,null,null,null,null,null,null,null,null,null,null,null,null,null,null,null,null,null,null,null,null,null,null,20190115,"10:00:00",null,"XXX",null,null,null,null,null,null,null,null,"X","X"]
[20210115,"11:00:00",null,"","OOPS","",null,null,null,null,null,null,null,null,null,null,null,null,null,null,null,null,null,null,null,null,null,null,null,null,null,null,null,null,null,null,null,null,null,20190115,"11:00:00",null,"XXX",null,null,null,null,null,null,null,null,"X","X"]
[20210115,"12:00:00",null,"","OOPS","",null,null,null,null,null,null,null,null,null,null,null,null,null,null,null,null,null,null,null,null,null,null,null,null,null,null,null,null,null,null,null,null,null,20190115,"12:00:00",null,"XXX",null,null,null,null,null,null,null,null,"X","X"]
[20210115,"13:00:00",null,"","OOPS","",null,null,null,null,null,null,null,null,null,null,null,null,null,null,null,null,null,null,null,null,null,null,null,null,null,null,null,null,null,null,null,null,null,20190115,"13:00:00",null,"XXX",null,null,null,null,null,null,null,null,"X","X"]
[20210115,"14:00:00",null,"","OOPS","",null,null,null,null,null,null,null,null,null,null,null,null,null,null,null,null,null,null,null,null,null,null,null,null,null,null,null,null,null,null,null,null,null,20190115,"14:00:00",null,"XXX",null,null,null,null,null,null,null,null,"X","X"]
[20210115,"15:00:00",null,"","OOPS","",null,null,null,null,null,null,null,null,null,null,null,null,null,null,null,null,null,null,null,null,null,null,null,null,null,null,null,null,null,null,null,null,null,20190115,"15:00:00",null,"XXX",null,null,null,null,null,null,null,null,"X","X"]
[20210115,"16:00:00",null,"","OOPS","",null,null,null,null,null,null,null,null,null,null,null,null,null,null,null,null,null,null,null,null,null,null,null,null,null,null,null,null,null,null,null,null,null,20190115,"16:00:00",null,"XXX",null,null,null,null,null,null,null,null,"X","X"]
[20210115,"17:00:00",null,"","OOPS","",null,null,null,null,null,null,null,null,null,null,null,null,null,null,null,null,null,null,null,null,null,null,null,null,null,null,null,null,null,null,null,null,null,20190115,"17:00:00",null,"XXX",null,null,null,null,null,null,null,null,"X","X"]
[20210115,"18:00:00",null,"","OOPS","",null,null,null,null,null,null,null,null,null,null,null,null,null,null,null,null,null,null,null,null,null,null,null,null,null,null,null,null,null,null,null,null,null,20190115,"18:00:00",null,"XXX",null,null,null,null,null,null,null,null,"X","X"]
[20210115,"19:00:00",null,"","OOPS","",null,null,null,null,null,null,null,null,null,null,null,null,null,null,null,null,null,null,null,null,null,null,null,null,null,null,null,null,null,null,null,null,null,20190115,"19:00:00",null,"XXX",null,null,null,null,null,null,null,null,"X","X"]
[20210115,"20:00:00",null,"","OOPS","",null,null,null,null,null,null,null,null,null,null,null,null,null,null,null,null,null,null,null,null,null,null,null,null,null,null,null,null,null,null,null,null,null,20190115,"20:00:00",null,"XXX",null,null,null,null,null,null,null,null,"X","X"]
[20210115,"21:00:00",null,"","OOPS","",null,null,null,null,null,null,null,null,null,null,null,null,null,null,null,null,null,null,null,null,null,null,null,null,null,null,null,null,null,null,null,null,null,20190115,"21:00:00",null,"XXX",null,null,null,null,null,null,null,null,"X","X"]
[20210115,"22:00:00",null,"","OOPS","",null,null,null,null,null,null,null,null,null,null,null,null,null,null,null,null,null,null,null,null,null,null,null,null,null,null,null,null,null,null,null,null,null,20190115,"22:00:00",null,"XXX",null,null,null,null,null,null,null,null,"X","X"]
[20210115,"23:00:00",null,"","OOPS","",null,null,null,null,null,null,null,null,null,null,null,null,null,null,null,null,null,null,null,null,null,null,null,null,null,null,null,null,null,null,null,null,null,20190115,"23:00:00",null,"XXX",null,null,null,null,null,null,null,null,"X","X"]
[20210116,"00:00:00",null,"","OOPS","",null,null,null,null,null,null,null,null,null,null,null,null,null,null,null,null,null,null,null,null,null,null,null,null,null,null,null,null,null,null,null,null,null,20190116,"00:00:00",null,"XXX",null,null,null,null,null,null,null,null,"X","X"]
[20210116,"01:00:00",null,"","OOPS","",null,null,null,null,null,null,null,null,null,null,null,null,null,null,null,null,null,null,null,null,null,null,null,null,null,null,null,null,null,null,null,null,null,20190116,"01:00:00",null,"XXX",null,null,null,null,null,null,null,null,"X","X"]
[20210116,"02:00:00",null,"","OOPS","",null,null,null,null,null,null,null,null,null,null,null,null,null,null,null,null,null,null,null,null,null,null,null,null,null,null,null,null,null,null,null,null,null,20190116,"02:00:00",null,"XXX",null,null,null,null,null,null,null,null,"X","X"]
[20210116,"03:00:00",null,"","OOPS","",null,null,null,null,null,null,null,null,null,null,null,null,null,null,null,null,null,null,null,null,null,null,null,null,null,null,null,null,null,null,null,null,null,20190116,"03:00:00",null,"XXX",null,null,null,null,null,null,null,null,"X","X"]
[20210116,"04:00:00",null,"","OOPS","",null,null,null,null,null,null,null,null,null,null,null,null,null,null,null,null,null,null,null,null,null,null,null,null,null,null,null,null,null,null,null,null,null,20190116,"04:00:00",null,"XXX",null,null,null,null,null,null,null,null,"X","X"]
[20210116,"05:00:00",null,"","OOPS","",null,null,null,null,null,null,null,null,null,null,null,null,null,null,null,null,null,null,null,null,null,null,null,null,null,null,null,null,null,null,null,null,null,20190116,"05:00:00",null,"XXX",null,null,null,null,null,null,null,null,"X","X"]
[20210116,"06:00:00",null,"","OOPS","",null,null,null,null,null,null,null,null,null,null,null,null,null,null,null,null,null,null,null,null,null,null,null,null,null,null,null,null,null,null,null,null,null,20190116,"06:00:00",null,"XXX",null,null,null,null,null,null,null,null,"X","X"]
[20210116,"07:00:00",null,"","OOPS","",null,null,null,null,null,null,null,null,null,null,null,null,null,null,null,null,null,null,null,null,null,null,null,null,null,null,null,null,null,null,null,null,null,20190116,"07:00:00",null,"XXX",null,null,null,null,null,null,null,null,"X","X"]
[20210116,"08:00:00",null,"","OOPS","",null,null,null,null,null,null,null,null,null,null,null,null,null,null,null,null,null,null,null,null,null,null,null,null,null,null,null,null,null,null,null,null,null,20190116,"08:00:00",null,"XXX",null,null,null,null,null,null,null,null,"X","X"]
[20210116,"09:00:00",null,"","OOPS","",null,null,null,null,null,null,null,null,null,null,null,null,null,null,null,null,null,null,null,null,null,null,null,null,null,null,null,null,null,null,null,null,null,20190116,"09:00:00",null,"XXX",null,null,null,null,null,null,null,null,"X","X"]
[20210116,"10:00:00",null,"","OOPS","",null,null,null,null,null,null,null,null,null,null,null,null,null,null,null,null,null,null,null,null,null,null,null,null,null,null,null,null,null,null,null,null,null,20190116,"10:00:00",null,"XXX",null,null,null,null,null,null,null,null,"X","X"]
[20210116,"11:00:00",null,"","OOPS","",null,null,null,null,null,null,null,null,null,null,null,null,null,null,null,null,null,null,null,null,null,null,null,null,null,null,null,null,null,null,null,null,null,20190116,"11:00:00",null,"XXX",null,null,null,null,null,null,null,null,"X","X"]
[20210116,"12:00:00",null,"","OOPS","",null,null,null,null,null,null,null,null,null,null,null,null,null,null,null,null,null,null,null,null,null,null,null,null,null,null,null,null,null,null,null,null,null,20190116,"12:00:00",null,"XXX",null,null,null,null,null,null,null,null,"X","X"]
[20210116,"13:00:00",null,"","OOPS","",null,null,null,null,null,null,null,null,null,null,null,null,null,null,null,null,null,null,null,null,null,null,null,null,null,null,null,null,null,null,null,null,null,20190116,"13:00:00",null,"XXX",null,null,null,null,null,null,null,null,"X","X"]
[20210116,"14:00:00",null,"","OOPS","",null,null,null,null,null,null,null,null,null,null,null,null,null,null,null,null,null,null,null,null,null,null,null,null,null,null,null,null,null,null,null,null,null,20190116,"14:00:00",null,"XXX",null,null,null,null,null,null,null,null,"X","X"]
[20210116,"15:00:00",null,"","OOPS","",null,null,null,null,null,null,null,null,null,null,null,null,null,null,null,null,null,null,null,null,null,null,null,null,null,null,null,null,null,null,null,null,null,20190116,"15:00:00",null,"XXX",null,null,null,null,null,null,null,null,"X","X"]
[20210116,"16:00:00",null,"","OOPS","",null,null,null,null,null,null,null,null,null,null,null,null,null,null,null,null,null,null,null,null,null,null,null,null,null,null,null,null,null,null,null,null,null,20190116,"16:00:00",null,"XXX",null,null,null,null,null,null,null,null,"X","X"]
[20210116,"17:00:00",null,"","OOPS","",null,null,null,null,null,null,null,null,null,null,null,null,null,null,null,null,null,null,null,null,null,null,null,null,null,null,null,null,null,null,null,null,null,20190116,"17:00:00",null,"XXX",null,null,null,null,null,null,null,null,"X","X"]
[20210116,"18:00:00",null,"","OOPS","",null,null,null,null,null,null,null,null,null,null,null,null,null,null,null,null,null,null,null,null,null,null,null,null,null,null,null,null,null,null,null,null,null,20190116,"18:00:00",null,"XXX",null,null,null,null,null,null,null,null,"X","X"]
[20210116,"19:00:00",null,"","OOPS","",null,null,null,null,null,null,null,null,null,null,null,null,null,null,null,null,null,null,null,null,null,null,null,null,null,null,null,null,null,null,null,null,null,20190116,"19:00:00",null,"XXX",null,null,null,null,null,null,null,null,"X","X"]
[20210116,"20:00:00",null,"","OOPS","",null,null,null,null,null,null,null,null,null,null,null,null,null,null,null,null,null,null,null,null,null,null,null,null,null,null,null,null,null,null,null,null,null,20190116,"20:00:00",null,"XXX",null,null,null,null,null,null,null,null,"X","X"]
[20210116,"21:00:00",null,"","OOPS","",null,null,null,null,null,null,null,null,null,null,null,null,null,null,null,null,null,null,null,null,null,null,null,null,null,null,null,null,null,null,null,null,null,20190116,"21:00:00",null,"XXX",null,null,null,null,null,null,null,null,"X","X"]
[20210116,"22:00:00",null,"","OOPS","",null,null,null,null,null,null,null,null,null,null,null,null,null,null,null,null,null,null,null,null,null,null,null,null,null,null,null,null,null,null,null,null,null,20190116,"22:00:00",null,"XXX",null,null,null,null,null,null,null,null,"X","X"]
[20210116,"23:00:00",null,"","OOPS","",null,null,null,null,null,null,null,null,null,null,null,null,null,null,null,null,null,null,null,null,null,null,null,null,null,null,null,null,null,null,null,null,null,20190116,"23:00:00",null,"XXX",null,null,null,null,null,null,null,null,"X","X"]
[20210117,"00:00:00",null,"","OOPS","",null,null,null,null,null,null,null,null,null,null,null,null,null,null,null,null,null,null,null,null,null,null,null,null,null,null,null,null,null,null,null,null,null,20190117,"00:00:00",null,"XXX",null,null,null,null,null,null,null,null,"X","X"]
[20210117,"01:00:00",null,"","OOPS","",null,null,null,null,null,null,null,null,null,null,null,null,null,null,null,null,null,null,null,null,null,null,null,null,null,null,null,null,null,null,null,null,null,20190117,"01:00:00",null,"XXX",null,null,null,null,null,null,null,null,"X","X"]
[20210117,"02:00:00",null,"","OOPS","",null,null,null,null,null,null,null,null,null,null,null,null,null,null,null,null,null,null,null,null,null,null,null,null,null,null,null,null,null,null,null,null,null,20190117,"02:00:00",null,"XXX",null,null,null,null,null,null,null,null,"X",{"$f":"IF(AO388=\"\",\"\",IF(AO388=AO387,IF(AP388=AP387,\"\",\"X\"),\"X\"))","v":"X"}]
[20210117,"03:00:00",null,"","OOPS","",null,null,null,null,null,null,null,null,null,null,null,null,null,null,null,null,null,null,null,null,null,null,null,null,null,null,null,null,null,null,null,null,null,20190117,"03:00:00",null,"XXX",null,null,null,null,null,null,null,null,"X","X"]
[20210117,"04:00:00",null,"","OOPS","",null,null,null,null,null,null,null,null,null,null,null,null,null,null,null,null,null,null,null,null,null,null,null,null,null,null,null,null,null,null,null,null,null,20190117,"04:00:00",null,"XXX",null,null,null,null,null,null,null,null,"X","X"]
[20210117,"05:00:00",null,"","OOPS","",null,null,null,null,null,null,null,null,null,null,null,null,null,null,null,null,null,null,null,null,null,null,null,null,null,null,null,null,null,null,null,null,null,20190117,"05:00:00",null,"XXX",null,null,null,null,null,null,null,null,"X","X"]
[20210117,"06:00:00",null,"","OOPS","",null,null,null,null,null,null,null,null,null,null,null,null,null,null,null,null,null,null,null,null,null,null,null,null,null,null,null,null,null,null,null,null,null,20190117,"06:00:00",null,"XXX",null,null,null,null,null,null,null,null,"X","X"]
[20210117,"07:00:00",null,"","OOPS","",null,null,null,null,null,null,null,null,null,null,null,null,null,null,null,null,null,null,null,null,null,null,null,null,null,null,null,null,null,null,null,null,null,20190117,"07:00:00",null,"XXX",null,null,null,null,null,null,null,null,"X","X"]
[20210117,"08:00:00",null,"","OOPS","",null,null,null,null,null,null,null,null,null,null,null,null,null,null,null,null,null,null,null,null,null,null,null,null,null,null,null,null,null,null,null,null,null,20190117,"08:00:00",null,"XXX",null,null,null,null,null,null,null,null,"X","X"]
[20210117,"09:00:00",null,"","OOPS","",null,null,null,null,null,null,null,null,null,null,null,null,null,null,null,null,null,null,null,null,null,null,null,null,null,null,null,null,null,null,null,null,null,20190117,"09:00:00",null,"XXX",null,null,null,null,null,null,null,null,"X","X"]
[20210117,"10:00:00",null,"","OOPS","",null,null,null,null,null,null,null,null,null,null,null,null,null,null,null,null,null,null,null,null,null,null,null,null,null,null,null,null,null,null,null,null,null,20190117,"10:00:00",null,"XXX",null,null,null,null,null,null,null,null,"X","X"]
[20210117,"11:00:00",null,"","OOPS","",null,null,null,null,null,null,null,null,null,null,null,null,null,null,null,null,null,null,null,null,null,null,null,null,null,null,null,null,null,null,null,null,null,20190117,"11:00:00",null,"XXX",null,null,null,null,null,null,null,null,"X","X"]
[20210117,"12:00:00",null,"","OOPS","",null,null,null,null,null,null,null,null,null,null,null,null,null,null,null,null,null,null,null,null,null,null,null,null,null,null,null,null,null,null,null,null,null,20190117,"12:00:00",null,"XXX",null,null,null,null,null,null,null,null,"X","X"]
[20210117,"13:00:00",null,"","OOPS","",null,null,null,null,null,null,null,null,null,null,null,null,null,null,null,null,null,null,null,null,null,null,null,null,null,null,null,null,null,null,null,null,null,20190117,"13:00:00",null,"XXX",null,null,null,null,null,null,null,null,"X","X"]
[20210117,"14:00:00",null,"","OOPS","",null,null,null,null,null,null,null,null,null,null,null,null,null,null,null,null,null,null,null,null,null,null,null,null,null,null,null,null,null,null,null,null,null,20190117,"14:00:00",null,"XXX",null,null,null,null,null,null,null,null,"X","X"]
[20210117,"15:00:00",null,"","OOPS","",null,null,null,null,null,null,null,null,null,null,null,null,null,null,null,null,null,null,null,null,null,null,null,null,null,null,null,null,null,null,null,null,null,20190117,"15:00:00",null,"XXX",null,null,null,null,null,null,null,null,"X","X"]
[20210117,"16:00:00",null,"","OOPS","",null,null,null,null,null,null,null,null,null,null,null,null,null,null,null,null,null,null,null,null,null,null,null,null,null,null,null,null,null,null,null,null,null,20190117,"16:00:00",null,"XXX",null,null,null,null,null,null,null,null,"X","X"]
[20210117,"17:00:00",null,{"$f":"IF(C403=AP403,\"\",\"OOPS\")","v":""},{"$f":"IF(A403=AN403,\"\",\"OOPS\")","v":"OOPS"},{"$f":"IF(B403=AO403,\"\",\"OOPS\")","v":""},null,null,null,null,null,null,null,null,null,null,null,null,null,null,null,null,null,null,null,null,null,null,null,null,null,null,null,null,null,null,null,null,null,20190117,"17:00:00",null,"XXX",null,null,null,null,null,null,null,null,"X","X"]
[20210117,"18:00:00",null,"","OOPS","",null,null,null,null,null,null,null,null,null,null,null,null,null,null,null,null,null,null,null,null,null,null,null,null,null,null,null,null,null,null,null,null,null,20190117,"18:00:00",null,"XXX",null,null,null,null,null,null,null,null,"X","X"]
[20210117,"19:00:00",null,"","OOPS","",null,null,null,null,null,null,null,null,null,null,null,null,null,null,null,null,null,null,null,null,null,null,null,null,null,null,null,null,null,null,null,null,null,20190117,"19:00:00",null,"XXX",null,null,null,null,null,null,null,null,"X","X"]
[20210117,"20:00:00",null,"","OOPS","",null,null,null,null,null,null,null,null,null,null,null,null,null,null,null,null,null,null,null,null,null,null,null,null,null,null,null,null,null,null,null,null,null,20190117,"20:00:00",null,"XXX",null,null,null,null,null,null,null,null,"X","X"]
[20210117,"21:00:00",null,"","OOPS","",null,null,null,null,null,null,null,null,null,null,null,null,null,null,null,null,null,null,null,null,null,null,null,null,null,null,null,null,null,null,null,null,null,20190117,"21:00:00",null,"XXX",null,null,null,null,null,null,null,null,"X","X"]
[20210117,"22:00:00",null,"","OOPS","",null,null,null,null,null,null,null,null,null,null,null,null,null,null,null,null,null,null,null,null,null,null,null,null,null,null,null,null,null,null,null,null,null,20190117,"22:00:00",null,"XXX",null,null,null,null,null,null,null,null,"X","X"]
[20210117,"23:00:00",null,"","OOPS","",null,null,null,null,null,null,null,null,null,null,null,null,null,null,null,null,null,null,null,null,null,null,null,null,null,null,null,null,null,null,null,null,null,20190117,"23:00:00",null,"XXX",null,null,null,null,null,null,null,null,"X","X"]
[20210118,"00:00:00",null,"","OOPS","",null,null,null,null,null,null,null,null,null,null,null,null,null,null,null,null,null,null,null,null,null,null,null,null,null,null,null,null,null,null,null,null,null,20190118,"00:00:00",null,"XXX",null,null,null,null,null,null,null,null,"X","X"]
[20210118,"01:00:00",null,"","OOPS","",null,null,null,null,null,null,null,null,null,null,null,null,null,null,null,null,null,null,null,null,null,null,null,null,null,null,null,null,null,null,null,null,null,20190118,"01:00:00",null,"XXX",null,null,null,null,null,null,null,null,"X","X"]
[20210118,"02:00:00",null,"","OOPS","",null,null,null,null,null,null,null,null,null,null,null,null,null,null,null,null,null,null,null,null,null,null,null,null,null,null,null,null,null,null,null,null,null,20190118,"02:00:00",null,"XXX",null,null,null,null,null,null,null,null,"X","X"]
[20210118,"03:00:00",null,"","OOPS","",null,null,null,null,null,null,null,null,null,null,null,null,null,null,null,null,null,null,null,null,null,null,null,null,null,null,null,null,null,null,null,null,null,20190118,"03:00:00",null,"XXX",null,null,null,null,null,null,null,null,"X","X"]
[20210118,"04:00:00",null,"","OOPS","",null,null,null,null,null,null,null,null,null,null,null,null,null,null,null,null,null,null,null,null,null,null,null,null,null,null,null,null,null,null,null,null,null,20190118,"04:00:00",null,"XXX",null,null,null,null,null,null,null,null,"X","X"]
[20210118,"05:00:00",null,"","OOPS","",null,null,null,null,null,null,null,null,null,null,null,null,null,null,null,null,null,null,null,null,null,null,null,null,null,null,null,null,null,null,null,null,null,20190118,"05:00:00",null,"XXX",null,null,null,null,null,null,null,null,"X","X"]
[20210118,"06:00:00",null,"","OOPS","",null,null,null,null,null,null,null,null,null,null,null,null,null,null,null,null,null,null,null,null,null,null,null,null,null,null,null,null,null,null,null,null,null,20190118,"06:00:00",null,"XXX",null,null,null,null,null,null,null,null,"X","X"]
[20210118,"07:00:00",null,"","OOPS","",null,null,null,null,null,null,null,null,null,null,null,null,null,null,null,null,null,null,null,null,null,null,null,null,null,null,null,null,null,null,null,null,null,20190118,"07:00:00",null,"XXX",null,null,null,null,null,null,null,null,"X","X"]
[20210118,"08:00:00",null,"","OOPS","",null,null,null,null,null,null,null,null,null,null,null,null,null,null,null,null,null,null,null,null,null,null,null,null,null,null,null,null,null,null,null,null,null,20190118,"08:00:00",null,"XXX",null,null,null,null,null,null,null,null,"X","X"]
[20210118,"09:00:00",null,"","OOPS","",null,null,null,null,null,null,null,null,null,null,null,null,null,null,null,null,null,null,null,null,null,null,null,null,null,null,null,null,null,null,null,null,null,20190118,"09:00:00",null,"XXX",null,null,null,null,null,null,null,null,"X","X"]
[20210118,"10:00:00",null,"","OOPS","",null,null,null,null,null,null,null,null,null,null,null,null,null,null,null,null,null,null,null,null,null,null,null,null,null,null,null,null,null,null,null,null,null,20190118,"10:00:00",null,"XXX",null,null,null,null,null,null,null,null,"X","X"]
[20210118,"11:00:00",null,"","OOPS","",null,null,null,null,null,null,null,null,null,null,null,null,null,null,null,null,null,null,null,null,null,null,null,null,null,null,null,null,null,null,null,null,null,20190118,"11:00:00",null,"XXX",null,null,null,null,null,null,null,null,"X","X"]
[20210118,"12:00:00",null,"","OOPS","",null,null,null,null,null,null,null,null,null,null,null,null,null,null,null,null,null,null,null,null,null,null,null,null,null,null,null,null,null,null,null,null,null,20190118,"12:00:00",null,"XXX",null,null,null,null,null,null,null,null,"X","X"]
[20210118,"13:00:00",null,"","OOPS","",null,null,null,null,null,null,null,null,null,null,null,null,null,null,null,null,null,null,null,null,null,null,null,null,null,null,null,null,null,null,null,null,null,20190118,"13:00:00",null,"XXX",null,null,null,null,null,null,null,null,"X","X"]
[20210118,"14:00:00",null,"","OOPS","",null,null,null,null,null,null,null,null,null,null,null,null,null,null,null,null,null,null,null,null,null,null,null,null,null,null,null,null,null,null,null,null,null,20190118,"14:00:00",null,"XXX",null,null,null,null,null,null,null,null,"X","X"]
[20210118,"15:00:00",null,"","OOPS","",null,null,null,null,null,null,null,null,null,null,null,null,null,null,null,null,null,null,null,null,null,null,null,null,null,null,null,null,null,null,null,null,null,20190118,"15:00:00",null,"XXX",null,null,null,null,null,null,null,null,"X","X"]
[20210118,"16:00:00",null,"","OOPS","",null,null,null,null,null,null,null,null,null,null,null,null,null,null,null,null,null,null,null,null,null,null,null,null,null,null,null,null,null,null,null,null,null,20190118,"16:00:00",null,"XXX",null,null,null,null,null,null,null,null,"X","X"]
[20210118,"17:00:00",null,"","OOPS","",null,null,null,null,null,null,null,null,null,null,null,null,null,null,null,null,null,null,null,null,null,null,null,null,null,null,null,null,null,null,null,null,null,20190118,"17:00:00",null,"XXX",null,null,null,null,null,null,null,null,"X","X"]
[20210118,"18:00:00",null,"","OOPS","",null,null,null,null,null,null,null,null,null,null,null,null,null,null,null,null,null,null,null,null,null,null,null,null,null,null,null,null,null,null,null,null,null,20190118,"18:00:00",null,"XXX",null,null,null,null,null,null,null,null,"X","X"]
[20210118,"19:00:00",null,"","OOPS","",null,null,null,null,null,null,null,null,null,null,null,null,null,null,null,null,null,null,null,null,null,null,null,null,null,null,null,null,null,null,null,null,null,20190118,"19:00:00",null,"XXX",null,null,null,null,null,null,null,null,"X","X"]
[20210118,"20:00:00",null,"","OOPS","",null,null,null,null,null,null,null,null,null,null,null,null,null,null,null,null,null,null,null,null,null,null,null,null,null,null,null,null,null,null,null,null,null,20190118,"20:00:00",null,"XXX",null,null,null,null,null,null,null,null,"X","X"]
[20210118,"21:00:00",null,"","OOPS","",null,null,null,null,null,null,null,null,null,null,null,null,null,null,null,null,null,null,null,null,null,null,null,null,null,null,null,null,null,null,null,null,null,20190118,"21:00:00",null,"XXX",null,null,null,null,null,null,null,null,"X","X"]
[20210118,"22:00:00",null,"","OOPS","",null,null,null,null,null,null,null,null,null,null,null,null,null,null,null,null,null,null,null,null,null,null,null,null,null,null,null,null,null,null,null,null,null,20190118,"22:00:00",null,"XXX",null,null,null,null,null,null,null,null,"X","X"]
[20210118,"23:00:00",null,"","OOPS","",null,null,null,null,null,null,null,null,null,null,null,null,null,null,null,null,null,null,null,null,null,null,null,null,null,null,null,null,null,null,null,null,null,20190118,"23:00:00",null,"XXX",null,null,null,null,null,null,null,null,"X","X"]
[20210119,"00:00:00",null,"","OOPS","",null,null,null,null,null,null,null,null,null,null,null,null,null,null,null,null,null,null,null,null,null,null,null,null,null,null,null,null,null,null,null,null,null,20190119,"00:00:00",null,"XXX",null,null,null,null,null,null,null,null,"X","X"]
[20210119,"01:00:00",null,"","OOPS","",null,null,null,null,null,null,null,null,null,null,null,null,null,null,null,null,null,null,null,null,null,null,null,null,null,null,null,null,null,null,null,null,null,20190119,"01:00:00",null,"XXX",null,null,null,null,null,null,null,null,"X","X"]
[20210119,"02:00:00",null,"","OOPS","",null,null,null,null,null,null,null,null,null,null,null,null,null,null,null,null,null,null,null,null,null,null,null,null,null,null,null,null,null,null,null,null,null,20190119,"02:00:00",null,"XXX",null,null,null,null,null,null,null,null,"X","X"]
[20210119,"03:00:00",null,"","OOPS","",null,null,null,null,null,null,null,null,null,null,null,null,null,null,null,null,null,null,null,null,null,null,null,null,null,null,null,null,null,null,null,null,null,20190119,"03:00:00",null,"XXX",null,null,null,null,null,null,null,null,"X","X"]
[20210119,"04:00:00",null,"","OOPS","",null,null,null,null,null,null,null,null,null,null,null,null,null,null,null,null,null,null,null,null,null,null,null,null,null,null,null,null,null,null,null,null,null,20190119,"04:00:00",null,"XXX",null,null,null,null,null,null,null,null,"X","X"]
[20210119,"05:00:00",null,"","OOPS","",null,null,null,null,null,null,null,null,null,null,null,null,null,null,null,null,null,null,null,null,null,null,null,null,null,null,null,null,null,null,null,null,null,20190119,"05:00:00",null,"XXX",null,null,null,null,null,null,null,null,"X","X"]
[20210119,"06:00:00",null,"","OOPS","",null,null,null,null,null,null,null,null,null,null,null,null,null,null,null,null,null,null,null,null,null,null,null,null,null,null,null,null,null,null,null,null,null,20190119,"06:00:00",null,"XXX",null,null,null,null,null,null,null,null,"X","X"]
[20210119,"07:00:00",null,"","OOPS","",null,null,null,null,null,null,null,null,null,null,null,null,null,null,null,null,null,null,null,null,null,null,null,null,null,null,null,null,null,null,null,null,null,20190119,"07:00:00",null,"XXX",null,null,null,null,null,null,null,null,"X","X"]
[20210119,"08:00:00",null,"","OOPS","",null,null,null,null,null,null,null,null,null,null,null,null,null,null,null,null,null,null,null,null,null,null,null,null,null,null,null,null,null,null,null,null,null,20190119,"08:00:00",null,"XXX",null,null,null,null,null,null,null,null,"X","X"]
[20210119,"09:00:00",null,"","OOPS","",null,null,null,null,null,null,null,null,null,null,null,null,null,null,null,null,null,null,null,null,null,null,null,null,null,null,null,null,null,null,null,null,null,20190119,"09:00:00",null,"XXX",null,null,null,null,null,null,null,null,"X","X"]
[20210119,"10:00:00",null,"","OOPS","",null,null,null,null,null,null,null,null,null,null,null,null,null,null,null,null,null,null,null,null,null,null,null,null,null,null,null,null,null,null,null,null,null,20190119,"10:00:00",null,"XXX",null,null,null,null,null,null,null,null,"X","X"]
[20210119,"11:00:00",null,"","OOPS","",null,null,null,null,null,null,null,null,null,null,null,null,null,null,null,null,null,null,null,null,null,null,null,null,null,null,null,null,null,null,null,null,null,20190119,"11:00:00",null,"XXX",null,null,null,null,null,null,null,null,"X","X"]
[20210119,"12:00:00",null,"","OOPS","",null,null,null,null,null,null,null,null,null,null,null,null,null,null,null,null,null,null,null,null,null,null,null,null,null,null,null,null,null,null,null,null,null,20190119,"12:00:00",null,"XXX",null,null,null,null,null,null,null,null,"X","X"]
[20210119,"13:00:00",null,"","OOPS","",null,null,null,null,null,null,null,null,null,null,null,null,null,null,null,null,null,null,null,null,null,null,null,null,null,null,null,null,null,null,null,null,null,20190119,"13:00:00",null,"XXX",null,null,null,null,null,null,null,null,"X","X"]
[20210119,"14:00:00",null,"","OOPS","",null,null,null,null,null,null,null,null,null,null,null,null,null,null,null,null,null,null,null,null,null,null,null,null,null,null,null,null,null,null,null,null,null,20190119,"14:00:00",null,"XXX",null,null,null,null,null,null,null,null,"X","X"]
[20210119,"15:00:00",null,"","OOPS","",null,null,null,null,null,null,null,null,null,null,null,null,null,null,null,null,null,null,null,null,null,null,null,null,null,null,null,null,null,null,null,null,null,20190119,"15:00:00",null,"XXX",null,null,null,null,null,null,null,null,"X","X"]
[20210119,"16:00:00",null,"","OOPS","",null,null,null,null,null,null,null,null,null,null,null,null,null,null,null,null,null,null,null,null,null,null,null,null,null,null,null,null,null,null,null,null,null,20190119,"16:00:00",null,"XXX",null,null,null,null,null,null,null,null,"X","X"]
[20210119,"17:00:00",null,"","OOPS","",null,null,null,null,null,null,null,null,null,null,null,null,null,null,null,null,null,null,null,null,null,null,null,null,null,null,null,null,null,null,null,null,null,20190119,"17:00:00",null,"XXX",null,null,null,null,null,null,null,null,"X","X"]
[20210119,"18:00:00",null,"","OOPS","",null,null,null,null,null,null,null,null,null,null,null,null,null,null,null,null,null,null,null,null,null,null,null,null,null,null,null,null,null,null,null,null,null,20190119,"18:00:00",null,"XXX",null,null,null,null,null,null,null,null,"X",{"$f":"IF(AO452=\"\",\"\",IF(AO452=AO451,IF(AP452=AP451,\"\",\"X\"),\"X\"))","v":"X"}]
[20210119,"19:00:00",null,"","OOPS","",null,null,null,null,null,null,null,null,null,null,null,null,null,null,null,null,null,null,null,null,null,null,null,null,null,null,null,null,null,null,null,null,null,20190119,"19:00:00",null,"XXX",null,null,null,null,null,null,null,null,"X","X"]
[20210119,"20:00:00",null,"","OOPS","",null,null,null,null,null,null,null,null,null,null,null,null,null,null,null,null,null,null,null,null,null,null,null,null,null,null,null,null,null,null,null,null,null,20190119,"20:00:00",null,"XXX",null,null,null,null,null,null,null,null,"X","X"]
[20210119,"21:00:00",null,"","OOPS","",null,null,null,null,null,null,null,null,null,null,null,null,null,null,null,null,null,null,null,null,null,null,null,null,null,null,null,null,null,null,null,null,null,20190119,"21:00:00",null,"XXX",null,null,null,null,null,null,null,null,"X","X"]
[20210119,"22:00:00",null,"","OOPS","",null,null,null,null,null,null,null,null,null,null,null,null,null,null,null,null,null,null,null,null,null,null,null,null,null,null,null,null,null,null,null,null,null,20190119,"22:00:00",null,"XXX",null,null,null,null,null,null,null,null,"X","X"]
[20210119,"23:00:00",null,"","OOPS","",null,null,null,null,null,null,null,null,null,null,null,null,null,null,null,null,null,null,null,null,null,null,null,null,null,null,null,null,null,null,null,null,null,20190119,"23:00:00",null,"XXX",null,null,null,null,null,null,null,null,"X","X"]
[20210120,"00:00:00",null,"","OOPS","",null,null,null,null,null,null,null,null,null,null,null,null,null,null,null,null,null,null,null,null,null,null,null,null,null,null,null,null,null,null,null,null,null,20190120,"00:00:00",null,"XXX",null,null,null,null,null,null,null,null,"X","X"]
[20210120,"01:00:00",null,"","OOPS","",null,null,null,null,null,null,null,null,null,null,null,null,null,null,null,null,null,null,null,null,null,null,null,null,null,null,null,null,null,null,null,null,null,20190120,"01:00:00",null,"XXX",null,null,null,null,null,null,null,null,"X","X"]
[20210120,"02:00:00",null,"","OOPS","",null,null,null,null,null,null,null,null,null,null,null,null,null,null,null,null,null,null,null,null,null,null,null,null,null,null,null,null,null,null,null,null,null,20190120,"02:00:00",null,"XXX",null,null,null,null,null,null,null,null,"X","X"]
[20210120,"03:00:00",null,"","OOPS","",null,null,null,null,null,null,null,null,null,null,null,null,null,null,null,null,null,null,null,null,null,null,null,null,null,null,null,null,null,null,null,null,null,20190120,"03:00:00",null,"XXX",null,null,null,null,null,null,null,null,"X","X"]
[20210120,"04:00:00",null,"","OOPS","",null,null,null,null,null,null,null,null,null,null,null,null,null,null,null,null,null,null,null,null,null,null,null,null,null,null,null,null,null,null,null,null,null,20190120,"04:00:00",null,"XXX",null,null,null,null,null,null,null,null,"X","X"]
[20210120,"05:00:00",null,"","OOPS","",null,null,null,null,null,null,null,null,null,null,null,null,null,null,null,null,null,null,null,null,null,null,null,null,null,null,null,null,null,null,null,null,null,20190120,"05:00:00",null,"XXX",null,null,null,null,null,null,null,null,"X","X"]
[20210120,"06:00:00",null,"","OOPS","",null,null,null,null,null,null,null,null,null,null,null,null,null,null,null,null,null,null,null,null,null,null,null,null,null,null,null,null,null,null,null,null,null,20190120,"06:00:00",null,"XXX",null,null,null,null,null,null,null,null,"X","X"]
[20210120,"07:00:00",null,"","OOPS","",null,null,null,null,null,null,null,null,null,null,null,null,null,null,null,null,null,null,null,null,null,null,null,null,null,null,null,null,null,null,null,null,null,20190120,"07:00:00",null,"XXX",null,null,null,null,null,null,null,null,"X","X"]
[20210120,"08:00:00",null,"","OOPS","",null,null,null,null,null,null,null,null,null,null,null,null,null,null,null,null,null,null,null,null,null,null,null,null,null,null,null,null,null,null,null,null,null,20190120,"08:00:00",null,"XXX",null,null,null,null,null,null,null,null,"X","X"]
[20210120,"09:00:00",null,{"$f":"IF(C467=AP467,\"\",\"OOPS\")","v":""},{"$f":"IF(A467=AN467,\"\",\"OOPS\")","v":"OOPS"},{"$f":"IF(B467=AO467,\"\",\"OOPS\")","v":""},null,null,null,null,null,null,null,null,null,null,null,null,null,null,null,null,null,null,null,null,null,null,null,null,null,null,null,null,null,null,null,null,null,20190120,"09:00:00",null,"XXX",null,null,null,null,null,null,null,null,"X","X"]
[20210120,"10:00:00",null,"","OOPS","",null,null,null,null,null,null,null,null,null,null,null,null,null,null,null,null,null,null,null,null,null,null,null,null,null,null,null,null,null,null,null,null,null,20190120,"10:00:00",null,"XXX",null,null,null,null,null,null,null,null,"X","X"]
[20210120,"11:00:00",null,"","OOPS","",null,null,null,null,null,null,null,null,null,null,null,null,null,null,null,null,null,null,null,null,null,null,null,null,null,null,null,null,null,null,null,null,null,20190120,"11:00:00",null,"XXX",null,null,null,null,null,null,null,null,"X","X"]
[20210120,"12:00:00",null,"","OOPS","",null,null,null,null,null,null,null,null,null,null,null,null,null,null,null,null,null,null,null,null,null,null,null,null,null,null,null,null,null,null,null,null,null,20190120,"12:00:00",null,"XXX",null,null,null,null,null,null,null,null,"X","X"]
[20210120,"13:00:00",null,"","OOPS","",null,null,null,null,null,null,null,null,null,null,null,null,null,null,null,null,null,null,null,null,null,null,null,null,null,null,null,null,null,null,null,null,null,20190120,"13:00:00",null,"XXX",null,null,null,null,null,null,null,null,"X","X"]
[20210120,"14:00:00",null,"","OOPS","",null,null,null,null,null,null,null,null,null,null,null,null,null,null,null,null,null,null,null,null,null,null,null,null,null,null,null,null,null,null,null,null,null,20190120,"14:00:00",null,"XXX",null,null,null,null,null,null,null,null,"X","X"]
[20210120,"15:00:00",null,"","OOPS","",null,null,null,null,null,null,null,null,null,null,null,null,null,null,null,null,null,null,null,null,null,null,null,null,null,null,null,null,null,null,null,null,null,20190120,"15:00:00",null,"XXX",null,null,null,null,null,null,null,null,"X","X"]
[20210120,"16:00:00",null,"","OOPS","",null,null,null,null,null,null,null,null,null,null,null,null,null,null,null,null,null,null,null,null,null,null,null,null,null,null,null,null,null,null,null,null,null,20190120,"16:00:00",null,"XXX",null,null,null,null,null,null,null,null,"X","X"]
[20210120,"17:00:00",null,"","OOPS","",null,null,null,null,null,null,null,null,null,null,null,null,null,null,null,null,null,null,null,null,null,null,null,null,null,null,null,null,null,null,null,null,null,20190120,"17:00:00",null,"XXX",null,null,null,null,null,null,null,null,"X","X"]
[20210120,"18:00:00",null,"","OOPS","",null,null,null,null,null,null,null,null,null,null,null,null,null,null,null,null,null,null,null,null,null,null,null,null,null,null,null,null,null,null,null,null,null,20190120,"18:00:00",null,"XXX",null,null,null,null,null,null,null,null,"X","X"]
[20210120,"19:00:00",null,"","OOPS","",null,null,null,null,null,null,null,null,null,null,null,null,null,null,null,null,null,null,null,null,null,null,null,null,null,null,null,null,null,null,null,null,null,20190120,"19:00:00",null,"XXX",null,null,null,null,null,null,null,null,"X","X"]
[20210120,"20:00:00",null,"","OOPS","",null,null,null,null,null,null,null,null,null,null,null,null,null,null,null,null,null,null,null,null,null,null,null,null,null,null,null,null,null,null,null,null,null,20190120,"20:00:00",null,"XXX",null,null,null,null,null,null,null,null,"X","X"]
[20210120,"21:00:00",null,"","OOPS","",null,null,null,null,null,null,null,null,null,null,null,null,null,null,null,null,null,null,null,null,null,null,null,null,null,null,null,null,null,null,null,null,null,20190120,"21:00:00",null,"XXX",null,null,null,null,null,null,null,null,"X","X"]
[20210120,"22:00:00",null,"","OOPS","",null,null,null,null,null,null,null,null,null,null,null,null,null,null,null,null,null,null,null,null,null,null,null,null,null,null,null,null,null,null,null,null,null,20190120,"22:00:00",null,"XXX",null,null,null,null,null,null,null,null,"X","X"]
[20210120,"23:00:00",null,"","OOPS","",null,null,null,null,null,null,null,null,null,null,null,null,null,null,null,null,null,null,null,null,null,null,null,null,null,null,null,null,null,null,null,null,null,20190120,"23:00:00",null,"XXX",null,null,null,null,null,null,null,null,"X","X"]
[20210121,"00:00:00",null,"","OOPS","",null,null,null,null,null,null,null,null,null,null,null,null,null,null,null,null,null,null,null,null,null,null,null,null,null,null,null,null,null,null,null,null,null,20190121,"00:00:00",null,"XXX",null,null,null,null,null,null,null,null,"X","X"]
[20210121,"01:00:00",null,"","OOPS","",null,null,null,null,null,null,null,null,null,null,null,null,null,null,null,null,null,null,null,null,null,null,null,null,null,null,null,null,null,null,null,null,null,20190121,"01:00:00",null,"XXX",null,null,null,null,null,null,null,null,"X","X"]
[20210121,"02:00:00",null,"","OOPS","",null,null,null,null,null,null,null,null,null,null,null,null,null,null,null,null,null,null,null,null,null,null,null,null,null,null,null,null,null,null,null,null,null,20190121,"02:00:00",null,"XXX",null,null,null,null,null,null,null,null,"X","X"]
[20210121,"03:00:00",null,"","OOPS","",null,null,null,null,null,null,null,null,null,null,null,null,null,null,null,null,null,null,null,null,null,null,null,null,null,null,null,null,null,null,null,null,null,20190121,"03:00:00",null,"XXX",null,null,null,null,null,null,null,null,"X","X"]
[20210121,"04:00:00",null,"","OOPS","",null,null,null,null,null,null,null,null,null,null,null,null,null,null,null,null,null,null,null,null,null,null,null,null,null,null,null,null,null,null,null,null,null,20190121,"04:00:00",null,"XXX",null,null,null,null,null,null,null,null,"X","X"]
[20210121,"05:00:00",null,"","OOPS","",null,null,null,null,null,null,null,null,null,null,null,null,null,null,null,null,null,null,null,null,null,null,null,null,null,null,null,null,null,null,null,null,null,20190121,"05:00:00",null,"XXX",null,null,null,null,null,null,null,null,"X","X"]
[20210121,"06:00:00",null,"","OOPS","",null,null,null,null,null,null,null,null,null,null,null,null,null,null,null,null,null,null,null,null,null,null,null,null,null,null,null,null,null,null,null,null,null,20190121,"06:00:00",null,"XXX",null,null,null,null,null,null,null,null,"X","X"]
[20210121,"07:00:00",null,"","OOPS","",null,null,null,null,null,null,null,null,null,null,null,null,null,null,null,null,null,null,null,null,null,null,null,null,null,null,null,null,null,null,null,null,null,20190121,"07:00:00",null,"XXX",null,null,null,null,null,null,null,null,"X","X"]
[20210121,"08:00:00",null,"","OOPS","",null,null,null,null,null,null,null,null,null,null,null,null,null,null,null,null,null,null,null,null,null,null,null,null,null,null,null,null,null,null,null,null,null,20190121,"08:00:00",null,"XXX",null,null,null,null,null,null,null,null,"X","X"]
[20210121,"09:00:00",null,"","OOPS","",null,null,null,null,null,null,null,null,null,null,null,null,null,null,null,null,null,null,null,null,null,null,null,null,null,null,null,null,null,null,null,null,null,20190121,"09:00:00",null,"XXX",null,null,null,null,null,null,null,null,"X","X"]
[20210121,"10:00:00",null,"","OOPS","",null,null,null,null,null,null,null,null,null,null,null,null,null,null,null,null,null,null,null,null,null,null,null,null,null,null,null,null,null,null,null,null,null,20190121,"10:00:00",null,"XXX",null,null,null,null,null,null,null,null,"X","X"]
[20210121,"11:00:00",null,"","OOPS","",null,null,null,null,null,null,null,null,null,null,null,null,null,null,null,null,null,null,null,null,null,null,null,null,null,null,null,null,null,null,null,null,null,20190121,"11:00:00",null,"XXX",null,null,null,null,null,null,null,null,"X","X"]
[20210121,"12:00:00",null,"","OOPS","",null,null,null,null,null,null,null,null,null,null,null,null,null,null,null,null,null,null,null,null,null,null,null,null,null,null,null,null,null,null,null,null,null,20190121,"12:00:00",null,"XXX",null,null,null,null,null,null,null,null,"X","X"]
[20210121,"13:00:00",null,"","OOPS","",null,null,null,null,null,null,null,null,null,null,null,null,null,null,null,null,null,null,null,null,null,null,null,null,null,null,null,null,null,null,null,null,null,20190121,"13:00:00",null,"XXX",null,null,null,null,null,null,null,null,"X","X"]
[20210121,"14:00:00",null,"","OOPS","",null,null,null,null,null,null,null,null,null,null,null,null,null,null,null,null,null,null,null,null,null,null,null,null,null,null,null,null,null,null,null,null,null,20190121,"14:00:00",null,"XXX",null,null,null,null,null,null,null,null,"X","X"]
[20210121,"15:00:00",null,"","OOPS","",null,null,null,null,null,null,null,null,null,null,null,null,null,null,null,null,null,null,null,null,null,null,null,null,null,null,null,null,null,null,null,null,null,20190121,"15:00:00",null,"XXX",null,null,null,null,null,null,null,null,"X","X"]
[20210121,"16:00:00",null,"","OOPS","",null,null,null,null,null,null,null,null,null,null,null,null,null,null,null,null,null,null,null,null,null,null,null,null,null,null,null,null,null,null,null,null,null,20190121,"16:00:00",null,"XXX",null,null,null,null,null,null,null,null,"X","X"]
[20210121,"17:00:00",null,"","OOPS","",null,null,null,null,null,null,null,null,null,null,null,null,null,null,null,null,null,null,null,null,null,null,null,null,null,null,null,null,null,null,null,null,null,20190121,"17:00:00",null,"XXX",null,null,null,null,null,null,null,null,"X","X"]
[20210121,"18:00:00",null,"","OOPS","",null,null,null,null,null,null,null,null,null,null,null,null,null,null,null,null,null,null,null,null,null,null,null,null,null,null,null,null,null,null,null,null,null,20190121,"18:00:00",null,"XXX",null,null,null,null,null,null,null,null,"X","X"]
[20210121,"22:00:00",null,"","OOPS","",null,null,null,null,null,null,null,null,null,null,null,null,null,null,null,null,null,null,null,null,null,null,null,null,null,null,null,null,null,null,null,null,null,20190121,"22:00:00",null,"XXX",null,null,null,null,null,null,null,null,"X","X"]
[20210123,"08:00:00",null,"","OOPS","",null,null,null,null,null,null,null,null,null,null,null,null,null,null,null,null,null,null,null,null,null,null,null,null,null,null,null,null,null,null,null,null,null,20190123,"08:00:00",null,"XXX",null,null,null,null,null,null,null,null,"X","X"]
[20210125,"11:00:00",null,"","OOPS","",null,null,null,null,null,null,null,null,null,null,null,null,null,null,null,null,null,null,null,null,null,null,null,null,null,null,null,null,null,null,null,null,null,20190125,"11:00:00",null,"XXX",null,null,null,null,null,null,null,null,"X","X"]
[20210126,"22:00:00",null,"","OOPS","",null,null,null,null,null,null,null,null,null,null,null,null,null,null,null,null,null,null,null,null,null,null,null,null,null,null,null,null,null,null,null,null,null,20190126,"22:00:00",null,"XXX",null,null,null,null,null,null,null,null,"X","X"]
[20210127,"12:00:00",null,"","OOPS","",null,null,null,null,null,null,null,null,null,null,null,null,null,null,null,null,null,null,null,null,null,null,null,null,null,null,null,null,null,null,null,null,null,20190127,"12:00:00",null,"XXX",null,null,null,null,null,null,null,null,"X","X"]
[20210129,"17:00:00",null,"","OOPS","",null,null,null,null,null,null,null,null,null,null,null,null,null,null,null,null,null,null,null,null,null,null,null,null,null,null,null,null,null,null,null,null,null,20190129,"17:00:00",null,"XXX",null,null,null,null,null,null,null,null,"X","X"]
[20210131,"04:00:00",null,"","OOPS","",null,null,null,null,null,null,null,null,null,null,null,null,null,null,null,null,null,null,null,null,null,null,null,null,null,null,null,null,null,null,null,null,null,20190131,"04:00:00",null,"XXX",null,null,null,null,null,null,null,null,"X","X"]
[20210131,"21:00:00",null,"","OOPS","",null,null,null,null,null,null,null,null,null,null,null,null,null,null,null,null,null,null,null,null,null,null,null,null,null,null,null,null,null,null,null,null,null,20190131,"21:00:00",null,"XXX",null,null,null,null,null,null,null,null,"X","X"]
[20210202,"08:00:00",null,"","OOPS","",null,null,null,null,null,null,null,null,null,null,null,null,null,null,null,null,null,null,null,null,null,null,null,"RD","I",23,1,14,44201,2,1,8,47,20190202,"08:00:00",null,"AL",null,null,null,null,null,null,null,null,"X","X"]
[20210203,"18:00:00",null,"","OOPS","",null,null,null,null,null,null,null,null,null,null,null,null,null,null,null,null,null,null,null,null,null,null,null,"RD","I",23,1,14,44201,2,1,8,47,20190203,"18:00:00",null,"AL",null,null,null,null,null,null,null,null,"X","X"]
[20210205,"03:00:00",null,"","OOPS","",null,null,null,null,null,null,null,null,null,null,null,null,null,null,null,null,null,null,null,null,null,null,null,"RD","I",23,1,14,44201,2,1,8,47,20190205,"03:00:00",null,"AL",null,null,null,null,null,null,null,null,"X","X"]
[20210206,"14:00:00",null,"","OOPS","",null,null,null,null,null,null,null,null,null,null,null,null,null,null,null,null,null,null,null,null,null,null,null,"RD","I",23,1,14,44201,2,1,8,47,20190206,"14:00:00",null,"AL",null,null,null,null,null,null,null,null,"X","X"]
[20210208,"17:00:00",null,"","OOPS","",null,null,null,null,null,null,null,null,null,null,null,null,null,null,null,null,null,null,null,null,null,null,null,"RD","I",23,1,14,44201,2,1,8,47,20190208,"17:00:00",null,"AL",null,null,null,null,null,null,null,null,"X","X"]
[20210209,"10:00:00",null,"","OOPS","",null,null,null,null,null,null,null,null,null,null,null,null,null,null,null,null,null,null,null,null,null,null,null,"RD","I",23,1,14,44201,2,1,8,47,20190209,"10:00:00",null,"AL",null,null,null,null,null,null,null,null,"X","X"]
[20210211,"00:00:00",null,"","OOPS","",null,null,null,null,null,null,null,null,null,null,null,null,null,null,null,null,null,null,null,null,null,null,null,"RD","I",23,1,14,44201,2,1,8,47,20190211,"00:00:00",null,"AL",null,null,null,null,null,null,null,null,"X","X"]
[20210212,"23:00:00",null,"","OOPS","",null,null,null,null,null,null,null,null,null,null,null,null,null,null,null,null,null,null,null,null,null,null,null,"RD","I",23,1,14,44201,2,1,8,47,20190212,"23:00:00",null,"AL",null,null,null,null,null,null,null,null,"X","X"]
[20210214,"10:00:00",null,"","OOPS","",null,null,null,null,null,null,null,null,null,null,null,null,null,null,null,null,null,null,null,null,null,null,null,"RD","I",23,1,14,44201,2,1,8,47,20190214,"10:00:00",null,"AL",null,null,null,null,null,null,null,null,"X","X"]
[20210215,"03:00:00",null,"","OOPS","",null,null,null,null,null,null,null,null,null,null,null,null,null,null,null,null,null,null,null,null,null,null,null,"RD","I",23,1,14,44201,2,1,8,47,20190215,"03:00:00",null,"AL",null,null,null,null,null,null,null,null,"X","X"]
[20210217,"06:00:00",null,"","OOPS","",null,null,null,null,null,null,null,null,null,null,null,null,null,null,null,null,null,null,null,null,null,null,null,"RD","I",23,1,14,44201,2,1,8,47,20190217,"06:00:00",null,"AL",null,null,null,null,null,null,null,null,"X","X"]
[20210218,"06:00:00",null,"","OOPS","",null,null,null,null,null,null,null,null,null,null,null,null,null,null,null,null,null,null,null,null,null,null,null,"RD","I",23,1,14,44201,2,1,8,47,20190218,"06:00:00",null,"AL",null,null,null,null,null,null,null,null,"X","X"]
[20210219,"09:00:00",null,"","OOPS","",null,null,null,null,null,null,null,null,null,null,null,null,null,null,null,null,null,null,null,null,null,null,null,"RD","I",23,1,14,44201,2,1,8,47,20190219,"09:00:00",null,"AL",null,null,null,null,null,null,null,null,"X","X"]
[20210220,"20:00:00",null,"","OOPS","",null,null,null,null,null,null,null,null,null,null,null,null,null,null,null,null,null,null,null,null,null,null,null,"RD","I",23,1,14,44201,2,1,8,47,20190220,"20:00:00",null,"AL",null,null,null,null,null,null,null,null,"X","X"]
[20210222,"23:00:00",null,"","OOPS","",null,null,null,null,null,null,null,null,null,null,null,null,null,null,null,null,null,null,null,null,null,null,null,"RD","I",23,1,14,44201,2,1,8,47,20190222,"23:00:00",null,"AL",null,null,null,null,null,null,null,null,"X","X"]
[20210223,"16:00:00",null,"","OOPS","",null,null,null,null,null,null,null,null,null,null,null,null,null,null,null,null,null,null,null,null,null,null,null,"RD","I",23,1,14,44201,2,1,8,47,20190223,"16:00:00",null,"AL",null,null,null,null,null,null,null,null,"X","X"]
[20210225,"12:00:00",null,"","OOPS","",null,null,null,null,null,null,null,null,null,null,null,null,null,null,null,null,null,null,null,null,null,null,null,"RD","I",23,1,14,44201,2,1,8,47,20190225,"12:00:00",null,"AL",null,null,null,null,null,null,null,null,"X","X"]
[20210227,"05:00:00",null,"OOPS","OOPS","",null,null,null,null,null,null,null,null,null,null,null,null,null,null,null,null,null,null,null,null,null,null,null,"RD","I",23,1,14,44201,2,1,8,47,20190227,"05:00:00",11,null,null,null,null,null,null,null,null,null,"X","X"]
[20210227,"22:00:00",null,"OOPS","OOPS","",null,null,null,null,null,null,null,null,null,null,null,null,null,null,null,null,null,null,null,null,null,null,null,"RD","I",23,1,14,44201,2,1,8,47,20190227,"22:00:00",25.6,null,null,null,null,null,null,null,null,null,"X","X"]
[20210301,"09:00:00",null,{"$f":"IF(C1427=AP1427,\"\",\"OOPS\")","v":"OOPS"},{"$f":"IF(A1427=AN1427,\"\",\"OOPS\")","v":"OOPS"},{"$f":"IF(B1427=AO1427,\"\",\"OOPS\")","v":""},null,null,null,null,null,null,null,null,null,null,null,null,null,null,null,null,null,null,null,null,null,null,null,"RD","I",23,1,14,44201,2,1,8,47,20190301,"09:00:00",37.9,null,null,null,null,null,null,null,null,null,"X","X"]
[20210302,"22:00:00",null,"OOPS","OOPS","",null,null,null,null,null,null,null,null,null,null,null,null,null,null,null,null,null,null,null,null,null,null,null,"RD","I",23,1,14,44201,2,1,8,47,20190302,"22:00:00",45.4,null,null,null,null,null,null,null,null,null,"X","X"]
[20210304,"22:00:00",null,"OOPS","OOPS","",null,null,null,null,null,null,null,null,null,null,null,null,null,null,null,null,null,null,null,null,null,null,null,"RD","I",23,1,14,44201,2,1,8,47,20190304,"22:00:00",42.1,null,null,null,null,null,null,null,null,null,"X","X"]
[20210305,"15:00:00",null,"OOPS","OOPS","",null,null,null,null,null,null,null,null,null,null,null,null,null,null,null,null,null,null,null,null,null,null,null,"RD","I",23,1,14,44201,2,1,8,47,20190305,"15:00:00",46.3,null,null,null,null,null,null,null,null,null,"X","X"]
[20210307,"18:00:00",null,"OOPS","OOPS","",null,null,null,null,null,null,null,null,null,null,null,null,null,null,null,null,null,null,null,null,null,null,null,"RD","I",23,1,14,44201,2,1,8,47,20190307,"18:00:00",41,null,null,null,null,null,null,null,null,null,"X","X"]
[20210309,"05:00:00",null,"OOPS","OOPS","",null,null,null,null,null,null,null,null,null,null,null,null,null,null,null,null,null,null,null,null,null,null,null,"RD","I",23,1,14,44201,2,1,8,47,20190309,"05:00:00",12.2,null,null,null,null,null,null,null,null,null,"X","X"]
[20210310,"04:00:00",null,"OOPS","OOPS","",null,null,null,null,null,null,null,null,null,null,null,null,null,null,null,null,null,null,null,null,null,null,null,"RD","I",23,1,14,44201,2,1,8,47,20190310,"04:00:00",32,null,null,null,null,null,null,null,null,null,"X","X"]
[20210312,"00:00:00",null,"OOPS","OOPS","",null,null,null,null,null,null,null,null,null,null,null,null,null,null,null,null,null,null,null,null,null,null,null,"RD","I",23,1,14,44201,2,1,8,47,20190312,"00:00:00",23.8,null,null,null,null,null,null,null,null,null,"X","X"]
[20210312,"01:00:00",null,{"$f":"IF(C1683=AP1683,\"\",\"OOPS\")","v":"OOPS"},{"$f":"IF(A1683=AN1683,\"\",\"OOPS\")","v":"OOPS"},{"$f":"IF(B1683=AO1683,\"\",\"OOPS\")","v":""},null,null,null,null,null,null,null,null,null,null,null,null,null,null,null,null,null,null,null,null,null,null,null,"RD","I",23,1,14,44201,2,1,8,47,20190312,"01:00:00",21.1,null,null,null,null,null,null,null,null,null,"X","X"]
[20210314,"04:00:00",null,"OOPS","OOPS","",null,null,null,null,null,null,null,null,null,null,null,null,null,null,null,null,null,null,null,null,null,null,null,"RD","I",23,1,14,44201,2,1,8,47,20190314,"04:00:00",37.4,null,null,null,null,null,null,null,null,null,"X","X"]
[20210315,"15:00:00",null,"OOPS","OOPS","",null,null,null,null,null,null,null,null,null,null,null,null,null,null,null,null,null,null,null,null,null,null,null,"RD","I",23,1,14,44201,2,1,8,47,20190315,"15:00:00",43.9,null,null,null,null,null,null,null,null,null,"X","X"]
[20210317,"10:00:00",null,"OOPS","OOPS","",null,null,null,null,null,null,null,null,null,null,null,null,null,null,null,null,null,null,null,null,null,null,null,"RD","I",23,1,14,44201,2,1,8,47,20190317,"10:00:00",44.5,null,null,null,null,null,null,null,null,null,"X","X"]
[20210318,"10:00:00",null,"OOPS","OOPS","",null,null,null,null,null,null,null,null,null,null,null,null,null,null,null,null,null,null,null,null,null,null,null,"RD","I",23,1,14,44201,2,1,8,47,20190318,"10:00:00",41.1,null,null,null,null,null,null,null,null,null,"X","X"]
[20210319,"21:00:00",null,"OOPS","OOPS","",null,null,null,null,null,null,null,null,null,null,null,null,null,null,null,null,null,null,null,null,null,null,null,"RD","I",23,1,14,44201,2,1,8,47,20190319,"21:00:00",39.700000000000003,null,null,null,null,null,null,null,null,null,"X","X"]
[20210320,"14:00:00",null,"OOPS","OOPS","",null,null,null,null,null,null,null,null,null,null,null,null,null,null,null,null,null,null,null,null,null,null,null,"RD","I",23,1,14,44201,2,1,8,47,20190320,"14:00:00",46.8,null,null,null,null,null,null,null,null,null,"X","X"]
[20210322,"01:00:00",null,"OOPS","OOPS","",null,null,null,null,null,null,null,null,null,null,null,null,null,null,null,null,null,null,null,null,null,null,null,"RD","I",23,1,14,44201,2,1,8,47,20190322,"01:00:00",44.4,null,null,null,null,null,null,null,null,null,"X","X"]
[20210324,"16:00:00",null,"OOPS","OOPS","",null,null,null,null,null,null,null,null,null,null,null,null,null,null,null,null,null,null,null,null,null,null,null,"RD","I",23,1,14,44201,2,1,8,47,20190324,"16:00:00",46.9,null,null,null,null,null,null,null,null,null,"X","X"]
[20210324,"20:00:00",null,"OOPS","OOPS","",null,null,null,null,null,null,null,null,null,null,null,null,null,null,null,null,null,null,null,null,null,null,null,"RD","I",23,1,14,44201,2,1,8,47,20190324,"20:00:00",38.200000000000003,null,null,null,null,null,null,null,null,null,"X","X"]
[20210326,"07:00:00",null,"OOPS","OOPS","",null,null,null,null,null,null,null,null,null,null,null,null,null,null,null,null,null,null,null,null,null,null,null,"RD","I",23,1,14,44201,2,1,8,47,20190326,"07:00:00",37.9,null,null,null,null,null,null,null,null,null,"X","X"]
[20210328,"10:00:00",null,"OOPS","OOPS","",null,null,null,null,null,null,null,null,null,null,null,null,null,null,null,null,null,null,null,null,null,null,null,"RD","I",23,1,14,44201,2,1,8,47,20190328,"10:00:00",48.1,null,null,null,null,null,null,null,null,null,"X","X"]
[20210329,"03:00:00",null,"OOPS","OOPS","",null,null,null,null,null,null,null,null,null,null,null,null,null,null,null,null,null,null,null,null,null,null,null,"RD","I",23,1,14,44201,2,1,8,47,20190329,"03:00:00",12.6,null,null,null,null,null,null,null,null,null,"X","X"]
[20210330,"13:00:00",null,"OOPS","OOPS","",null,null,null,null,null,null,null,null,null,null,null,null,null,null,null,null,null,null,null,null,null,null,null,"RD","I",23,1,14,44201,2,1,8,47,20190330,"13:00:00",38.4,null,null,null,null,null,null,null,null,null,"X","X"]
[20210401,"16:00:00",null,"OOPS","OOPS","",null,null,null,null,null,null,null,null,null,null,null,null,null,null,null,null,null,null,null,null,null,null,null,"RD","I",23,1,14,44201,2,1,8,47,20190401,"16:00:00",47.5,null,null,null,null,null,null,null,null,null,"X","X"]
[20210403,"03:00:00",null,"OOPS","OOPS","",null,null,null,null,null,null,null,null,null,null,null,null,null,null,null,null,null,null,null,null,null,null,null,"RD","I",23,1,14,44201,2,1,8,47,20190403,"03:00:00",11,null,null,null,null,null,null,null,null,null,"X","X"]
[20210403,"20:00:00",null,"OOPS","OOPS","",null,null,null,null,null,null,null,null,null,null,null,null,null,null,null,null,null,null,null,null,null,null,null,"RD","I",23,1,14,44201,2,1,8,47,20190403,"20:00:00",43.6,null,null,null,null,null,null,null,null,null,"X","X"]
[20210406,"08:00:00",null,"OOPS","OOPS","",null,null,null,null,null,null,null,null,null,null,null,null,null,null,null,null,null,null,null,null,null,null,null,"RD","I",23,1,14,44201,2,1,8,47,20190406,"08:00:00",40.1,null,null,null,null,null,null,null,null,null,"X","X"]
[20210407,"09:00:00",null,"OOPS","OOPS","",null,null,null,null,null,null,null,null,null,null,null,null,null,null,null,null,null,null,null,null,null,null,null,"RD","I",23,1,14,44201,2,1,8,47,20190407,"09:00:00",52.7,null,null,null,null,null,null,null,null,null,"X","X"]
[20210408,"02:00:00",null,"OOPS","OOPS","",null,null,null,null,null,null,null,null,null,null,null,null,null,null,null,null,null,null,null,null,null,null,null,"RD","I",23,1,14,44201,2,1,8,47,20190408,"02:00:00",20.100000000000001,null,null,null,null,null,null,null,null,null,"X","X"]
[20210409,"13:00:00",null,"OOPS","OOPS","",null,null,null,null,null,null,null,null,null,null,null,null,null,null,null,null,null,null,null,null,null,null,null,"RD","I",23,1,14,44201,2,1,8,47,20190409,"13:00:00",40.4,null,null,null,null,null,null,null,null,null,"X","X"]
[20210411,"16:00:00",null,"OOPS","OOPS","",null,null,null,null,null,null,null,null,null,null,null,null,null,null,null,null,null,null,null,null,null,null,null,"RD","I",23,1,14,44201,2,1,8,47,20190411,"16:00:00",48.3,null,null,null,null,null,null,null,null,null,"X","X"]
[20210412,"05:00:00",null,"OOPS","OOPS","",null,null,null,null,null,null,null,null,null,null,null,null,null,null,null,null,null,null,null,null,null,null,null,"RD","I",23,1,14,44201,2,1,8,47,20190412,"05:00:00",6.2,null,null,null,null,null,null,null,null,null,"X","X"]
[20210413,"19:00:00",null,"OOPS","OOPS","",null,null,null,null,null,null,null,null,null,null,null,null,null,null,null,null,null,null,null,null,null,null,null,"RD","I",23,1,14,44201,2,1,8,47,20190413,"19:00:00",27.7,null,null,null,null,null,null,null,null,null,"X","X"]
[20210415,"22:00:00",null,"OOPS","OOPS","",null,null,null,null,null,null,null,null,null,null,null,null,null,null,null,null,null,null,null,null,null,null,null,"RD","I",23,1,14,44201,2,1,8,47,20190415,"22:00:00",35,null,null,null,null,null,null,null,null,null,"X","X"]
[20210416,"15:00:00",null,"OOPS","OOPS","",null,null,null,null,null,null,null,null,null,null,null,null,null,null,null,null,null,null,null,null,null,null,null,"RD","I",23,1,14,44201,2,1,8,47,20190416,"15:00:00",41.1,null,null,null,null,null,null,null,null,null,"X","X"]
[20210418,"02:00:00",null,"OOPS","OOPS","",null,null,null,null,null,null,null,null,null,null,null,null,null,null,null,null,null,null,null,null,null,null,null,"RD","I",23,1,14,44201,2,1,8,47,20190418,"02:00:00",24.6,null,null,null,null,null,null,null,null,null,"X","X"]
[20210419,"11:00:00",null,"OOPS","OOPS","",null,null,null,null,null,null,null,null,null,null,null,null,null,null,null,null,null,null,null,null,null,null,null,"RD","I",23,1,14,44201,2,1,8,47,20190419,"11:00:00",36.9,null,null,null,null,null,null,null,null,null,"X","X"]
[20210421,"15:00:00",null,"OOPS","OOPS","",null,null,null,null,null,null,null,null,null,null,null,null,null,null,null,null,null,null,null,null,null,null,null,"RD","I",23,1,14,44201,2,1,8,47,20190421,"15:00:00",50.7,null,null,null,null,null,null,null,null,null,"X","X"]
[20210422,"08:00:00",null,"OOPS","OOPS","",null,null,null,null,null,null,null,null,null,null,null,null,null,null,null,null,null,null,null,null,null,null,null,"RD","I",23,1,14,44201,2,1,8,47,20190422,"08:00:00",48.6,null,null,null,null,null,null,null,null,null,"X","X"]
[20210424,"11:00:00",null,"OOPS","OOPS","",null,null,null,null,null,null,null,null,null,null,null,null,null,null,null,null,null,null,null,null,null,null,null,"RD","I",23,1,14,44201,2,1,8,47,20190424,"11:00:00",56.8,null,null,null,null,null,null,null,null,null,"X","X"]
[20210425,"22:00:00",null,"OOPS","OOPS","",null,null,null,null,null,null,null,null,null,null,null,null,null,null,null,null,null,null,null,null,null,null,null,"RD","I",23,1,14,44201,2,1,8,47,20190425,"22:00:00",51.4,null,null,null,null,null,null,null,null,null,"X","X"]
[20210426,"17:00:00",null,"OOPS","OOPS","",null,null,null,null,null,null,null,null,null,null,null,null,null,null,null,null,null,null,null,null,null,null,null,"RD","I",23,1,14,44201,2,1,8,47,20190426,"17:00:00",39.4,null,null,null,null,null,null,null,null,null,"X","X"]
[20210428,"17:00:00",null,"OOPS","OOPS","",null,null,null,null,null,null,null,null,null,null,null,null,null,null,null,null,null,null,null,null,null,null,null,"RD","I",23,1,14,44201,2,1,8,47,20190428,"17:00:00",52.4,null,null,null,null,null,null,null,null,null,"X","X"]
[20210430,"04:00:00",null,"OOPS","OOPS","",null,null,null,null,null,null,null,null,null,null,null,null,null,null,null,null,null,null,null,null,null,null,null,"RD","I",23,1,14,44201,2,1,8,47,20190430,"04:00:00",7.1,null,null,null,null,null,null,null,null,null,"X","X"]
[20210430,"21:00:00",null,"OOPS","OOPS","",null,null,null,null,null,null,null,null,null,null,null,null,null,null,null,null,null,null,null,null,null,null,null,"RD","I",23,1,14,44201,2,1,8,47,20190430,"21:00:00",9.9,null,null,null,null,null,null,null,null,null,"X","X"]
[20210502,"08:00:00",null,"OOPS","OOPS","",null,null,null,null,null,null,null,null,null,null,null,null,null,null,null,null,null,null,null,null,null,null,null,"RD","I",23,1,14,44201,2,1,8,47,20190502,"08:00:00",46.4,null,null,null,null,null,null,null,null,null,"X","X"]
[20210503,"23:00:00",null,"OOPS","OOPS","",null,null,null,null,null,null,null,null,null,null,null,null,null,null,null,null,null,null,null,null,null,null,null,"RD","I",23,1,14,44201,2,1,8,47,20190503,"23:00:00",25.5,null,null,null,null,null,null,null,null,null,"X","X"]
[20210505,"03:00:00",null,"OOPS","OOPS","",null,null,null,null,null,null,null,null,null,null,null,null,null,null,null,null,null,null,null,null,null,null,null,"RD","I",23,1,14,44201,2,1,8,47,20190505,"03:00:00",41.5,null,null,null,null,null,null,null,null,null,"X","X"]
[20210506,"14:00:00",null,"OOPS","OOPS","",null,null,null,null,null,null,null,null,null,null,null,null,null,null,null,null,null,null,null,null,null,null,null,"RD","I",23,1,14,44201,2,1,8,47,20190506,"14:00:00",52.6,null,null,null,null,null,null,null,null,null,"X","X"]
[20210508,"17:00:00",null,"OOPS","OOPS","",null,null,null,null,null,null,null,null,null,null,null,null,null,null,null,null,null,null,null,null,null,null,null,"RD","I",23,1,14,44201,2,1,8,47,20190508,"17:00:00",41.5,null,null,null,null,null,null,null,null,null,"X","X"]
[20210509,"13:00:00",null,"OOPS","OOPS","",null,null,null,null,null,null,null,null,null,null,null,null,null,null,null,null,null,null,null,null,null,null,null,"RD","I",23,1,14,44201,2,1,8,47,20190509,"13:00:00",52.6,null,null,null,null,null,null,null,null,null,"X","X"]
[20210510,"20:00:00",null,"OOPS","OOPS","",null,null,null,null,null,null,null,null,null,null,null,null,null,null,null,null,null,null,null,null,null,null,null,"RD","I",23,1,14,44201,2,1,8,47,20190510,"20:00:00",36.700000000000003,null,null,null,null,null,null,null,null,null,"X","X"]
[20210512,"23:00:00",null,"OOPS","OOPS","",null,null,null,null,null,null,null,null,null,null,null,null,null,null,null,null,null,null,null,null,null,null,null,"RD","I",23,1,14,44201,2,1,8,47,20190512,"23:00:00",7,null,null,null,null,null,null,null,null,null,"X","X"]
[20210513,"00:00:00",null,"OOPS","OOPS","",null,null,null,null,null,null,null,null,null,null,null,null,null,null,null,null,null,null,null,null,null,null,null,"RD","I",23,1,14,44201,2,1,8,47,20190513,"00:00:00",5.0999999999999996,null,null,null,null,null,null,null,null,null,"X","X"]
[20210515,"03:00:00",null,"OOPS","OOPS","",null,null,null,null,null,null,null,null,null,null,null,null,null,null,null,null,null,null,null,null,null,null,null,"RD","I",23,1,14,44201,2,1,8,47,20190515,"03:00:00",1.7,null,null,null,null,null,null,null,null,null,"X","X"]
[20210516,"15:00:00",null,"OOPS","OOPS","",null,null,null,null,null,null,null,null,null,null,null,null,null,null,null,null,null,null,null,null,null,null,null,"RD","I",23,1,14,44201,2,1,8,47,20190516,"15:00:00",35.6,null,null,null,null,null,null,null,null,null,"X","X"]
[20210517,"06:00:00",null,"OOPS","OOPS","",null,null,null,null,null,null,null,null,null,null,null,null,null,null,null,null,null,null,null,null,null,null,null,"RD","I",23,1,14,44201,2,1,8,47,20190517,"06:00:00",16.7,null,null,null,null,null,null,null,null,null,"X","X"]
[20210519,"09:00:00",null,"OOPS","OOPS","",null,null,null,null,null,null,null,null,null,null,null,null,null,null,null,null,null,null,null,null,null,null,null,"RD","I",23,1,14,44201,2,1,8,47,20190519,"09:00:00",39.5,null,null,null,null,null,null,null,null,null,"X","X"]
[20210520,"20:00:00",null,"OOPS","OOPS","",null,null,null,null,null,null,null,null,null,null,null,null,null,null,null,null,null,null,null,null,null,null,null,"RD","I",23,1,14,44201,2,1,8,47,20190520,"20:00:00",20.3,null,null,null,null,null,null,null,null,null,"X","X"]
[20210521,"13:00:00",null,"OOPS","OOPS","",null,null,null,null,null,null,null,null,null,null,null,null,null,null,null,null,null,null,null,null,null,null,null,"RD","I",23,1,14,44201,2,1,8,47,20190521,"13:00:00",42.1,null,null,null,null,null,null,null,null,null,"X","X"]
[20210523,"21:00:00",null,"OOPS","OOPS","",null,null,null,null,null,null,null,null,null,null,null,null,null,null,null,null,null,null,null,null,null,null,null,"RD","I",23,1,14,44201,2,1,8,47,20190523,"21:00:00",35.799999999999997,null,null,null,null,null,null,null,null,null,"X","X"]
[20210525,"02:00:00",null,"OOPS","OOPS","",null,null,null,null,null,null,null,null,null,null,null,null,null,null,null,null,null,null,null,null,null,null,null,"RD","I",23,1,14,44201,2,1,8,47,20190525,"02:00:00",8.8000000000000007,null,null,null,null,null,null,null,null,null,"X",{"$f":"IF(AO3460=\"\",\"\",IF(AO3460=AO3459,IF(AP3460=AP3459,\"\",\"X\"),\"X\"))","v":"X"}]
[20210525,"19:00:00",null,"OOPS","OOPS","",null,null,null,null,null,null,null,null,null,null,null,null,null,null,null,null,null,null,null,null,null,null,null,"RD","I",23,1,14,44201,2,1,8,47,20190525,"19:00:00",58.6,null,null,null,null,null,null,null,null,null,"X","X"]
[20210527,"22:00:00",null,"OOPS","OOPS","",null,null,null,null,null,null,null,null,null,null,null,null,null,null,null,null,null,null,null,null,null,null,null,"RD","I",23,1,14,44201,2,1,8,47,20190527,"22:00:00",25.2,null,null,null,null,null,null,null,null,null,"X","X"]
[20210529,"09:00:00",null,"OOPS","OOPS","",null,null,null,null,null,null,null,null,null,null,null,null,null,null,null,null,null,null,null,null,null,null,null,"RD","I",23,1,14,44201,2,1,8,47,20190529,"09:00:00",37.9,null,null,null,null,null,null,null,null,null,"X","X"]
[20210531,"03:00:00",null,"OOPS","OOPS","",null,null,null,null,null,null,null,null,null,null,null,null,null,null,null,null,null,null,null,null,null,null,null,"RD","I",23,1,14,44201,2,1,8,47,20190531,"03:00:00",2.2999999999999998,null,null,null,null,null,null,null,null,null,"X","X"]
[20210531,"12:00:00",null,"OOPS","OOPS","",null,null,null,null,null,null,null,null,null,null,null,null,null,null,null,null,null,null,null,null,null,null,null,"RD","I",23,1,14,44201,2,1,8,47,20190531,"12:00:00",48.1,null,null,null,null,null,null,null,null,null,"X","X"]
[20210602,"15:00:00",null,"OOPS","OOPS","",null,null,null,null,null,null,null,null,null,null,null,null,null,null,null,null,null,null,null,null,null,null,null,"RD","I",23,1,14,44201,2,1,8,47,20190602,"15:00:00",28.1,null,null,null,null,null,null,null,null,null,"X","X"]
[20210603,"08:00:00",null,"OOPS","OOPS","",null,null,null,null,null,null,null,null,null,null,null,null,null,null,null,null,null,null,null,null,null,null,null,"RD","I",23,1,14,44201,2,1,8,47,20190603,"08:00:00",30.1,null,null,null,null,null,null,null,null,null,"X","X"]
[20210604,"19:00:00",null,"OOPS","OOPS","",null,null,null,null,null,null,null,null,null,null,null,null,null,null,null,null,null,null,null,null,null,null,null,"RD","I",23,1,14,44201,2,1,8,47,20190604,"19:00:00",24.6,null,null,null,null,null,null,null,null,null,"X","X"]
[20210606,"00:00:00",null,"OOPS","OOPS","",null,null,null,null,null,null,null,null,null,null,null,null,null,null,null,null,null,null,null,null,null,null,null,"RD","I",23,1,14,44201,2,1,8,47,20190606,"00:00:00",17.8,null,null,null,null,null,null,null,null,null,"X","X"]
[20210608,"08:00:00",null,"OOPS","OOPS","",null,null,null,null,null,null,null,null,null,null,null,null,null,null,null,null,null,null,null,null,null,null,null,"RD","I",23,1,14,44201,2,1,8,47,20190608,"08:00:00",13.7,null,null,null,null,null,null,null,null,null,"X","X"]
[20210609,"01:00:00",null,"OOPS","OOPS","",null,null,null,null,null,null,null,null,null,null,null,null,null,null,null,null,null,null,null,null,null,null,null,"RD","I",23,1,14,44201,2,1,8,47,20190609,"01:00:00",5.9,null,null,null,null,null,null,null,null,null,"X","X"]
[20210611,"04:00:00",null,"","OOPS","",null,null,null,null,null,null,null,null,null,null,null,null,null,null,null,null,null,null,null,null,null,null,null,"RD","I",23,1,14,44201,2,1,8,47,20190611,"04:00:00",null,"BF",null,null,null,null,null,null,null,null,"X","X"]
[20210611,"14:00:00",null,"OOPS","OOPS","",null,null,null,null,null,null,null,null,null,null,null,null,null,null,null,null,null,null,null,null,null,null,null,"RD","I",23,1,14,44201,2,1,8,47,20190611,"14:00:00",40.299999999999997,null,null,null,null,null,null,null,null,null,"X","X"]
[20210613,"07:00:00",null,"OOPS","OOPS","",null,null,null,null,null,null,null,null,null,null,null,null,null,null,null,null,null,null,null,null,null,null,null,"RD","I",23,1,14,44201,2,1,8,47,20190613,"07:00:00",46.4,null,null,null,null,null,null,null,null,null,"X","X"]
[20210615,"10:00:00",null,"OOPS","OOPS","",null,null,null,null,null,null,null,null,null,null,null,null,null,null,null,null,null,null,null,null,null,null,null,"RD","I",23,1,14,44201,2,1,8,47,20190615,"10:00:00",28.1,null,null,null,null,null,null,null,null,null,"X",{"$f":"IF(AO3972=\"\",\"\",IF(AO3972=AO3971,IF(AP3972=AP3971,\"\",\"X\"),\"X\"))","v":"X"}]
[20210616,"21:00:00",null,"OOPS","OOPS","",null,null,null,null,null,null,null,null,null,null,null,null,null,null,null,null,null,null,null,null,null,null,null,"RD","I",23,1,14,44201,2,1,8,47,20190616,"21:00:00",15,null,null,null,null,null,null,null,null,null,"X","X"]
[20210617,"14:00:00",null,"OOPS","OOPS","",null,null,null,null,null,null,null,null,null,null,null,null,null,null,null,null,null,null,null,null,null,null,null,"RD","I",23,1,14,44201,2,1,8,47,20190617,"14:00:00",37.4,null,null,null,null,null,null,null,null,null,"X","X"]
[20210618,"20:00:00",null,"OOPS","OOPS","",null,null,null,null,null,null,null,null,null,null,null,null,null,null,null,null,null,null,null,null,null,null,null,"RD","I",23,1,14,44201,2,1,8,47,20190618,"20:00:00",43.4,null,null,null,null,null,null,null,null,null,"X","X"]
[20210621,"03:00:00",null,"OOPS","OOPS","",null,null,null,null,null,null,null,null,null,null,null,null,null,null,null,null,null,null,null,null,null,null,null,"RD","I",23,1,14,44201,2,1,8,47,20190621,"03:00:00",1.9,null,null,null,null,null,null,null,null,null,"X","X"]
[20210621,"20:00:00",null,"OOPS","OOPS","",null,null,null,null,null,null,null,null,null,null,null,null,null,null,null,null,null,null,null,null,null,null,null,"RD","I",23,1,14,44201,2,1,8,47,20190621,"20:00:00",13.6,null,null,null,null,null,null,null,null,null,"X","X"]
[20210623,"07:00:00",null,"OOPS","OOPS","",null,null,null,null,null,null,null,null,null,null,null,null,null,null,null,null,null,null,null,null,null,null,null,"RD","I",23,1,14,44201,2,1,8,47,20190623,"07:00:00",19.7,null,null,null,null,null,null,null,null,null,"X","X"]
[20210625,"10:00:00",null,"OOPS","OOPS","",null,null,null,null,null,null,null,null,null,null,null,null,null,null,null,null,null,null,null,null,null,null,null,"RD","I",23,1,14,44201,2,1,8,47,20190625,"10:00:00",29.8,null,null,null,null,null,null,null,null,null,"X","X"]
[20210626,"02:00:00",null,"OOPS","OOPS","",null,null,null,null,null,null,null,null,null,null,null,null,null,null,null,null,null,null,null,null,null,null,null,"RD","I",23,1,14,44201,2,1,8,47,20190626,"02:00:00",0.6,null,null,null,null,null,null,null,null,null,"X",{"$f":"IF(AO4228=\"\",\"\",IF(AO4228=AO4227,IF(AP4228=AP4227,\"\",\"X\"),\"X\"))","v":"X"}]
[20210627,"13:00:00",null,"OOPS","OOPS","",null,null,null,null,null,null,null,null,null,null,null,null,null,null,null,null,null,null,null,null,null,null,null,"RD","I",23,1,14,44201,2,1,8,47,20190627,"13:00:00",58.4,null,null,null,null,null,null,null,null,null,"X","X"]
[20210629,"16:00:00",null,"OOPS","OOPS","",null,null,null,null,null,null,null,null,null,null,null,null,null,null,null,null,null,null,null,null,null,null,null,"RD","I",23,1,14,44201,2,1,8,47,20190629,"16:00:00",35.799999999999997,null,null,null,null,null,null,null,null,null,"X","X"]
[20210701,"03:00:00",null,"OOPS","OOPS","",null,null,null,null,null,null,null,null,null,null,null,null,null,null,null,null,null,null,null,null,null,null,null,"RD","I",23,1,14,44201,2,1,8,47,20190701,"03:00:00",14.6,null,null,null,null,null,null,null,null,null,"X","X"]
[20210701,"20:00:00",null,"OOPS","OOPS","",null,null,null,null,null,null,null,null,null,null,null,null,null,null,null,null,null,null,null,null,null,null,null,"RD","I",23,1,14,44201,2,1,8,47,20190701,"20:00:00",33.700000000000003,null,null,null,null,null,null,null,null,null,"X","X"]
[20210703,"04:00:00",null,"OOPS","OOPS","",null,null,null,null,null,null,null,null,null,null,null,null,null,null,null,null,null,null,null,null,null,null,null,"RD","I",23,1,14,44201,2,1,8,47,20190703,"04:00:00",24.7,null,null,null,null,null,null,null,null,null,"X","X"]
[20210705,"09:00:00",null,"OOPS","OOPS","",null,null,null,null,null,null,null,null,null,null,null,null,null,null,null,null,null,null,null,null,null,null,null,"RD","I",23,1,14,44201,2,1,8,47,20190705,"09:00:00",39.700000000000003,null,null,null,null,null,null,null,null,null,"X","X"]
[20210706,"02:00:00",null,"OOPS","OOPS","",null,null,null,null,null,null,null,null,null,null,null,null,null,null,null,null,null,null,null,null,null,null,null,"RD","I",23,1,14,44201,2,1,8,47,20190706,"02:00:00",43.4,null,null,null,null,null,null,null,null,null,"X","X"]
[20210707,"13:00:00",null,"OOPS","OOPS","",null,null,null,null,null,null,null,null,null,null,null,null,null,null,null,null,null,null,null,null,null,null,null,"RD","I",23,1,14,44201,2,1,8,47,20190707,"13:00:00",32.1,null,null,null,null,null,null,null,null,null,"X","X"]
[20210709,"16:00:00",null,"OOPS","OOPS","",null,null,null,null,null,null,null,null,null,null,null,null,null,null,null,null,null,null,null,null,null,null,null,"RD","I",23,1,14,44201,2,1,8,47,20190709,"16:00:00",71.900000000000006,null,null,null,null,null,null,null,null,null,"X","X"]
[20210710,"10:00:00",null,"OOPS","OOPS","",null,null,null,null,null,null,null,null,null,null,null,null,null,null,null,null,null,null,null,null,null,null,null,"RD","I",23,1,14,44201,2,1,8,47,20190710,"10:00:00",47,null,null,null,null,null,null,null,null,null,"X","X"]
[20210711,"19:00:00",null,"OOPS","OOPS","",null,null,null,null,null,null,null,null,null,null,null,null,null,null,null,null,null,null,null,null,null,null,null,"RD","I",23,1,14,44201,2,1,8,47,20190711,"19:00:00",25.5,null,null,null,null,null,null,null,null,null,"X","X"]
[20210713,"22:00:00",null,"OOPS","OOPS","",null,null,null,null,null,null,null,null,null,null,null,null,null,null,null,null,null,null,null,null,null,null,null,"RD","I",23,1,14,44201,2,1,8,47,20190713,"22:00:00",10.5,null,null,null,null,null,null,null,null,null,"X","X"]
[20210714,"15:00:00",null,"OOPS","OOPS","",null,null,null,null,null,null,null,null,null,null,null,null,null,null,null,null,null,null,null,null,null,null,null,"RD","I",23,1,14,44201,2,1,8,47,20190714,"15:00:00",23.4,null,null,null,null,null,null,null,null,null,"X","X"]
[20210716,"02:00:00",null,"OOPS","OOPS","",null,null,null,null,null,null,null,null,null,null,null,null,null,null,null,null,null,null,null,null,null,null,null,"RD","I",23,1,14,44201,2,1,8,47,20190716,"02:00:00",9.6999999999999993,null,null,null,null,null,null,null,null,null,"X","X"]
[20210717,"16:00:00",null,"OOPS","OOPS","",null,null,null,null,null,null,null,null,null,null,null,null,null,null,null,null,null,null,null,null,null,null,null,"RD","I",23,1,14,44201,2,1,8,47,20190717,"16:00:00",28.2,null,null,null,null,null,null,null,null,null,"X","X"]
[20210718,"05:00:00",null,"OOPS","OOPS","",null,null,null,null,null,null,null,null,null,null,null,null,null,null,null,null,null,null,null,null,null,null,null,"RD","I",23,1,14,44201,2,1,8,47,20190718,"05:00:00",11.9,null,null,null,null,null,null,null,null,null,"X","X"]
[20210720,"08:00:00",null,"OOPS","OOPS","",null,null,null,null,null,null,null,null,null,null,null,null,null,null,null,null,null,null,null,null,null,null,null,"RD","I",23,1,14,44201,2,1,8,47,20190720,"08:00:00",26.5,null,null,null,null,null,null,null,null,null,"X","X"]
[20210721,"01:00:00",null,"","OOPS","",null,null,null,null,null,null,null,null,null,null,null,null,null,null,null,null,null,null,null,null,null,null,null,"RD","I",23,1,14,44201,2,1,8,47,20190721,"01:00:00",0,null,null,null,null,null,null,null,null,null,"X","X"]
[20210723,"06:00:00",null,"OOPS","OOPS","",null,null,null,null,null,null,null,null,null,null,null,null,null,null,null,null,null,null,null,null,null,null,null,"RD","I",23,1,14,44201,2,1,8,47,20190723,"06:00:00",14.5,null,null,null,null,null,null,null,null,null,"X","X"]
[20210724,"14:00:00",null,"OOPS","OOPS","",null,null,null,null,null,null,null,null,null,null,null,null,null,null,null,null,null,null,null,null,null,null,null,"RD","I",23,1,14,44201,2,1,8,47,20190724,"14:00:00",23.2,null,null,null,null,null,null,null,null,null,"X","X"]
[20210726,"01:00:00",null,{"$f":"IF(C4947=AP4947,\"\",\"OOPS\")","v":"OOPS"},{"$f":"IF(A4947=AN4947,\"\",\"OOPS\")","v":"OOPS"},{"$f":"IF(B4947=AO4947,\"\",\"OOPS\")","v":""},null,null,null,null,null,null,null,null,null,null,null,null,null,null,null,null,null,null,null,null,null,null,null,"RD","I",23,1,14,44201,2,1,8,47,20190726,"01:00:00",20.3,null,null,null,null,null,null,null,null,null,"X","X"]
[20210726,"18:00:00",null,"OOPS","OOPS","",null,null,null,null,null,null,null,null,null,null,null,null,null,null,null,null,null,null,null,null,null,null,null,"RD","I",23,1,14,44201,2,1,8,47,20190726,"18:00:00",23.9,null,null,null,null,null,null,null,null,null,"X","X"]
[20210728,"21:00:00",null,"OOPS","OOPS","",null,null,null,null,null,null,null,null,null,null,null,null,null,null,null,null,null,null,null,null,null,null,null,"RD","I",23,1,14,44201,2,1,8,47,20190728,"21:00:00",22.9,null,null,null,null,null,null,null,null,null,"X","X"]
[20210730,"12:00:00",null,"OOPS","OOPS","",null,null,null,null,null,null,null,null,null,null,null,null,null,null,null,null,null,null,null,null,null,null,null,"RD","I",23,1,14,44201,2,1,8,47,20190730,"12:00:00",31.6,null,null,null,null,null,null,null,null,null,"X","X"]
[20210731,"00:00:00",null,"OOPS","OOPS","",null,null,null,null,null,null,null,null,null,null,null,null,null,null,null,null,null,null,null,null,null,null,null,"RD","I",23,1,14,44201,2,1,8,47,20190731,"00:00:00",0.5,null,null,null,null,null,null,null,null,null,"X","X"]
[20210802,"03:00:00",null,"","OOPS","",null,null,null,null,null,null,null,null,null,null,null,null,null,null,null,null,null,null,null,null,null,null,null,"RD","I",23,1,14,44201,2,1,8,47,20190802,"03:00:00",null,"BF",null,null,null,null,null,null,null,null,"X","X"]
[20210803,"14:00:00",null,"OOPS","OOPS","",null,null,null,null,null,null,null,null,null,null,null,null,null,null,null,null,null,null,null,null,null,null,null,"RD","I",23,1,14,44201,2,1,8,47,20190803,"14:00:00",40.700000000000003,null,null,null,null,null,null,null,null,null,"X","X"]
[20210804,"07:00:00",null,"OOPS","OOPS","",null,null,null,null,null,null,null,null,null,null,null,null,null,null,null,null,null,null,null,null,null,null,null,"RD","I",23,1,14,44201,2,1,8,47,20190804,"07:00:00",11.5,null,null,null,null,null,null,null,null,null,"X","X"]
[20210806,"18:00:00",null,"OOPS","OOPS","",null,null,null,null,null,null,null,null,null,null,null,null,null,null,null,null,null,null,null,null,null,null,null,"RD","I",23,1,14,44201,2,1,8,47,20190806,"18:00:00",13.7,null,null,null,null,null,null,null,null,null,"X","X"]
[20210807,"20:00:00",null,"OOPS","OOPS","",null,null,null,null,null,null,null,null,null,null,null,null,null,null,null,null,null,null,null,null,null,null,null,"RD","I",23,1,14,44201,2,1,8,47,20190807,"20:00:00",13.7,null,null,null,null,null,null,null,null,null,"X","X"]
[20210808,"13:00:00",null,"OOPS","OOPS","",null,null,null,null,null,null,null,null,null,null,null,null,null,null,null,null,null,null,null,null,null,null,null,"RD","I",23,1,14,44201,2,1,8,47,20190808,"13:00:00",38.9,null,null,null,null,null,null,null,null,null,"X","X"]
[20210810,"00:00:00",null,"OOPS","OOPS","",null,null,null,null,null,null,null,null,null,null,null,null,null,null,null,null,null,null,null,null,null,null,null,"RD","I",23,1,14,44201,2,1,8,47,20190810,"00:00:00",9.9,null,null,null,null,null,null,null,null,null,"X","X"]
[20210812,"03:00:00",null,"OOPS","OOPS","",null,null,null,null,null,null,null,null,null,null,null,null,null,null,null,null,null,null,null,null,null,null,null,"RD","I",23,1,14,44201,2,1,8,47,20190812,"03:00:00",8.6,null,null,null,null,null,null,null,null,null,"X","X"]
[20210812,"15:00:00",null,"OOPS","OOPS","",null,null,null,null,null,null,null,null,null,null,null,null,null,null,null,null,null,null,null,null,null,null,null,"RD","I",23,1,14,44201,2,1,8,47,20190812,"15:00:00",21,null,null,null,null,null,null,null,null,null,"X","X"]
[20210814,"06:00:00",null,"OOPS","OOPS","",null,null,null,null,null,null,null,null,null,null,null,null,null,null,null,null,null,null,null,null,null,null,null,"RD","I",23,1,14,44201,2,1,8,47,20190814,"06:00:00",12.9,null,null,null,null,null,null,null,null,null,"X","X"]
[20210816,"09:00:00",null,{"$f":"IF(C5459=AP5459,\"\",\"OOPS\")","v":"OOPS"},{"$f":"IF(A5459=AN5459,\"\",\"OOPS\")","v":"OOPS"},{"$f":"IF(B5459=AO5459,\"\",\"OOPS\")","v":""},null,null,null,null,null,null,null,null,null,null,null,null,null,null,null,null,null,null,null,null,null,null,null,"RD","I",23,1,14,44201,2,1,8,47,20190816,"09:00:00",28,null,null,null,null,null,null,null,null,null,"X","X"]
[20210817,"20:00:00",null,"OOPS","OOPS","",null,null,null,null,null,null,null,null,null,null,null,null,null,null,null,null,null,null,null,null,null,null,null,"RD","I",23,1,14,44201,2,1,8,47,20190817,"20:00:00",30.6,null,null,null,null,null,null,null,null,null,"X","X"]
[20210818,"13:00:00",null,"OOPS","OOPS","",null,null,null,null,null,null,null,null,null,null,null,null,null,null,null,null,null,null,null,null,null,null,null,"RD","I",23,1,14,44201,2,1,8,47,20190818,"13:00:00",18.2,null,null,null,null,null,null,null,null,null,"X","X"]
[20210819,"17:00:00",null,"OOPS","OOPS","",null,null,null,null,null,null,null,null,null,null,null,null,null,null,null,null,null,null,null,null,null,null,null,"RD","I",23,1,14,44201,2,1,8,47,20190819,"17:00:00",21.5,null,null,null,null,null,null,null,null,null,"X","X"]
[20210822,"02:00:00",null,"OOPS","OOPS","",null,null,null,null,null,null,null,null,null,null,null,null,null,null,null,null,null,null,null,null,null,null,null,"RD","I",23,1,14,44201,2,1,8,47,20190822,"02:00:00",9.4,null,null,null,null,null,null,null,null,null,"X","X"]
[20210822,"19:00:00",null,"OOPS","OOPS","",null,null,null,null,null,null,null,null,null,null,null,null,null,null,null,null,null,null,null,null,null,null,null,"RD","I",23,1,14,44201,2,1,8,47,20190822,"19:00:00",9.4,null,null,null,null,null,null,null,null,null,"X","X"]
[20210824,"06:00:00",null,"","OOPS","",null,null,null,null,null,null,null,null,null,null,null,null,null,null,null,null,null,null,null,null,null,null,null,"RD","I",23,1,14,44201,2,1,8,47,20190824,"06:00:00",0,null,null,null,null,null,null,null,null,null,"X","X"]
[20210825,"07:00:00",null,"OOPS","OOPS","",null,null,null,null,null,null,null,null,null,null,null,null,null,null,null,null,null,null,null,null,null,null,null,"RD","I",23,1,14,44201,2,1,8,47,20190825,"07:00:00",10.4,null,null,null,null,null,null,null,null,null,"X","X"]
[20210827,"01:00:00",null,{"$f":"IF(C5715=AP5715,\"\",\"OOPS\")","v":"OOPS"},{"$f":"IF(A5715=AN5715,\"\",\"OOPS\")","v":"OOPS"},{"$f":"IF(B5715=AO5715,\"\",\"OOPS\")","v":""},null,null,null,null,null,null,null,null,null,null,null,null,null,null,null,null,null,null,null,null,null,null,null,"RD","I",23,1,14,44201,2,1,8,47,20190827,"01:00:00",3.8,null,null,null,null,null,null,null,null,null,"X","X"]
[20210828,"12:00:00",null,"OOPS","OOPS","",null,null,null,null,null,null,null,null,null,null,null,null,null,null,null,null,null,null,null,null,null,null,null,"RD","I",23,1,14,44201,2,1,8,47,20190828,"12:00:00",39.200000000000003,null,null,null,null,null,null,null,null,null,"X","X"]
[20210830,"15:00:00",null,"OOPS","OOPS","",null,null,null,null,null,null,null,null,null,null,null,null,null,null,null,null,null,null,null,null,null,null,null,"RD","I",23,1,14,44201,2,1,8,47,20190830,"15:00:00",26.2,null,null,null,null,null,null,null,null,null,"X","X"]
[20210831,"08:00:00",null,"OOPS","OOPS","",null,null,null,null,null,null,null,null,null,null,null,null,null,null,null,null,null,null,null,null,null,null,null,"RD","I",23,1,14,44201,2,1,8,47,20190831,"08:00:00",21.6,null,null,null,null,null,null,null,null,null,"X","X"]
[20210901,"13:00:00",null,"OOPS","OOPS","",null,null,null,null,null,null,null,null,null,null,null,null,null,null,null,null,null,null,null,null,null,null,null,"RD","I",23,1,14,44201,2,1,8,47,20190901,"13:00:00",35.5,null,null,null,null,null,null,null,null,null,"X","X"]
[20210903,"21:00:00",null,"OOPS","OOPS","",null,null,null,null,null,null,null,null,null,null,null,null,null,null,null,null,null,null,null,null,null,null,null,"RD","I",23,1,14,44201,2,1,8,47,20190903,"21:00:00",15.3,null,null,null,null,null,null,null,null,null,"X","X"]
[20210905,"08:00:00",null,"OOPS","OOPS","",null,null,null,null,null,null,null,null,null,null,null,null,null,null,null,null,null,null,null,null,null,null,null,"RD","I",23,1,14,44201,2,1,8,47,20190905,"08:00:00",21.7,null,null,null,null,null,null,null,null,null,"X","X"]
[20210906,"01:00:00",null,"OOPS","OOPS","",null,null,null,null,null,null,null,null,null,null,null,null,null,null,null,null,null,null,null,null,null,null,null,"RD","I",23,1,14,44201,2,1,8,47,20190906,"01:00:00",16.899999999999999,null,null,null,null,null,null,null,null,null,"X","X"]
[20210908,"04:00:00",null,"OOPS","OOPS","",null,null,null,null,null,null,null,null,null,null,null,null,null,null,null,null,null,null,null,null,null,null,null,"RD","I",23,1,14,44201,2,1,8,47,20190908,"04:00:00",2.2999999999999998,null,null,null,null,null,null,null,null,null,"X","X"]
[20210908,"19:00:00",null,"OOPS","OOPS","",null,null,null,null,null,null,null,null,null,null,null,null,null,null,null,null,null,null,null,null,null,null,null,"RD","I",23,1,14,44201,2,1,8,47,20190908,"19:00:00",5.7,null,null,null,null,null,null,null,null,null,"X","X"]
[20210910,"07:00:00",null,"OOPS","OOPS","",null,null,null,null,null,null,null,null,null,null,null,null,null,null,null,null,null,null,null,null,null,null,null,"RD","I",23,1,14,44201,2,1,8,47,20190910,"07:00:00",4.5,null,null,null,null,null,null,null,null,null,"X","X"]
[20210911,"18:00:00",null,"OOPS","OOPS","",null,null,null,null,null,null,null,null,null,null,null,null,null,null,null,null,null,null,null,null,null,null,null,"RD","I",23,1,14,44201,2,1,8,47,20190911,"18:00:00",8.3000000000000007,null,null,null,null,null,null,null,null,null,"X","X"]
[20210913,"21:00:00",null,"OOPS","OOPS","",null,null,null,null,null,null,null,null,null,null,null,null,null,null,null,null,null,null,null,null,null,null,null,"RD","I",23,1,14,44201,2,1,8,47,20190913,"21:00:00",0.5,null,null,null,null,null,null,null,null,null,"X","X"]
[20210914,"14:00:00",null,"OOPS","OOPS","",null,null,null,null,null,null,null,null,null,null,null,null,null,null,null,null,null,null,null,null,null,null,null,"RD","I",23,1,14,44201,2,1,8,47,20190914,"14:00:00",30.5,null,null,null,null,null,null,null,null,null,"X","X"]
[20210916,"01:00:00",null,"OOPS","OOPS","",null,null,null,null,null,null,null,null,null,null,null,null,null,null,null,null,null,null,null,null,null,null,null,"RD","I",23,1,14,44201,2,1,8,47,20190916,"01:00:00",6.3,null,null,null,null,null,null,null,null,null,"X","X"]
[20210916,"17:00:00",null,"OOPS","OOPS","",null,null,null,null,null,null,null,null,null,null,null,null,null,null,null,null,null,null,null,null,null,null,null,"RD","I",23,1,14,44201,2,1,8,47,20190916,"17:00:00",30.3,null,null,null,null,null,null,null,null,null,"X","X"]
[20210918,"20:00:00",null,"OOPS","OOPS","",null,null,null,null,null,null,null,null,null,null,null,null,null,null,null,null,null,null,null,null,null,null,null,"RD","I",23,1,14,44201,2,1,8,47,20190918,"20:00:00",7.8,null,null,null,null,null,null,null,null,null,"X","X"]
[20210920,"07:00:00",null,"OOPS","OOPS","",null,null,null,null,null,null,null,null,null,null,null,null,null,null,null,null,null,null,null,null,null,null,null,"RD","I",23,1,14,44201,2,1,8,47,20190920,"07:00:00",10.8,null,null,null,null,null,null,null,null,null,"X","X"]
[20210921,"00:00:00",null,"OOPS","OOPS","",null,null,null,null,null,null,null,null,null,null,null,null,null,null,null,null,null,null,null,null,null,null,null,"RD","I",23,1,14,44201,2,1,8,47,20190921,"00:00:00",-0.2,null,null,null,null,null,null,null,null,null,"X","X"]
[20210923,"07:00:00",null,"OOPS","OOPS","",null,null,null,null,null,null,null,null,null,null,null,null,null,null,null,null,null,null,null,null,null,null,null,"RD","I",23,1,14,44201,2,1,8,47,20190923,"07:00:00",7.8,null,null,null,null,null,null,null,null,null,"X","X"]
[20210924,"13:00:00",null,"OOPS","OOPS","",null,null,null,null,null,null,null,null,null,null,null,null,null,null,null,null,null,null,null,null,null,null,null,"RD","I",23,1,14,44201,2,1,8,47,20190924,"13:00:00",26.4,null,null,null,null,null,null,null,null,null,"X","X"]
[20210925,"06:00:00",null,"","OOPS","",null,null,null,null,null,null,null,null,null,null,null,null,null,null,null,null,null,null,null,null,null,null,null,"RD","I",23,1,14,44201,2,1,8,47,20190925,"06:00:00",0,null,null,null,null,null,null,null,null,null,"X","X"]
[20210926,"17:00:00",null,"OOPS","OOPS","",null,null,null,null,null,null,null,null,null,null,null,null,null,null,null,null,null,null,null,null,null,null,null,"RD","I",23,1,14,44201,2,1,8,47,20190926,"17:00:00",24.9,null,null,null,null,null,null,null,null,null,"X","X"]
[20210928,"17:00:00",null,"OOPS","OOPS","",null,null,null,null,null,null,null,null,null,null,null,null,null,null,null,null,null,null,null,null,null,null,null,"RD","I",23,1,14,44201,2,1,8,47,20190928,"17:00:00",11.4,null,null,null,null,null,null,null,null,null,"X","X"]
[20210929,"12:00:00",null,"OOPS","OOPS","",null,null,null,null,null,null,null,null,null,null,null,null,null,null,null,null,null,null,null,null,null,null,null,"RD","I",23,1,14,44201,2,1,8,47,20190929,"12:00:00",34.799999999999997,null,null,null,null,null,null,null,null,null,"X","X"]
[20210930,"23:00:00",null,"OOPS","OOPS","",null,null,null,null,null,null,null,null,null,null,null,null,null,null,null,null,null,null,null,null,null,null,null,"RD","I",23,1,14,44201,2,1,8,47,20190930,"23:00:00",0.7,null,null,null,null,null,null,null,null,null,"X","X"]
[20211003,"02:00:00",null,"","OOPS","",null,null,null,null,null,null,null,null,null,null,null,null,null,null,null,null,null,null,null,null,null,null,null,null,null,null,null,null,null,null,null,null,null,20191003,"02:00:00",null,"XXX",null,null,null,null,null,null,null,null,"X","X"]
[20211004,"13:00:00",null,"","OOPS","",null,null,null,null,null,null,null,null,null,null,null,null,null,null,null,null,null,null,null,null,null,null,null,null,null,null,null,null,null,null,null,null,null,20191004,"13:00:00",null,"XXX",null,null,null,null,null,null,null,null,"X","X"]
[20211005,"23:00:00",null,"","OOPS","",null,null,null,null,null,null,null,null,null,null,null,null,null,null,null,null,null,null,null,null,null,null,null,null,null,null,null,null,null,null,null,null,null,20191005,"23:00:00",null,"XXX",null,null,null,null,null,null,null,null,"X","X"]
[20211007,"08:00:00",null,"","OOPS","",null,null,null,null,null,null,null,null,null,null,null,null,null,null,null,null,null,null,null,null,null,null,null,null,null,null,null,null,null,null,null,null,null,20191007,"08:00:00",null,"XXX",null,null,null,null,null,null,null,null,"X","X"]
[20211008,"19:00:00",null,"","OOPS","",null,null,null,null,null,null,null,null,null,null,null,null,null,null,null,null,null,null,null,null,null,null,null,null,null,null,null,null,null,null,null,null,null,20191008,"19:00:00",null,"XXX",null,null,null,null,null,null,null,null,"X","X"]
[20211009,"12:00:00",null,"","OOPS","",null,null,null,null,null,null,null,null,null,null,null,null,null,null,null,null,null,null,null,null,null,null,null,null,null,null,null,null,null,null,null,null,null,20191009,"12:00:00",null,"XXX",null,null,null,null,null,null,null,null,"X","X"]
[20211010,"23:00:00",null,"","OOPS","",null,null,null,null,null,null,null,null,null,null,null,null,null,null,null,null,null,null,null,null,null,null,null,null,null,null,null,null,null,null,null,null,null,20191010,"23:00:00",null,"XXX",null,null,null,null,null,null,null,null,"X","X"]
[20211013,"05:00:00",null,"","OOPS","",null,null,null,null,null,null,null,null,null,null,null,null,null,null,null,null,null,null,null,null,null,null,null,null,null,null,null,null,null,null,null,null,null,20191013,"05:00:00",null,"XXX",null,null,null,null,null,null,null,null,"X","X"]
[20211013,"18:00:00",null,"","OOPS","",null,null,null,null,null,null,null,null,null,null,null,null,null,null,null,null,null,null,null,null,null,null,null,null,null,null,null,null,null,null,null,null,null,20191013,"18:00:00",null,"XXX",null,null,null,null,null,null,null,null,"X","X"]
[20211015,"05:00:00",null,"","OOPS","",null,null,null,null,null,null,null,null,null,null,null,null,null,null,null,null,null,null,null,null,null,null,null,null,null,null,null,null,null,null,null,null,null,20191015,"05:00:00",null,"XXX",null,null,null,null,null,null,null,null,"X","X"]
[20211017,"08:00:00",null,"","OOPS","",null,null,null,null,null,null,null,null,null,null,null,null,null,null,null,null,null,null,null,null,null,null,null,null,null,null,null,null,null,null,null,null,null,20191017,"08:00:00",null,"XXX",null,null,null,null,null,null,null,null,"X","X"]
[20211018,"01:00:00",null,"","OOPS","",null,null,null,null,null,null,null,null,null,null,null,null,null,null,null,null,null,null,null,null,null,null,null,null,null,null,null,null,null,null,null,null,null,20191018,"01:00:00",null,"XXX",null,null,null,null,null,null,null,null,"X","X"]
[20211020,"11:00:00",null,"","OOPS","",null,null,null,null,null,null,null,null,null,null,null,null,null,null,null,null,null,null,null,null,null,null,null,null,null,null,null,null,null,null,null,null,null,20191020,"11:00:00",null,"XXX",null,null,null,null,null,null,null,null,"X","X"]
[20211021,"14:00:00",null,"","OOPS","",null,null,null,null,null,null,null,null,null,null,null,null,null,null,null,null,null,null,null,null,null,null,null,null,null,null,null,null,null,null,null,null,null,20191021,"14:00:00",null,"XXX",null,null,null,null,null,null,null,null,"X","X"]
[20211023,"01:00:00",null,"","OOPS","",null,null,null,null,null,null,null,null,null,null,null,null,null,null,null,null,null,null,null,null,null,null,null,null,null,null,null,null,null,null,null,null,null,20191023,"01:00:00",null,"XXX",null,null,null,null,null,null,null,null,"X","X"]
[20211023,"18:00:00",null,"","OOPS","",null,null,null,null,null,null,null,null,null,null,null,null,null,null,null,null,null,null,null,null,null,null,null,null,null,null,null,null,null,null,null,null,null,20191023,"18:00:00",null,"XXX",null,null,null,null,null,null,null,null,"X","X"]
[20211025,"21:00:00",null,"","OOPS","",null,null,null,null,null,null,null,null,null,null,null,null,null,null,null,null,null,null,null,null,null,null,null,null,null,null,null,null,null,null,null,null,null,20191025,"21:00:00",null,"XXX",null,null,null,null,null,null,null,null,"X","X"]
[20211026,"08:00:00",null,"","OOPS","",null,null,null,null,null,null,null,null,null,null,null,null,null,null,null,null,null,null,null,null,null,null,null,null,null,null,null,null,null,null,null,null,null,20191026,"08:00:00",null,"XXX",null,null,null,null,null,null,null,null,"X","X"]
[20211028,"00:00:00",null,"","OOPS","",null,null,null,null,null,null,null,null,null,null,null,null,null,null,null,null,null,null,null,null,null,null,null,null,null,null,null,null,null,null,null,null,null,20191028,"00:00:00",null,"XXX",null,null,null,null,null,null,null,null,"X","X"]
[20211029,"11:00:00",null,"","OOPS","",null,null,null,null,null,null,null,null,null,null,null,null,null,null,null,null,null,null,null,null,null,null,null,null,null,null,null,null,null,null,null,null,null,20191029,"11:00:00",null,"XXX",null,null,null,null,null,null,null,null,"X","X"]
[20211031,"14:00:00",null,"","OOPS","",null,null,null,null,null,null,null,null,null,null,null,null,null,null,null,null,null,null,null,null,null,null,null,null,null,null,null,null,null,null,null,null,null,20191031,"14:00:00",null,"XXX",null,null,null,null,null,null,null,null,"X","X"]
[20211102,"03:00:00",null,"","OOPS","",null,null,null,null,null,null,null,null,null,null,null,null,null,null,null,null,null,null,null,null,null,null,null,null,null,null,null,null,null,null,null,null,null,20191102,"03:00:00",null,"XXX",null,null,null,null,null,null,null,null,"X","X"]
[20211102,"17:00:00",null,"","OOPS","",null,null,null,null,null,null,null,null,null,null,null,null,null,null,null,null,null,null,null,null,null,null,null,null,null,null,null,null,null,null,null,null,null,20191102,"17:00:00",null,"XXX",null,null,null,null,null,null,null,null,"X","X"]
[20211104,"20:00:00",null,"","OOPS","",null,null,null,null,null,null,null,null,null,null,null,null,null,null,null,null,null,null,null,null,null,null,null,null,null,null,null,null,null,null,null,null,null,20191104,"20:00:00",null,"XXX",null,null,null,null,null,null,null,null,"X","X"]
[20211105,"13:00:00",null,"","OOPS","",null,null,null,null,null,null,null,null,null,null,null,null,null,null,null,null,null,null,null,null,null,null,null,null,null,null,null,null,null,null,null,null,null,20191105,"13:00:00",null,"XXX",null,null,null,null,null,null,null,null,"X","X"]
[20211107,"00:00:00",null,"","OOPS","",null,null,null,null,null,null,null,null,null,null,null,null,null,null,null,null,null,null,null,null,null,null,null,null,null,null,null,null,null,null,null,null,null,20191107,"00:00:00",null,"XXX",null,null,null,null,null,null,null,null,"X","X"]
[20211108,"00:00:00",null,"","OOPS","",null,null,null,null,null,null,null,null,null,null,null,null,null,null,null,null,null,null,null,null,null,null,null,null,null,null,null,null,null,null,null,null,null,20191108,"00:00:00",null,"XXX",null,null,null,null,null,null,null,null,"X","X"]
[20211110,"13:00:00",null,"","OOPS","",null,null,null,null,null,null,null,null,null,null,null,null,null,null,null,null,null,null,null,null,null,null,null,null,null,null,null,null,null,null,null,null,null,20191110,"13:00:00",null,"XXX",null,null,null,null,null,null,null,null,"X","X"]
[20211111,"06:00:00",null,"","OOPS","",null,null,null,null,null,null,null,null,null,null,null,null,null,null,null,null,null,null,null,null,null,null,null,null,null,null,null,null,null,null,null,null,null,20191111,"06:00:00",null,"XXX",null,null,null,null,null,null,null,null,"X","X"]
[20211113,"09:00:00",null,"","OOPS","",null,null,null,null,null,null,null,null,null,null,null,null,null,null,null,null,null,null,null,null,null,null,null,null,null,null,null,null,null,null,null,null,null,20191113,"09:00:00",null,"XXX",null,null,null,null,null,null,null,null,"X","X"]
[20211114,"20:00:00",null,"","OOPS","",null,null,null,null,null,null,null,null,null,null,null,null,null,null,null,null,null,null,null,null,null,null,null,null,null,null,null,null,null,null,null,null,null,20191114,"20:00:00",null,"XXX",null,null,null,null,null,null,null,null,"X","X"]
[20211115,"06:00:00",null,"","OOPS","",null,null,null,null,null,null,null,null,null,null,null,null,null,null,null,null,null,null,null,null,null,null,null,null,null,null,null,null,null,null,null,null,null,20191115,"06:00:00",null,"XXX",null,null,null,null,null,null,null,null,"X","X"]
[20211117,"15:00:00",null,"","OOPS","",null,null,null,null,null,null,null,null,null,null,null,null,null,null,null,null,null,null,null,null,null,null,null,null,null,null,null,null,null,null,null,null,null,20191117,"15:00:00",null,"XXX",null,null,null,null,null,null,null,null,"X","X"]
[20211117,"16:00:00",null,"","OOPS","",null,null,null,null,null,null,null,null,null,null,null,null,null,null,null,null,null,null,null,null,null,null,null,null,null,null,null,null,null,null,null,null,null,20191117,"16:00:00",null,"XXX",null,null,null,null,null,null,null,null,"X","X"]
[20211119,"19:00:00",null,"","OOPS","",null,null,null,null,null,null,null,null,null,null,null,null,null,null,null,null,null,null,null,null,null,null,null,null,null,null,null,null,null,null,null,null,null,20191119,"19:00:00",null,"XXX",null,null,null,null,null,null,null,null,"X","X"]
[20211121,"06:00:00",null,"","OOPS","",null,null,null,null,null,null,null,null,null,null,null,null,null,null,null,null,null,null,null,null,null,null,null,null,null,null,null,null,null,null,null,null,null,20191121,"06:00:00",null,"XXX",null,null,null,null,null,null,null,null,"X","X"]
[20211122,"12:00:00",null,"","OOPS","",null,null,null,null,null,null,null,null,null,null,null,null,null,null,null,null,null,null,null,null,null,null,null,null,null,null,null,null,null,null,null,null,null,20191122,"12:00:00",null,"XXX",null,null,null,null,null,null,null,null,"X","X"]
[20211124,"01:00:00",null,"","OOPS","",null,null,null,null,null,null,null,null,null,null,null,null,null,null,null,null,null,null,null,null,null,null,null,null,null,null,null,null,null,null,null,null,null,20191124,"01:00:00",null,"XXX",null,null,null,null,null,null,null,null,"X","X"]
[20211125,"12:00:00",null,"","OOPS","",null,null,null,null,null,null,null,null,null,null,null,null,null,null,null,null,null,null,null,null,null,null,null,null,null,null,null,null,null,null,null,null,null,20191125,"12:00:00",null,"XXX",null,null,null,null,null,null,null,null,"X","X"]
[20211126,"05:00:00",null,"","OOPS","",null,null,null,null,null,null,null,null,null,null,null,null,null,null,null,null,null,null,null,null,null,null,null,null,null,null,null,null,null,null,null,null,null,20191126,"05:00:00",null,"XXX",null,null,null,null,null,null,null,null,"X","X"]
[20211127,"16:00:00",null,"","OOPS","",null,null,null,null,null,null,null,null,null,null,null,null,null,null,null,null,null,null,null,null,null,null,null,null,null,null,null,null,null,null,null,null,null,20191127,"16:00:00",null,"XXX",null,null,null,null,null,null,null,null,"X","X"]
[20211129,"18:00:00",null,"","OOPS","",null,null,null,null,null,null,null,null,null,null,null,null,null,null,null,null,null,null,null,null,null,null,null,null,null,null,null,null,null,null,null,null,null,20191129,"18:00:00",null,"XXX",null,null,null,null,null,null,null,null,"X","X"]
[20211130,"11:00:00",null,"","OOPS","",null,null,null,null,null,null,null,null,null,null,null,null,null,null,null,null,null,null,null,null,null,null,null,null,null,null,null,null,null,null,null,null,null,20191130,"11:00:00",null,"XXX",null,null,null,null,null,null,null,null,"X","X"]
[20211201,"22:00:00",null,"","OOPS","",null,null,null,null,null,null,null,null,null,null,null,null,null,null,null,null,null,null,null,null,null,null,null,null,null,null,null,null,null,null,null,null,null,20191201,"22:00:00",null,"XXX",null,null,null,null,null,null,null,null,"X","X"]
[20211204,"01:00:00",null,"","OOPS","",null,null,null,null,null,null,null,null,null,null,null,null,null,null,null,null,null,null,null,null,null,null,null,null,null,null,null,null,null,null,null,null,null,20191204,"01:00:00",null,"XXX",null,null,null,null,null,null,null,null,"X","X"]
[20211205,"04:00:00",null,"","OOPS","",null,null,null,null,null,null,null,null,null,null,null,null,null,null,null,null,null,null,null,null,null,null,null,null,null,null,null,null,null,null,null,null,null,20191205,"04:00:00",null,"XXX",null,null,null,null,null,null,null,null,"X","X"]
[20211206,"04:00:00",null,"","OOPS","",null,null,null,null,null,null,null,null,null,null,null,null,null,null,null,null,null,null,null,null,null,null,null,null,null,null,null,null,null,null,null,null,null,20191206,"04:00:00",null,"XXX",null,null,null,null,null,null,null,null,"X","X"]
[20211208,"07:00:00",null,"","OOPS","",null,null,null,null,null,null,null,null,null,null,null,null,null,null,null,null,null,null,null,null,null,null,null,null,null,null,null,null,null,null,null,null,null,20191208,"07:00:00",null,"XXX",null,null,null,null,null,null,null,null,"X","X"]
[20211209,"18:00:00",null,"","OOPS","",null,null,null,null,null,null,null,null,null,null,null,null,null,null,null,null,null,null,null,null,null,null,null,null,null,null,null,null,null,null,null,null,null,20191209,"18:00:00",null,"XXX",null,null,null,null,null,null,null,null,"X","X"]
[20211210,"11:00:00",null,"","OOPS","",null,null,null,null,null,null,null,null,null,null,null,null,null,null,null,null,null,null,null,null,null,null,null,null,null,null,null,null,null,null,null,null,null,20191210,"11:00:00",null,"XXX",null,null,null,null,null,null,null,null,"X","X"]
[20211212,"10:00:00",null,"","OOPS","",null,null,null,null,null,null,null,null,null,null,null,null,null,null,null,null,null,null,null,null,null,null,null,null,null,null,null,null,null,null,null,null,null,20191212,"10:00:00",null,"XXX",null,null,null,null,null,null,null,null,"X","X"]
[20211214,"00:00:00",null,"","OOPS","",null,null,null,null,null,null,null,null,null,null,null,null,null,null,null,null,null,null,null,null,null,null,null,null,null,null,null,null,null,null,null,null,null,20191214,"00:00:00",null,"XXX",null,null,null,null,null,null,null,null,"X","X"]
[20211214,"17:00:00",null,"","OOPS","",null,null,null,null,null,null,null,null,null,null,null,null,null,null,null,null,null,null,null,null,null,null,null,null,null,null,null,null,null,null,null,null,null,20191214,"17:00:00",null,"XXX",null,null,null,null,null,null,null,null,"X","X"]
[20211216,"20:00:00",null,"","OOPS","",null,null,null,null,null,null,null,null,null,null,null,null,null,null,null,null,null,null,null,null,null,null,null,null,null,null,null,null,null,null,null,null,null,20191216,"20:00:00",null,"XXX",null,null,null,null,null,null,null,null,"X","X"]
[20211218,"07:00:00",null,"","OOPS","",null,null,null,null,null,null,null,null,null,null,null,null,null,null,null,null,null,null,null,null,null,null,null,null,null,null,null,null,null,null,null,null,null,20191218,"07:00:00",null,"XXX",null,null,null,null,null,null,null,null,"X","X"]
[20211219,"16:00:00",null,"","OOPS","",null,null,null,null,null,null,null,null,null,null,null,null,null,null,null,null,null,null,null,null,null,null,null,null,null,null,null,null,null,null,null,null,null,20191219,"16:00:00",null,"XXX",null,null,null,null,null,null,null,null,"X","X"]
[20211220,"10:00:00",null,"","OOPS","",null,null,null,null,null,null,null,null,null,null,null,null,null,null,null,null,null,null,null,null,null,null,null,null,null,null,null,null,null,null,null,null,null,20191220,"10:00:00",null,"XXX",null,null,null,null,null,null,null,null,"X","X"]
[20211222,"13:00:00",null,"","OOPS","",null,null,null,null,null,null,null,null,null,null,null,null,null,null,null,null,null,null,null,null,null,null,null,null,null,null,null,null,null,null,null,null,null,20191222,"13:00:00",null,"XXX",null,null,null,null,null,null,null,null,"X","X"]
[20211223,"06:00:00",null,"","OOPS","",null,null,null,null,null,null,null,null,null,null,null,null,null,null,null,null,null,null,null,null,null,null,null,null,null,null,null,null,null,null,null,null,null,20191223,"06:00:00",null,"XXX",null,null,null,null,null,null,null,null,"X","X"]
[20211224,"17:00:00",null,"","OOPS","",null,null,null,null,null,null,null,null,null,null,null,null,null,null,null,null,null,null,null,null,null,null,null,null,null,null,null,null,null,null,null,null,null,20191224,"17:00:00",null,"XXX",null,null,null,null,null,null,null,null,"X","X"]
[20211226,"22:00:00",null,"","OOPS","",null,null,null,null,null,null,null,null,null,null,null,null,null,null,null,null,null,null,null,null,null,null,null,null,null,null,null,null,null,null,null,null,null,20191226,"22:00:00",null,"XXX",null,null,null,null,null,null,null,null,"X","X"]
[20211228,"06:00:00",null,"","OOPS","",null,null,null,null,null,null,null,null,null,null,null,null,null,null,null,null,null,null,null,null,null,null,null,null,null,null,null,null,null,null,null,null,null,20191228,"06:00:00",null,"XXX",null,null,null,null,null,null,null,null,"X","X"]
[20211228,"23:00:00",null,"","OOPS","",null,null,null,null,null,null,null,null,null,null,null,null,null,null,null,null,null,null,null,null,null,null,null,null,null,null,null,null,null,null,null,null,null,20191228,"23:00:00",null,"XXX",null,null,null,null,null,null,null,null,"X","X"]
[20211231,"02:00:00",null,"","OOPS","",null,null,null,null,null,null,null,null,null,null,null,null,null,null,null,null,null,null,null,null,null,null,null,null,null,null,null,null,null,null,null,null,null,20191231,"02:00:00",null,"XXX",null,null,null,null,null,null,null,null,"X","X"]
[null,null,null,null,null,null,null,null,null,null,null,null,null,null,null,null,20210101,"13:00:00",null,"XXX",null,null,null,null,null,null,null,null,null,null,null,null,null,null,null,null,null,null,null,20190201,"13:00:00",null,"XXX",null,null,null,null,null,null,null,null,"","X"]
[null,null,null,null,null,null,null,null,null,null,null,null,null,null,null,null,20210101,"19:00:00",null,"XXX",null,null,null,null,null,null,null,null,null,null,null,null,null,null,null,null,null,null,null,20190201,"19:00:00",null,"XXX",null,null,null,null,null,null,null,null,"","X"]
[null,null,null,null,null,null,null,null,null,null,null,null,null,null,null,null,20210104,"08:00:00",null,"XXX",null,null,null,null,null,null,null,null,null,null,null,null,null,null,null,null,null,null,null,20190204,"08:00:00",null,"XXX",null,null,null,null,null,null,null,null,"","X"]
[null,null,null,null,null,null,null,null,null,null,null,null,null,null,null,null,20210105,"19:00:00",null,"XXX",null,null,null,null,null,null,null,null,null,null,null,null,null,null,null,null,null,null,null,20190205,"19:00:00",null,"XXX",null,null,null,null,null,null,null,null,"","X"]
[null,null,null,null,null,null,null,null,null,null,null,null,null,null,null,null,20210106,"12:00:00",null,"XXX",null,null,null,null,null,null,null,null,null,null,null,null,null,null,null,null,null,null,null,20190206,"12:00:00",null,"XXX",null,null,null,null,null,null,null,null,"","X"]
[null,null,null,null,null,null,null,null,null,null,null,null,null,null,null,null,20210107,"23:00:00",null,"XXX",null,null,null,null,null,null,null,null,null,null,null,null,null,null,null,null,null,null,null,20190207,"23:00:00",null,"XXX",null,null,null,null,null,null,null,null,"","X"]
[null,null,null,null,null,null,null,null,null,null,null,null,null,null,null,null,20210109,"01:00:00",null,"XXX",null,null,null,null,null,null,null,null,null,null,null,null,null,null,null,null,null,null,null,20190209,"01:00:00",null,"XXX",null,null,null,null,null,null,null,null,"","X"]
[null,null,null,null,null,null,null,null,null,null,null,null,null,null,null,null,20210110,"18:00:00",null,"XXX",null,null,null,null,null,null,null,null,null,null,null,null,null,null,null,null,null,null,null,20190210,"18:00:00",null,"XXX",null,null,null,null,null,null,null,null,"","X"]
[null,null,null,null,null,null,null,null,null,null,null,null,null,null,null,null,20210112,"05:00:00",null,"XXX",null,null,null,null,null,null,null,null,null,null,null,null,null,null,null,null,null,null,null,20190212,"05:00:00",null,"XXX",null,null,null,null,null,null,null,null,"","X"]
[null,null,null,null,null,null,null,null,null,null,null,null,null,null,null,null,20210114,"08:00:00",null,"XXX",null,null,null,null,null,null,null,null,null,null,null,null,null,null,null,null,null,null,null,20190214,"08:00:00",null,"XXX",null,null,null,null,null,null,null,null,"","X"]
[null,null,null,null,null,null,null,null,null,null,null,null,null,null,null,null,20210114,"15:00:00",null,"XXX",null,null,null,null,null,null,null,null,null,null,null,null,null,null,null,null,null,null,null,20190214,"15:00:00",null,"XXX",null,null,null,null,null,null,null,null,"","X"]
[null,null,null,null,null,null,null,null,null,null,null,null,null,null,null,null,20210116,"11:00:00",null,"XXX",null,null,null,null,null,null,null,null,null,null,null,null,null,null,null,null,null,null,null,20190216,"11:00:00",null,"XXX",null,null,null,null,null,null,null,null,"","X"]
[null,null,null,null,null,null,null,null,null,null,null,null,null,null,null,null,20210118,"14:00:00",null,"XXX",null,null,null,null,null,null,null,null,null,null,null,null,null,null,null,null,null,null,null,20190218,"14:00:00",null,"XXX",null,null,null,null,null,null,null,null,"","X"]
[null,null,null,null,null,null,null,null,null,null,null,null,null,null,null,null,20210118,"15:00:00",null,"XXX",null,null,null,null,null,null,null,null,null,null,null,null,null,null,null,null,null,null,null,20190218,"15:00:00",null,"XXX",null,null,null,null,null,null,null,null,"","X"]
[null,null,null,null,null,null,null,null,null,null,null,null,null,null,null,null,20210120,"18:00:00",null,"XXX",null,null,null,null,null,null,null,null,null,null,null,null,null,null,null,null,null,null,null,20190220,"18:00:00",null,"XXX",null,null,null,null,null,null,null,null,"","X"]
[null,null,null,null,null,null,null,null,null,null,null,null,null,null,null,null,20210121,"17:00:00",null,"XXX",null,null,null,null,null,null,null,null,null,null,null,null,null,null,null,null,null,null,null,20190221,"17:00:00",null,"XXX",null,null,null,null,null,null,null,null,"","X"]
[null,null,null,null,null,null,null,null,null,null,null,null,null,null,null,null,20210122,"21:00:00",null,"XXX",null,null,null,null,null,null,null,null,null,null,null,null,null,null,null,null,null,null,null,20190222,"21:00:00",null,"XXX",null,null,null,null,null,null,null,null,"","X"]
[null,null,null,null,null,null,null,null,null,null,null,null,null,null,null,null,20210125,"00:00:00",null,"XXX",null,null,null,null,null,null,null,null,null,null,null,null,null,null,null,null,null,null,null,20190225,"00:00:00",null,"XXX",null,null,null,null,null,null,null,null,"","X"]
[null,null,null,null,null,null,null,null,null,null,null,null,null,null,null,null,20210126,"11:00:00",null,"XXX",null,null,null,null,null,null,null,null,null,null,null,null,null,null,null,null,null,null,null,20190226,"11:00:00",null,"XXX",null,null,null,null,null,null,null,null,"","X"]
[null,null,null,null,null,null,null,null,null,null,null,null,null,null,null,null,20210127,"04:00:00",null,"XXX",null,null,null,null,null,null,null,null,null,null,null,null,null,null,null,null,null,null,null,20190227,"04:00:00",null,"XXX",null,null,null,null,null,null,null,null,"","X"]
[null,null,null,null,null,null,null,null,null,null,null,null,null,null,null,null,20210128,"23:00:00",null,"XXX",null,null,null,null,null,null,null,null,null,null,null,null,null,null,null,null,null,null,null,20190228,"23:00:00",null,"XXX",null,null,null,null,null,null,null,null,"","X"]
[null,null,null,null,null,null,null,null,null,null,null,null,null,null,null,null,20210130,"17:00:00",null,"XXX",null,null,null,null,null,null,null,null,null,null,null,null,null,null,null,null,null,null,null,20190302,"17:00:00",null,"XXX",null,null,null,null,null,null,null,null,"","X"]
[null,null,null,null,null,null,null,null,null,null,null,null,null,null,null,null,20210131,"10:00:00",null,"XXX",null,null,null,null,null,null,null,null,null,null,null,null,null,null,null,null,null,null,null,20190303,"10:00:00",null,"XXX",null,null,null,null,null,null,null,null,"","X"]
[null,null,null,null,null,null,null,null,null,null,null,null,null,null,null,null,20210202,"13:00:00",null,"XXX",null,null,null,null,null,null,null,null,null,null,null,null,null,null,null,null,null,null,null,20190305,"13:00:00",null,"XXX",null,null,null,null,null,null,null,null,"","X"]
[null,null,null,null,null,null,null,null,null,null,null,null,null,null,null,null,20210204,"00:00:00",null,"XXX",null,null,null,null,null,null,null,null,null,null,null,null,null,null,null,null,null,null,null,20190307,"00:00:00",null,"XXX",null,null,null,null,null,null,null,null,"","X"]
[null,null,null,null,null,null,null,null,null,null,null,null,null,null,null,null,20210205,"05:00:00",null,"XXX",null,null,null,null,null,null,null,null,null,null,null,null,null,null,null,null,null,null,null,20190308,"05:00:00",null,"XXX",null,null,null,null,null,null,null,null,"","X"]
[null,null,null,null,null,null,null,null,null,null,null,null,null,null,null,null,20210206,"03:00:00",null,"XXX",null,null,null,null,null,null,null,null,null,null,null,null,null,null,null,null,null,null,null,20190309,"03:00:00",null,"XXX",null,null,null,null,null,null,null,null,"","X"]
[null,null,null,null,null,null,null,null,null,null,null,null,null,null,null,null,20210208,"06:00:00",null,"XXX",null,null,null,null,null,null,null,null,null,null,null,null,null,null,null,null,null,null,null,20190311,"06:00:00",null,"XXX",null,null,null,null,null,null,null,null,"","X"]
[null,null,null,null,null,null,null,null,null,null,null,null,null,null,null,null,20210208,"23:00:00",null,"XXX",null,null,null,null,null,null,null,null,null,null,null,null,null,null,null,null,null,null,null,20190311,"23:00:00",null,"XXX",null,null,null,null,null,null,null,null,"","X"]
[null,null,null,null,null,null,null,null,null,null,null,null,null,null,null,null,20210210,"10:00:00",null,"XXX",null,null,null,null,null,null,null,null,null,null,null,null,null,null,null,null,null,null,null,20190313,"10:00:00",null,"XXX",null,null,null,null,null,null,null,null,"",{"$f":"IF(AO9732=\"\",\"\",IF(AO9732=AO9731,IF(AP9732=AP9731,\"\",\"X\"),\"X\"))","v":"X"}]
[null,null,null,null,null,null,null,null,null,null,null,null,null,null,null,null,20210212,"11:00:00",null,"XXX",null,null,null,null,null,null,null,null,null,null,null,null,null,null,null,null,null,null,null,20190315,"11:00:00",null,"XXX",null,null,null,null,null,null,null,null,"","X"]
[null,null,null,null,null,null,null,null,null,null,null,null,null,null,null,null,20210213,"23:00:00",null,"XXX",null,null,null,null,null,null,null,null,null,null,null,null,null,null,null,null,null,null,null,20190316,"23:00:00",null,"XXX",null,null,null,null,null,null,null,null,"","X"]
[null,null,null,null,null,null,null,null,null,null,null,null,null,null,null,null,20210214,"16:00:00",null,"XXX",null,null,null,null,null,null,null,null,null,null,null,null,null,null,null,null,null,null,null,20190317,"16:00:00",null,"XXX",null,null,null,null,null,null,null,null,"","X"]
[null,null,null,null,null,null,null,null,null,null,null,null,null,null,null,null,20210216,"19:00:00",null,"XXX",null,null,null,null,null,null,null,null,null,null,null,null,null,null,null,null,null,null,null,20190319,"19:00:00",null,"XXX",null,null,null,null,null,null,null,null,"","X"]
[null,null,null,null,null,null,null,null,null,null,null,null,null,null,null,null,20210218,"01:00:00",null,"XXX",null,null,null,null,null,null,null,null,null,null,null,null,null,null,null,null,null,null,null,20190321,"01:00:00",null,"XXX",null,null,null,null,null,null,null,null,"","X"]
[null,null,null,null,null,null,null,null,null,null,null,null,null,null,null,null,20210218,"22:00:00",null,"XXX",null,null,null,null,null,null,null,null,null,null,null,null,null,null,null,null,null,null,null,20190321,"22:00:00",null,"XXX",null,null,null,null,null,null,null,null,"","X"]
[null,null,null,null,null,null,null,null,null,null,null,null,null,null,null,null,20210221,"01:00:00",null,"XXX",null,null,null,null,null,null,null,null,null,null,null,null,null,null,null,null,null,null,null,20190324,"01:00:00",null,"XXX",null,null,null,null,null,null,null,null,"","X"]
[null,null,null,null,null,null,null,null,null,null,null,null,null,null,null,null,20210222,"12:00:00",null,"XXX",null,null,null,null,null,null,null,null,null,null,null,null,null,null,null,null,null,null,null,20190325,"12:00:00",null,"XXX",null,null,null,null,null,null,null,null,"","X"]
[null,null,null,null,null,null,null,null,null,null,null,null,null,null,null,null,20210223,"05:00:00",null,"XXX",null,null,null,null,null,null,null,null,null,null,null,null,null,null,null,null,null,null,null,20190326,"05:00:00",null,"XXX",null,null,null,null,null,null,null,null,"","X"]
[null,null,null,null,null,null,null,null,null,null,null,null,null,null,null,null,20210225,"07:00:00",null,"XXX",null,null,null,null,null,null,null,null,null,null,null,null,null,null,null,null,null,null,null,20190328,"07:00:00",null,"XXX",null,null,null,null,null,null,null,null,"","X"]
[null,null,null,null,null,null,null,null,null,null,null,null,null,null,null,null,20210226,"18:00:00",null,"XXX",null,null,null,null,null,null,null,null,null,null,null,null,null,null,null,null,null,null,null,20190329,"18:00:00",null,"XXX",null,null,null,null,null,null,null,null,"","X"]
[null,null,null,null,null,null,null,null,null,null,null,null,null,null,null,null,20210227,"11:00:00",null,"XXX",null,null,null,null,null,null,null,null,null,null,null,null,null,null,null,null,null,null,null,20190330,"11:00:00",null,"XXX",null,null,null,null,null,null,null,null,"","X"]
[null,null,null,null,null,null,null,null,null,null,null,null,null,null,null,null,20210228,"22:00:00",null,"XXX",null,null,null,null,null,null,null,null,null,null,null,null,null,null,null,null,null,null,null,20190331,"22:00:00",null,"XXX",null,null,null,null,null,null,null,null,"","X"]
[null,null,null,null,null,null,null,null,null,null,null,null,null,null,null,null,20210303,"01:00:00",null,"XXX",null,null,null,null,null,null,null,null,null,null,null,null,null,null,null,null,null,null,null,20190403,"01:00:00",null,"XXX",null,null,null,null,null,null,null,null,"","X"]
[null,null,null,null,null,null,null,null,null,null,null,null,null,null,null,null,20210304,"13:00:00",null,"XXX",null,null,null,null,null,null,null,null,null,null,null,null,null,null,null,null,null,null,null,20190404,"13:00:00",null,"XXX",null,null,null,null,null,null,null,null,"","X"]
[null,null,null,null,null,null,null,null,null,null,null,null,null,null,null,null,20210305,"04:00:00",null,"XXX",null,null,null,null,null,null,null,null,null,null,null,null,null,null,null,null,null,null,null,20190405,"04:00:00",null,"XXX",null,null,null,null,null,null,null,null,"","X"]
[null,null,null,null,null,null,null,null,null,null,null,null,null,null,null,null,20210307,"07:00:00",null,"XXX",null,null,null,null,null,null,null,null,null,null,null,null,null,null,null,null,null,null,null,20190407,"07:00:00",null,"XXX",null,null,null,null,null,null,null,null,"","X"]
[null,null,null,null,null,null,null,null,null,null,null,null,null,null,null,null,20210308,"18:00:00",null,"XXX",null,null,null,null,null,null,null,null,null,null,null,null,null,null,null,null,null,null,null,20190408,"18:00:00",null,"XXX",null,null,null,null,null,null,null,null,"","X"]
[null,null,null,null,null,null,null,null,null,null,null,null,null,null,null,null,20210309,"11:00:00",null,"XXX",null,null,null,null,null,null,null,null,null,null,null,null,null,null,null,null,null,null,null,20190409,"11:00:00",null,"XXX",null,null,null,null,null,null,null,null,"","X"]
[null,null,null,null,null,null,null,null,null,null,null,null,null,null,null,null,20210311,"15:00:00",null,"XXX",null,null,null,null,null,null,null,null,null,null,null,null,null,null,null,null,null,null,null,20190411,"15:00:00",null,"XXX",null,null,null,null,null,null,null,null,"","X"]
[null,null,null,null,null,null,null,null,null,null,null,null,null,null,null,null,20210313,"00:00:00",null,"XXX",null,null,null,null,null,null,null,null,null,null,null,null,null,null,null,null,null,null,null,20190413,"00:00:00",null,"XXX",null,null,null,null,null,null,null,null,"","X"]
[null,null,null,null,null,null,null,null,null,null,null,null,null,null,null,null,20210313,"17:00:00",null,"XXX",null,null,null,null,null,null,null,null,null,null,null,null,null,null,null,null,null,null,null,20190413,"17:00:00",null,"XXX",null,null,null,null,null,null,null,null,"","X"]
[null,null,null,null,null,null,null,null,null,null,null,null,null,null,null,null,20210315,"04:00:00",null,"XXX",null,null,null,null,null,null,null,null,null,null,null,null,null,null,null,null,null,null,null,20190415,"04:00:00",null,"XXX",null,null,null,null,null,null,null,null,"","X"]
[null,null,null,null,null,null,null,null,null,null,null,null,null,null,null,null,20210317,"07:00:00",null,"XXX",null,null,null,null,null,null,null,null,null,null,null,null,null,null,null,null,null,null,null,20190417,"07:00:00",null,"XXX",null,null,null,null,null,null,null,null,"","X"]
[null,null,null,null,null,null,null,null,null,null,null,null,null,null,null,null,20210317,"12:00:00",null,"XXX",null,null,null,null,null,null,null,null,null,null,null,null,null,null,null,null,null,null,null,20190417,"12:00:00",null,"XXX",null,null,null,null,null,null,null,null,"","X"]
[null,null,null,null,null,null,null,null,null,null,null,null,null,null,null,null,20210319,"10:00:00",null,"XXX",null,null,null,null,null,null,null,null,null,null,null,null,null,null,null,null,null,null,null,20190419,"10:00:00",null,"XXX",null,null,null,null,null,null,null,null,"","X"]
[null,null,null,null,null,null,null,null,null,null,null,null,null,null,null,null,20210321,"13:00:00",null,"XXX",null,null,null,null,null,null,null,null,null,null,null,null,null,null,null,null,null,null,null,20190421,"13:00:00",null,"XXX",null,null,null,null,null,null,null,null,"","X"]
[null,null,null,null,null,null,null,null,null,null,null,null,null,null,null,null,20210322,"06:00:00",null,"XXX",null,null,null,null,null,null,null,null,null,null,null,null,null,null,null,null,null,null,null,20190422,"06:00:00",null,"XXX",null,null,null,null,null,null,null,null,"","X"]
[null,null,null,null,null,null,null,null,null,null,null,null,null,null,null,null,20210323,"02:00:00",null,"XXX",null,null,null,null,null,null,null,null,null,null,null,null,null,null,null,null,null,null,null,20190423,"02:00:00",null,"XXX",null,null,null,null,null,null,null,null,"","X"]
[null,null,null,null,null,null,null,null,null,null,null,null,null,null,null,null,20210324,"09:00:00",null,"XXX",null,null,null,null,null,null,null,null,null,null,null,null,null,null,null,null,null,null,null,20190424,"09:00:00",null,"XXX",null,null,null,null,null,null,null,null,"","X"]
[null,null,null,null,null,null,null,null,null,null,null,null,null,null,null,null,20210325,"20:00:00",null,"XXX",null,null,null,null,null,null,null,null,null,null,null,null,null,null,null,null,null,null,null,20190425,"20:00:00",null,"XXX",null,null,null,null,null,null,null,null,"","X"]
[null,null,null,null,null,null,null,null,null,null,null,null,null,null,null,null,20210327,"23:00:00",null,"XXX",null,null,null,null,null,null,null,null,null,null,null,null,null,null,null,null,null,null,null,20190427,"23:00:00",null,"XXX",null,null,null,null,null,null,null,null,"","X"]
[null,null,null,null,null,null,null,null,null,null,null,null,null,null,null,null,20210328,"16:00:00",null,"XXX",null,null,null,null,null,null,null,null,null,null,null,null,null,null,null,null,null,null,null,20190428,"16:00:00",null,"XXX",null,null,null,null,null,null,null,null,"","X"]
[null,null,null,null,null,null,null,null,null,null,null,null,null,null,null,null,20210330,"08:00:00",null,"XXX",null,null,null,null,null,null,null,null,null,null,null,null,null,null,null,null,null,null,null,20190430,"08:00:00",null,"XXX",null,null,null,null,null,null,null,null,"","X"]
[null,null,null,null,null,null,null,null,null,null,null,null,null,null,null,null,20210401,"05:00:00",null,"XXX",null,null,null,null,null,null,null,null,null,null,null,null,null,null,null,null,null,null,null,20190502,"05:00:00",null,"XXX",null,null,null,null,null,null,null,null,"","X"]
[null,null,null,null,null,null,null,null,null,null,null,null,null,null,null,null,20210402,"16:00:00",null,"XXX",null,null,null,null,null,null,null,null,null,null,null,null,null,null,null,null,null,null,null,20190503,"16:00:00",null,"XXX",null,null,null,null,null,null,null,null,"","X"]
[null,null,null,null,null,null,null,null,null,null,null,null,null,null,null,null,20210403,"09:00:00",null,"XXX",null,null,null,null,null,null,null,null,null,null,null,null,null,null,null,null,null,null,null,20190504,"09:00:00",null,"XXX",null,null,null,null,null,null,null,null,"","X"]
[null,null,null,null,null,null,null,null,null,null,null,null,null,null,null,null,20210405,"12:00:00",null,"XXX",null,null,null,null,null,null,null,null,null,null,null,null,null,null,null,null,null,null,null,20190506,"12:00:00",null,"XXX",null,null,null,null,null,null,null,null,"","X"]
[null,null,null,null,null,null,null,null,null,null,null,null,null,null,null,null,20210406,"14:00:00",null,"XXX",null,null,null,null,null,null,null,null,null,null,null,null,null,null,null,null,null,null,null,20190507,"14:00:00",null,"XXX",null,null,null,null,null,null,null,null,"","X"]
[null,null,null,null,null,null,null,null,null,null,null,null,null,null,null,null,20210407,"15:00:00",null,"XXX",null,null,null,null,null,null,null,null,null,null,null,null,null,null,null,null,null,null,null,20190508,"15:00:00",null,"XXX",null,null,null,null,null,null,null,null,"","X"]
[null,null,null,null,null,null,null,null,null,null,null,null,null,null,null,null,20210409,"18:00:00",null,"XXX",null,null,null,null,null,null,null,null,null,null,null,null,null,null,null,null,null,null,null,20190510,"18:00:00",null,"XXX",null,null,null,null,null,null,null,null,"","X"]
[null,null,null,null,null,null,null,null,null,null,null,null,null,null,null,null,20210411,"05:00:00",null,"XXX",null,null,null,null,null,null,null,null,null,null,null,null,null,null,null,null,null,null,null,20190512,"05:00:00",null,"XXX",null,null,null,null,null,null,null,null,"","X"]
[null,null,null,null,null,null,null,null,null,null,null,null,null,null,null,null,20210411,"22:00:00",null,"XXX",null,null,null,null,null,null,null,null,null,null,null,null,null,null,null,null,null,null,null,20190512,"22:00:00",null,"XXX",null,null,null,null,null,null,null,null,"","X"]
[null,null,null,null,null,null,null,null,null,null,null,null,null,null,null,null,20210413,"20:00:00",null,"XXX",null,null,null,null,null,null,null,null,null,null,null,null,null,null,null,null,null,null,null,20190514,"20:00:00",null,"XXX",null,null,null,null,null,null,null,null,"","X"]
[null,null,null,null,null,null,null,null,null,null,null,null,null,null,null,null,20210415,"11:00:00",null,"XXX",null,null,null,null,null,null,null,null,null,null,null,null,null,null,null,null,null,null,null,20190516,"11:00:00",null,"XXX",null,null,null,null,null,null,null,null,"","X"]
[null,null,null,null,null,null,null,null,null,null,null,null,null,null,null,null,20210416,"04:00:00",null,"XXX",null,null,null,null,null,null,null,null,null,null,null,null,null,null,null,null,null,null,null,20190517,"04:00:00",null,"XXX",null,null,null,null,null,null,null,null,"","X"]
[null,null,null,null,null,null,null,null,null,null,null,null,null,null,null,null,20210417,"15:00:00",null,"XXX",null,null,null,null,null,null,null,null,null,null,null,null,null,null,null,null,null,null,null,20190518,"15:00:00",null,"XXX",null,null,null,null,null,null,null,null,"","X"]
[null,null,null,null,null,null,null,null,null,null,null,null,null,null,null,null,20210419,"18:00:00",null,"XXX",null,null,null,null,null,null,null,null,null,null,null,null,null,null,null,null,null,null,null,20190520,"18:00:00",null,"XXX",null,null,null,null,null,null,null,null,"","X"]
[null,null,null,null,null,null,null,null,null,null,null,null,null,null,null,null,20210420,"22:00:00",null,"XXX",null,null,null,null,null,null,null,null,null,null,null,null,null,null,null,null,null,null,null,20190521,"22:00:00",null,"XXX",null,null,null,null,null,null,null,null,"","X"]
[null,null,null,null,null,null,null,null,null,null,null,null,null,null,null,null,20210421,"21:00:00",null,"XXX",null,null,null,null,null,null,null,null,null,null,null,null,null,null,null,null,null,null,null,20190522,"21:00:00",null,"XXX",null,null,null,null,null,null,null,null,"","X"]
[null,null,null,null,null,null,null,null,null,null,null,null,null,null,null,null,20210424,"00:00:00",null,"XXX",null,null,null,null,null,null,null,null,null,null,null,null,null,null,null,null,null,null,null,20190525,"00:00:00",null,"XXX",null,null,null,null,null,null,null,null,"","X"]
[null,null,null,null,null,null,null,null,null,null,null,null,null,null,null,null,20210425,"11:00:00",null,"XXX",null,null,null,null,null,null,null,null,null,null,null,null,null,null,null,null,null,null,null,20190526,"11:00:00",null,"XXX",null,null,null,null,null,null,null,null,"","X"]
[null,null,null,null,null,null,null,null,null,null,null,null,null,null,null,null,20210426,"12:00:00",null,"XXX",null,null,null,null,null,null,null,null,null,null,null,null,null,null,null,null,null,null,null,20190527,"12:00:00",null,"XXX",null,null,null,null,null,null,null,null,"","X"]
[null,null,null,null,null,null,null,null,null,null,null,null,null,null,null,null,20210428,"06:00:00",null,"XXX",null,null,null,null,null,null,null,null,null,null,null,null,null,null,null,null,null,null,null,20190529,"06:00:00",null,"XXX",null,null,null,null,null,null,null,null,"","X"]
[null,null,null,null,null,null,null,null,null,null,null,null,null,null,null,null,20210429,"17:00:00",null,"XXX",null,null,null,null,null,null,null,null,null,null,null,null,null,null,null,null,null,null,null,20190530,"17:00:00",null,"XXX",null,null,null,null,null,null,null,null,"","X"]
[null,null,null,null,null,null,null,null,null,null,null,null,null,null,null,null,20210430,"10:00:00",null,"XXX",null,null,null,null,null,null,null,null,null,null,null,null,null,null,null,null,null,null,null,20190531,"10:00:00",null,"XXX",null,null,null,null,null,null,null,null,"","X"]
[null,null,null,null,null,null,null,null,null,null,null,null,null,null,null,null,20210501,"21:00:00",null,"XXX",null,null,null,null,null,null,null,null,null,null,null,null,null,null,null,null,null,null,null,20190601,"21:00:00",null,"XXX",null,null,null,null,null,null,null,null,"","X"]
[null,null,null,null,null,null,null,null,null,null,null,null,null,null,null,null,20210503,"18:00:00",null,"XXX",null,null,null,null,null,null,null,null,null,null,null,null,null,null,null,null,null,null,null,20190603,"18:00:00",null,"XXX",null,null,null,null,null,null,null,null,"","X"]
[null,null,null,null,null,null,null,null,null,null,null,null,null,null,null,null,20210504,"16:00:00",null,"XXX",null,null,null,null,null,null,null,null,null,null,null,null,null,null,null,null,null,null,null,20190604,"16:00:00",null,"XXX",null,null,null,null,null,null,null,null,"","X"]
[null,null,null,null,null,null,null,null,null,null,null,null,null,null,null,null,20210506,"03:00:00",null,"XXX",null,null,null,null,null,null,null,null,null,null,null,null,null,null,null,null,null,null,null,20190606,"03:00:00",null,"XXX",null,null,null,null,null,null,null,null,"","X"]
[null,null,null,null,null,null,null,null,null,null,null,null,null,null,null,null,20210508,"06:00:00",null,"XXX",null,null,null,null,null,null,null,null,null,null,null,null,null,null,null,null,null,null,null,20190608,"06:00:00",null,"XXX",null,null,null,null,null,null,null,null,"","X"]
[null,null,null,null,null,null,null,null,null,null,null,null,null,null,null,null,20210508,"23:00:00",null,"XXX",null,null,null,null,null,null,null,null,null,null,null,null,null,null,null,null,null,null,null,20190608,"23:00:00",null,"XXX",null,null,null,null,null,null,null,null,"","X"]
[null,null,null,null,null,null,null,null,null,null,null,null,null,null,null,null,20210511,"00:00:00",null,"XXX",null,null,null,null,null,null,null,null,null,null,null,null,null,null,null,null,null,null,null,20190611,"00:00:00",null,"XXX",null,null,null,null,null,null,null,null,"","X"]
[null,null,null,null,null,null,null,null,null,null,null,null,null,null,null,null,20210512,"12:00:00",null,"XXX",null,null,null,null,null,null,null,null,null,null,null,null,null,null,null,null,null,null,null,20190612,"12:00:00",null,"XXX",null,null,null,null,null,null,null,null,"","X"]
[null,null,null,null,null,null,null,null,null,null,null,null,null,null,null,null,20210513,"23:00:00",null,"XXX",null,null,null,null,null,null,null,null,null,null,null,null,null,null,null,null,null,null,null,20190613,"23:00:00",null,"XXX",null,null,null,null,null,null,null,null,"","X"]
[null,null,null,null,null,null,null,null,null,null,null,null,null,null,null,null,20210514,"16:00:00",null,"XXX",null,null,null,null,null,null,null,null,null,null,null,null,null,null,null,null,null,null,null,20190614,"16:00:00",null,"XXX",null,null,null,null,null,null,null,null,"","X"]
[null,null,null,null,null,null,null,null,null,null,null,null,null,null,null,null,20210516,"19:00:00",null,"XXX",null,null,null,null,null,null,null,null,null,null,null,null,null,null,null,null,null,null,null,20190616,"19:00:00",null,"XXX",null,null,null,null,null,null,null,null,"","X"]
[null,null,null,null,null,null,null,null,null,null,null,null,null,null,null,null,20210518,"06:00:00",null,"XXX",null,null,null,null,null,null,null,null,null,null,null,null,null,null,null,null,null,null,null,20190618,"06:00:00",null,"XXX",null,null,null,null,null,null,null,null,"","X"]
[null,null,null,null,null,null,null,null,null,null,null,null,null,null,null,null,20210518,"22:00:00",null,"XXX",null,null,null,null,null,null,null,null,null,null,null,null,null,null,null,null,null,null,null,20190618,"22:00:00",null,"XXX",null,null,null,null,null,null,null,null,"","X"]
[null,null,null,null,null,null,null,null,null,null,null,null,null,null,null,null,20210520,"09:00:00",null,"XXX",null,null,null,null,null,null,null,null,null,null,null,null,null,null,null,null,null,null,null,20190620,"09:00:00",null,"XXX",null,null,null,null,null,null,null,null,"","X"]
[null,null,null,null,null,null,null,null,null,null,null,null,null,null,null,null,20210522,"12:00:00",null,"XXX",null,null,null,null,null,null,null,null,null,null,null,null,null,null,null,null,null,null,null,20190622,"12:00:00",null,"XXX",null,null,null,null,null,null,null,null,"","X"]
[null,null,null,null,null,null,null,null,null,null,null,null,null,null,null,null,20210523,"05:00:00",null,"XXX",null,null,null,null,null,null,null,null,null,null,null,null,null,null,null,null,null,null,null,20190623,"05:00:00",null,"XXX",null,null,null,null,null,null,null,null,"","X"]
[null,null,null,null,null,null,null,null,null,null,null,null,null,null,null,null,20210524,"03:00:00",null,"XXX",null,null,null,null,null,null,null,null,null,null,null,null,null,null,null,null,null,null,null,20190624,"03:00:00",null,"XXX",null,null,null,null,null,null,null,null,"","X"]
[null,null,null,null,null,null,null,null,null,null,null,null,null,null,null,null,20210525,"08:00:00",null,"XXX",null,null,null,null,null,null,null,null,null,null,null,null,null,null,null,null,null,null,null,20190625,"08:00:00",null,"XXX",null,null,null,null,null,null,null,null,"","X"]
[null,null,null,null,null,null,null,null,null,null,null,null,null,null,null,null,20210527,"11:00:00",null,"XXX",null,null,null,null,null,null,null,null,null,null,null,null,null,null,null,null,null,null,null,20190627,"11:00:00",null,"XXX",null,null,null,null,null,null,null,null,"","X"]
[null,null,null,null,null,null,null,null,null,null,null,null,null,null,null,null,20210528,"22:00:00",null,"XXX",null,null,null,null,null,null,null,null,null,null,null,null,null,null,null,null,null,null,null,20190628,"22:00:00",null,"XXX",null,null,null,null,null,null,null,null,"","X"]
[null,null,null,null,null,null,null,null,null,null,null,null,null,null,null,null,20210530,"22:00:00",null,"XXX",null,null,null,null,null,null,null,null,null,null,null,null,null,null,null,null,null,null,null,20190630,"22:00:00",null,"XXX",null,null,null,null,null,null,null,null,"","X"]
[null,null,null,null,null,null,null,null,null,null,null,null,null,null,null,null,20210531,"01:00:00",null,"XXX",null,null,null,null,null,null,null,null,null,null,null,null,null,null,null,null,null,null,null,20190701,"01:00:00",null,"XXX",null,null,null,null,null,null,null,null,"","X"]
[null,null,null,null,null,null,null,null,null,null,null,null,null,null,null,null,20210602,"04:00:00",null,"XXX",null,null,null,null,null,null,null,null,null,null,null,null,null,null,null,null,null,null,null,20190703,"04:00:00",null,"XXX",null,null,null,null,null,null,null,null,"","X"]
[null,null,null,null,null,null,null,null,null,null,null,null,null,null,null,null,20210602,"21:00:00",null,"XXX",null,null,null,null,null,null,null,null,null,null,null,null,null,null,null,null,null,null,null,20190703,"21:00:00",null,"XXX",null,null,null,null,null,null,null,null,"","X"]
[null,null,null,null,null,null,null,null,null,null,null,null,null,null,null,null,20210604,"08:00:00",null,"XXX",null,null,null,null,null,null,null,null,null,null,null,null,null,null,null,null,null,null,null,20190705,"08:00:00",null,"XXX",null,null,null,null,null,null,null,null,"","X"]
[null,null,null,null,null,null,null,null,null,null,null,null,null,null,null,null,20210605,"19:00:00",null,"XXX",null,null,null,null,null,null,null,null,null,null,null,null,null,null,null,null,null,null,null,20190706,"19:00:00",null,"XXX",null,null,null,null,null,null,null,null,"","X"]
[null,null,null,null,null,null,null,null,null,null,null,null,null,null,null,null,20210607,"03:00:00",null,"XXX",null,null,null,null,null,null,null,null,null,null,null,null,null,null,null,null,null,null,null,20190708,"03:00:00",null,"XXX",null,null,null,null,null,null,null,null,"","X"]
[null,null,null,null,null,null,null,null,null,null,null,null,null,null,null,null,20210608,"14:00:00",null,"XXX",null,null,null,null,null,null,null,null,null,null,null,null,null,null,null,null,null,null,null,20190709,"14:00:00",null,"XXX",null,null,null,null,null,null,null,null,"","X"]
[null,null,null,null,null,null,null,null,null,null,null,null,null,null,null,null,20210610,"17:00:00",null,"XXX",null,null,null,null,null,null,null,null,null,null,null,null,null,null,null,null,null,null,null,20190711,"17:00:00",null,"XXX",null,null,null,null,null,null,null,null,"","X"]
[null,null,null,null,null,null,null,null,null,null,null,null,null,null,null,null,20210612,"04:00:00",null,"XXX",null,null,null,null,null,null,null,null,null,null,null,null,null,null,null,null,null,null,null,20190713,"04:00:00",null,"XXX",null,null,null,null,null,null,null,null,"","X"]
[null,null,null,null,null,null,null,null,null,null,null,null,null,null,null,null,20210613,"01:00:00",null,"XXX",null,null,null,null,null,null,null,null,null,null,null,null,null,null,null,null,null,null,null,20190714,"01:00:00",null,"XXX",null,null,null,null,null,null,null,null,"","X"]
[null,null,null,null,null,null,null,null,null,null,null,null,null,null,null,null,20210614,"23:00:00",null,"XXX",null,null,null,null,null,null,null,null,null,null,null,null,null,null,null,null,null,null,null,20190715,"23:00:00",null,"XXX",null,null,null,null,null,null,null,null,"","X"]
[null,null,null,null,null,null,null,null,null,null,null,null,null,null,null,null,20210616,"10:00:00",null,"XXX",null,null,null,null,null,null,null,null,null,null,null,null,null,null,null,null,null,null,null,20190717,"10:00:00",null,"XXX",null,null,null,null,null,null,null,null,"","X"]
[null,null,null,null,null,null,null,null,null,null,null,null,null,null,null,null,20210617,"03:00:00",null,"XXX",null,null,null,null,null,null,null,null,null,null,null,null,null,null,null,null,null,null,null,20190718,"03:00:00",null,"XXX",null,null,null,null,null,null,null,null,"","X"]
[null,null,null,null,null,null,null,null,null,null,null,null,null,null,null,null,20210618,"14:00:00",null,"XXX",null,null,null,null,null,null,null,null,null,null,null,null,null,null,null,null,null,null,null,20190719,"14:00:00",null,"XXX",null,null,null,null,null,null,null,null,"","X"]
[null,null,null,null,null,null,null,null,null,null,null,null,null,null,null,null,20210620,"07:00:00",null,"XXX",null,null,null,null,null,null,null,null,null,null,null,null,null,null,null,null,null,null,null,20190721,"07:00:00",null,"XXX",null,null,null,null,null,null,null,null,"","X"]
[null,null,null,null,null,null,null,null,null,null,null,null,null,null,null,null,20210621,"09:00:00",null,"XXX",null,null,null,null,null,null,null,null,null,null,null,null,null,null,null,null,null,null,null,20190722,"09:00:00",null,"XXX",null,null,null,null,null,null,null,null,"","X"]
[null,null,null,null,null,null,null,null,null,null,null,null,null,null,null,null,20210622,"20:00:00",null,"XXX",null,null,null,null,null,null,null,null,null,null,null,null,null,null,null,null,null,null,null,20190723,"20:00:00",null,"XXX",null,null,null,null,null,null,null,null,"","X"]
[null,null,null,null,null,null,null,null,null,null,null,null,null,null,null,null,20210624,"23:00:00",null,"XXX",null,null,null,null,null,null,null,null,null,null,null,null,null,null,null,null,null,null,null,20190725,"23:00:00",null,"XXX",null,null,null,null,null,null,null,null,"","X"]
[null,null,null,null,null,null,null,null,null,null,null,null,null,null,null,null,20210625,"16:00:00",null,"XXX",null,null,null,null,null,null,null,null,null,null,null,null,null,null,null,null,null,null,null,20190726,"16:00:00",null,"XXX",null,null,null,null,null,null,null,null,"","X"]
[null,null,null,null,null,null,null,null,null,null,null,null,null,null,null,null,20210627,"13:00:00",null,"XXX",null,null,null,null,null,null,null,null,null,null,null,null,null,null,null,null,null,null,null,20190728,"13:00:00",null,"XXX",null,null,null,null,null,null,null,null,"","X"]
[null,null,null,null,null,null,null,null,null,null,null,null,null,null,null,null,20210629,"05:00:00",null,"XXX",null,null,null,null,null,null,null,null,null,null,null,null,null,null,null,null,null,null,null,20190730,"05:00:00",null,"XXX",null,null,null,null,null,null,null,null,"","X"]
[null,null,null,null,null,null,null,null,null,null,null,null,null,null,null,null,20210630,"16:00:00",null,"XXX",null,null,null,null,null,null,null,null,null,null,null,null,null,null,null,null,null,null,null,20190731,"16:00:00",null,"XXX",null,null,null,null,null,null,null,null,"","X"]
[null,null,null,null,null,null,null,null,null,null,null,null,null,null,null,null,20210701,"09:00:00",null,"XXX",null,null,null,null,null,null,null,null,null,null,null,null,null,null,null,null,null,null,null,20190801,"09:00:00",null,"XXX",null,null,null,null,null,null,null,null,"","X"]
[null,null,null,null,null,null,null,null,null,null,null,null,null,null,null,null,20210703,"12:00:00",null,"XXX",null,null,null,null,null,null,null,null,null,null,null,null,null,null,null,null,null,null,null,20190803,"12:00:00",null,"XXX",null,null,null,null,null,null,null,null,"","X"]
[null,null,null,null,null,null,null,null,null,null,null,null,null,null,null,null,20210704,"19:00:00",null,"XXX",null,null,null,null,null,null,null,null,null,null,null,null,null,null,null,null,null,null,null,20190804,"19:00:00",null,"XXX",null,null,null,null,null,null,null,null,"","X"]
[null,null,null,null,null,null,null,null,null,null,null,null,null,null,null,null,20210705,"15:00:00",null,"XXX",null,null,null,null,null,null,null,null,null,null,null,null,null,null,null,null,null,null,null,20190805,"15:00:00",null,"XXX",null,null,null,null,null,null,null,null,"","X"]
[null,null,null,null,null,null,null,null,null,null,null,null,null,null,null,null,20210707,"02:00:00",null,"XXX",null,null,null,null,null,null,null,null,null,null,null,null,null,null,null,null,null,null,null,20190807,"02:00:00",null,"XXX",null,null,null,null,null,null,null,null,"",{"$f":"IF(AO13252=\"\",\"\",IF(AO13252=AO13251,IF(AP13252=AP13251,\"\",\"X\"),\"X\"))","v":"X"}]
[null,null,null,null,null,null,null,null,null,null,null,null,null,null,null,null,20210709,"05:00:00",null,"XXX",null,null,null,null,null,null,null,null,null,null,null,null,null,null,null,null,null,null,null,20190809,"05:00:00",null,"XXX",null,null,null,null,null,null,null,null,"","X"]
[null,null,null,null,null,null,null,null,null,null,null,null,null,null,null,null,20210710,"05:00:00",null,"XXX",null,null,null,null,null,null,null,null,null,null,null,null,null,null,null,null,null,null,null,20190810,"05:00:00",null,"XXX",null,null,null,null,null,null,null,null,"","X"]
[null,null,null,null,null,null,null,null,null,null,null,null,null,null,null,null,20210711,"08:00:00",null,"XXX",null,null,null,null,null,null,null,null,null,null,null,null,null,null,null,null,null,null,null,20190811,"08:00:00",null,"XXX",null,null,null,null,null,null,null,null,"","X"]
[null,null,null,null,null,null,null,null,null,null,null,null,null,null,null,null,20210713,"11:00:00",null,"XXX",null,null,null,null,null,null,null,null,null,null,null,null,null,null,null,null,null,null,null,20190813,"11:00:00",null,"XXX",null,null,null,null,null,null,null,null,"","X"]
[null,null,null,null,null,null,null,null,null,null,null,null,null,null,null,null,20210714,"04:00:00",null,"XXX",null,null,null,null,null,null,null,null,null,null,null,null,null,null,null,null,null,null,null,20190814,"04:00:00",null,"XXX",null,null,null,null,null,null,null,null,"","X"]
[null,null,null,null,null,null,null,null,null,null,null,null,null,null,null,null,20210715,"15:00:00",null,"XXX",null,null,null,null,null,null,null,null,null,null,null,null,null,null,null,null,null,null,null,20190815,"15:00:00",null,"XXX",null,null,null,null,null,null,null,null,"","X"]
[null,null,null,null,null,null,null,null,null,null,null,null,null,null,null,null,20210717,"11:00:00",null,"XXX",null,null,null,null,null,null,null,null,null,null,null,null,null,null,null,null,null,null,null,20190817,"11:00:00",null,"XXX",null,null,null,null,null,null,null,null,"","X"]
[null,null,null,null,null,null,null,null,null,null,null,null,null,null,null,null,20210719,"04:00:00",null,"XXX",null,null,null,null,null,null,null,null,null,null,null,null,null,null,null,null,null,null,null,20190819,"04:00:00",null,"XXX",null,null,null,null,null,null,null,null,"","X"]
[null,null,null,null,null,null,null,null,null,null,null,null,null,null,null,null,20210719,"21:00:00",null,"XXX",null,null,null,null,null,null,null,null,null,null,null,null,null,null,null,null,null,null,null,20190819,"21:00:00",null,"XXX",null,null,null,null,null,null,null,null,"","X"]
[null,null,null,null,null,null,null,null,null,null,null,null,null,null,null,null,20210722,"00:00:00",null,"XXX",null,null,null,null,null,null,null,null,null,null,null,null,null,null,null,null,null,null,null,20190822,"00:00:00",null,"XXX",null,null,null,null,null,null,null,null,"","X"]
[null,null,null,null,null,null,null,null,null,null,null,null,null,null,null,null,20210723,"11:00:00",null,"XXX",null,null,null,null,null,null,null,null,null,null,null,null,null,null,null,null,null,null,null,20190823,"11:00:00",null,"XXX",null,null,null,null,null,null,null,null,"","X"]
[null,null,null,null,null,null,null,null,null,null,null,null,null,null,null,null,20210724,"17:00:00",null,"XXX",null,null,null,null,null,null,null,null,null,null,null,null,null,null,null,null,null,null,null,20190824,"17:00:00",null,"XXX",null,null,null,null,null,null,null,null,"","X"]
[null,null,null,null,null,null,null,null,null,null,null,null,null,null,null,null,20210726,"06:00:00",null,"XXX",null,null,null,null,null,null,null,null,null,null,null,null,null,null,null,null,null,null,null,20190826,"06:00:00",null,"XXX",null,null,null,null,null,null,null,null,"","X"]
[null,null,null,null,null,null,null,null,null,null,null,null,null,null,null,null,20210726,"07:00:00",null,"XXX",null,null,null,null,null,null,null,null,null,null,null,null,null,null,null,null,null,null,null,20190826,"07:00:00",null,"XXX",null,null,null,null,null,null,null,null,"","X"]
[null,null,null,null,null,null,null,null,null,null,null,null,null,null,null,null,20210728,"10:00:00",null,"XXX",null,null,null,null,null,null,null,null,null,null,null,null,null,null,null,null,null,null,null,20190828,"10:00:00",null,"XXX",null,null,null,null,null,null,null,null,"",{"$f":"IF(AO13764=\"\",\"\",IF(AO13764=AO13763,IF(AP13764=AP13763,\"\",\"X\"),\"X\"))","v":"X"}]
[null,null,null,null,null,null,null,null,null,null,null,null,null,null,null,null,20210729,"21:00:00",null,"XXX",null,null,null,null,null,null,null,null,null,null,null,null,null,null,null,null,null,null,null,20190829,"21:00:00",null,"XXX",null,null,null,null,null,null,null,null,"","X"]
[null,null,null,null,null,null,null,null,null,null,null,null,null,null,null,null,20210730,"14:00:00",null,"XXX",null,null,null,null,null,null,null,null,null,null,null,null,null,null,null,null,null,null,null,20190830,"14:00:00",null,"XXX",null,null,null,null,null,null,null,null,"","X"]
[null,null,null,null,null,null,null,null,null,null,null,null,null,null,null,null,20210801,"16:00:00",null,"XXX",null,null,null,null,null,null,null,null,null,null,null,null,null,null,null,null,null,null,null,20190901,"16:00:00",null,"XXX",null,null,null,null,null,null,null,null,"","X"]
[null,null,null,null,null,null,null,null,null,null,null,null,null,null,null,null,20210803,"03:00:00",null,"XXX",null,null,null,null,null,null,null,null,null,null,null,null,null,null,null,null,null,null,null,20190903,"03:00:00",null,"XXX",null,null,null,null,null,null,null,null,"","X"]
[null,null,null,null,null,null,null,null,null,null,null,null,null,null,null,null,20210803,"20:00:00",null,"XXX",null,null,null,null,null,null,null,null,null,null,null,null,null,null,null,null,null,null,null,20190903,"20:00:00",null,"XXX",null,null,null,null,null,null,null,null,"","X"]
[null,null,null,null,null,null,null,null,null,null,null,null,null,null,null,null,20210805,"07:00:00",null,"XXX",null,null,null,null,null,null,null,null,null,null,null,null,null,null,null,null,null,null,null,20190905,"07:00:00",null,"XXX",null,null,null,null,null,null,null,null,"","X"]
[null,null,null,null,null,null,null,null,null,null,null,null,null,null,null,null,20210806,"20:00:00",null,"XXX",null,null,null,null,null,null,null,null,null,null,null,null,null,null,null,null,null,null,null,20190906,"20:00:00",null,"XXX",null,null,null,null,null,null,null,null,"","X"]
[null,null,null,null,null,null,null,null,null,null,null,null,null,null,null,null,20210808,"02:00:00",null,"XXX",null,null,null,null,null,null,null,null,null,null,null,null,null,null,null,null,null,null,null,20190908,"02:00:00",null,"XXX",null,null,null,null,null,null,null,null,"",{"$f":"IF(AO14020=\"\",\"\",IF(AO14020=AO14019,IF(AP14020=AP14019,\"\",\"X\"),\"X\"))","v":"X"}]
[null,null,null,null,null,null,null,null,null,null,null,null,null,null,null,null,20210809,"13:00:00",null,"XXX",null,null,null,null,null,null,null,null,null,null,null,null,null,null,null,null,null,null,null,20190909,"13:00:00",null,"XXX",null,null,null,null,null,null,null,null,"","X"]
[null,null,null,null,null,null,null,null,null,null,null,null,null,null,null,null,20210811,"16:00:00",null,"XXX",null,null,null,null,null,null,null,null,null,null,null,null,null,null,null,null,null,null,null,20190911,"16:00:00",null,"XXX",null,null,null,null,null,null,null,null,"","X"]
[null,null,null,null,null,null,null,null,null,null,null,null,null,null,null,null,20210812,"06:00:00",null,"XXX",null,null,null,null,null,null,null,null,null,null,null,null,null,null,null,null,null,null,null,20190912,"06:00:00",null,"XXX",null,null,null,null,null,null,null,null,"","X"]
[null,null,null,null,null,null,null,null,null,null,null,null,null,null,null,null,20210813,"19:00:00",null,"XXX",null,null,null,null,null,null,null,null,null,null,null,null,null,null,null,null,null,null,null,20190913,"19:00:00",null,"XXX",null,null,null,null,null,null,null,null,"","X"]
[null,null,null,null,null,null,null,null,null,null,null,null,null,null,null,null,20210815,"22:00:00",null,"XXX",null,null,null,null,null,null,null,null,null,null,null,null,null,null,null,null,null,null,null,20190915,"22:00:00",null,"XXX",null,null,null,null,null,null,null,null,"","X"]
[null,null,null,null,null,null,null,null,null,null,null,null,null,null,null,null,20210817,"09:00:00",null,"XXX",null,null,null,null,null,null,null,null,null,null,null,null,null,null,null,null,null,null,null,20190917,"09:00:00",null,"XXX",null,null,null,null,null,null,null,null,"","X"]
[null,null,null,null,null,null,null,null,null,null,null,null,null,null,null,null,20210818,"02:00:00",null,"XXX",null,null,null,null,null,null,null,null,null,null,null,null,null,null,null,null,null,null,null,20190918,"02:00:00",null,"XXX",null,null,null,null,null,null,null,null,"","X"]
[null,null,null,null,null,null,null,null,null,null,null,null,null,null,null,null,20210819,"12:00:00",null,"XXX",null,null,null,null,null,null,null,null,null,null,null,null,null,null,null,null,null,null,null,20190919,"12:00:00",null,"XXX",null,null,null,null,null,null,null,null,"","X"]
[null,null,null,null,null,null,null,null,null,null,null,null,null,null,null,null,20210821,"15:00:00",null,"XXX",null,null,null,null,null,null,null,null,null,null,null,null,null,null,null,null,null,null,null,20190921,"15:00:00",null,"XXX",null,null,null,null,null,null,null,null,"","X"]
[null,null,null,null,null,null,null,null,null,null,null,null,null,null,null,null,20210822,"08:00:00",null,"XXX",null,null,null,null,null,null,null,null,null,null,null,null,null,null,null,null,null,null,null,20190922,"08:00:00",null,"XXX",null,null,null,null,null,null,null,null,"","X"]
[null,null,null,null,null,null,null,null,null,null,null,null,null,null,null,null,20210824,"11:00:00",null,"XXX",null,null,null,null,null,null,null,null,null,null,null,null,null,null,null,null,null,null,null,20190924,"11:00:00",null,"XXX",null,null,null,null,null,null,null,null,"","X"]
[null,null,null,null,null,null,null,null,null,null,null,null,null,null,null,null,20210825,"22:00:00",null,"XXX",null,null,null,null,null,null,null,null,null,null,null,null,null,null,null,null,null,null,null,20190925,"22:00:00",null,"XXX",null,null,null,null,null,null,null,null,"","X"]
[null,null,null,null,null,null,null,null,null,null,null,null,null,null,null,null,20210826,"18:00:00",null,"XXX",null,null,null,null,null,null,null,null,null,null,null,null,null,null,null,null,null,null,null,20190926,"18:00:00",null,"XXX",null,null,null,null,null,null,null,null,"",{"$f":"IF(AO14468=\"\",\"\",IF(AO14468=AO14467,IF(AP14468=AP14467,\"\",\"X\"),\"X\"))","v":"X"}]
[null,null,null,null,null,null,null,null,null,null,null,null,null,null,null,null,20210828,"01:00:00",null,"XXX",null,null,null,null,null,null,null,null,null,null,null,null,null,null,null,null,null,null,null,20190928,"01:00:00",null,"XXX",null,null,null,null,null,null,null,null,"","X"]
[null,null,null,null,null,null,null,null,null,null,null,null,null,null,null,null,20210830,"04:00:00",null,"XXX",null,null,null,null,null,null,null,null,null,null,null,null,null,null,null,null,null,null,null,20190930,"04:00:00",null,"XXX",null,null,null,null,null,null,null,null,"","X"]
[null,null,null,null,null,null,null,null,null,null,null,null,null,null,null,null,20210830,"21:00:00",null,"XXX",null,null,null,null,null,null,null,null,null,null,null,null,null,null,null,null,null,null,null,20190930,"21:00:00",null,"XXX",null,null,null,null,null,null,null,null,"","X"]
[null,null,null,null,null,null,null,null,null,null,null,null,null,null,null,null,20210901,"08:00:00",null,"XXX",null,null,null,null,null,null,null,null,null,null,null,null,null,null,null,null,null,null,null,null,null,null,null,null,null,null,null,null,null,null,null,"",""]
[null,null,null,null,null,null,null,null,null,null,null,null,null,null,null,null,20210903,"00:00:00",null,"XXX",null,null,null,null,null,null,null,null,null,null,null,null,null,null,null,null,null,null,null,null,null,null,null,null,null,null,null,null,null,null,null,"",""]
[null,null,null,null,null,null,null,null,null,null,null,null,null,null,null,null,20210904,"21:00:00",null,"XXX",null,null,null,null,null,null,null,null,null,null,null,null,null,null,null,null,null,null,null,null,null,null,null,null,null,null,null,null,null,null,null,"",""]
[null,null,null,null,null,null,null,null,null,null,null,null,null,null,null,null,20210905,"14:00:00",null,"XXX",null,null,null,null,null,null,null,null,null,null,null,null,null,null,null,null,null,null,null,null,null,null,null,null,null,null,null,null,null,null,null,"",""]
[null,null,null,null,null,null,null,null,null,null,null,null,null,null,null,null,20210907,"17:00:00",null,"XXX",null,null,null,null,null,null,null,null,null,null,null,null,null,null,null,null,null,null,null,null,null,null,null,null,null,null,null,null,null,null,null,"",""]
[null,null,null,null,null,null,null,null,null,null,null,null,null,null,null,null,20210909,"04:00:00",null,"XXX",null,null,null,null,null,null,null,null,null,null,null,null,null,null,null,null,null,null,null,null,null,null,null,null,null,null,null,null,null,null,null,"",""]
[null,null,null,null,null,null,null,null,null,null,null,null,null,null,null,null,20210910,"06:00:00",null,"XXX",null,null,null,null,null,null,null,null,null,null,null,null,null,null,null,null,null,null,null,null,null,null,null,null,null,null,null,null,null,null,null,"",""]
[null,null,null,null,null,null,null,null,null,null,null,null,null,null,null,null,20210911,"23:00:00",null,"XXX",null,null,null,null,null,null,null,null,null,null,null,null,null,null,null,null,null,null,null,null,null,null,null,null,null,null,null,null,null,null,null,"",""]
[null,null,null,null,null,null,null,null,null,null,null,null,null,null,null,null,20210913,"10:00:00",null,"XXX",null,null,null,null,null,null,null,null,null,null,null,null,null,null,null,null,null,null,null,null,null,null,null,null,null,null,null,null,null,null,null,"",""]
[null,null,null,null,null,null,null,null,null,null,null,null,null,null,null,null,20210914,"03:00:00",null,"XXX",null,null,null,null,null,null,null,null,null,null,null,null,null,null,null,null,null,null,null,null,null,null,null,null,null,null,null,null,null,null,null,"",""]
[null,null,null,null,null,null,null,null,null,null,null,null,null,null,null,null,20210915,"20:00:00",null,"XXX",null,null,null,null,null,null,null,null,null,null,null,null,null,null,null,null,null,null,null,null,null,null,null,null,null,null,null,null,null,null,null,"",""]
[null,null,null,null,null,null,null,null,null,null,null,null,null,null,null,null,20210917,"16:00:00",null,"XXX",null,null,null,null,null,null,null,null,null,null,null,null,null,null,null,null,null,null,null,null,null,null,null,null,null,null,null,null,null,null,null,"",""]
[null,null,null,null,null,null,null,null,null,null,null,null,null,null,null,null,20210918,"09:00:00",null,"XXX",null,null,null,null,null,null,null,null,null,null,null,null,null,null,null,null,null,null,null,null,null,null,null,null,null,null,null,null,null,null,null,"",""]
[null,null,null,null,null,null,null,null,null,null,null,null,null,null,null,null,20210919,"20:00:00",null,"XXX",null,null,null,null,null,null,null,null,null,null,null,null,null,null,null,null,null,null,null,null,null,null,null,null,null,null,null,null,null,null,null,"",""]
[null,null,null,null,null,null,null,null,null,null,null,null,null,null,null,null,20210921,"23:00:00",null,"XXX",null,null,null,null,null,null,null,null,null,null,null,null,null,null,null,null,null,null,null,null,null,null,null,null,null,null,null,null,null,null,null,"",""]
[null,null,null,null,null,null,null,null,null,null,null,null,null,null,null,null,20210923,"02:00:00",null,"XXX",null,null,null,null,null,null,null,null,null,null,null,null,null,null,null,null,null,null,null,null,null,null,null,null,null,null,null,null,null,null,null,"",""]
[null,null,null,null,null,null,null,null,null,null,null,null,null,null,null,null,20210924,"02:00:00",null,"XXX",null,null,null,null,null,null,null,null,null,null,null,null,null,null,null,null,null,null,null,null,null,null,null,null,null,null,null,null,null,null,null,"",""]
[null,null,null,null,null,null,null,null,null,null,null,null,null,null,null,null,20210926,"05:00:00",null,"XXX",null,null,null,null,null,null,null,null,null,null,null,null,null,null,null,null,null,null,null,null,null,null,null,null,null,null,null,null,null,null,null,"",""]
[null,null,null,null,null,null,null,null,null,null,null,null,null,null,null,null,20210926,"06:00:00",null,"XXX",null,null,null,null,null,null,null,null,null,null,null,null,null,null,null,null,null,null,null,null,null,null,null,null,null,null,null,null,null,null,null,"",""]
[null,null,null,null,null,null,null,null,null,null,null,null,null,null,null,null,20210928,"09:00:00",null,"XXX",null,null,null,null,null,null,null,null,null,null,null,null,null,null,null,null,null,null,null,null,null,null,null,null,null,null,null,null,null,null,null,"",""]
[null,null,null,null,null,null,null,null,null,null,null,null,null,null,null,null,20210930,"04:00:00",null,"XXX",null,null,null,null,null,null,null,null,null,null,null,null,null,null,null,null,null,null,null,null,null,null,null,null,null,null,null,null,null,null,null,"",""]
[null,null,null,null,null,null,null,null,null,null,null,null,null,null,null,null,20210930,"12:00:00",null,"XXX",null,null,null,null,null,null,null,null,null,null,null,null,null,null,null,null,null,null,null,null,null,null,null,null,null,null,null,null,null,null,null,"",""]
[null,null,null,null,null,null,null,null,null,null,null,null,null,null,null,null,20211002,"15:00:00",null,"XXX",null,null,null,null,null,null,null,null,null,null,null,null,null,null,null,null,null,null,null,null,null,null,null,null,null,null,null,null,null,null,null,"",""]
[null,null,null,null,null,null,null,null,null,null,null,null,null,null,null,null,20211004,"02:00:00",null,"XXX",null,null,null,null,null,null,null,null,null,null,null,null,null,null,null,null,null,null,null,null,null,null,null,null,null,null,null,null,null,null,null,"",""]
[null,null,null,null,null,null,null,null,null,null,null,null,null,null,null,null,20211004,"19:00:00",null,"XXX",null,null,null,null,null,null,null,null,null,null,null,null,null,null,null,null,null,null,null,null,null,null,null,null,null,null,null,null,null,null,null,"",""]
[null,null,null,null,null,null,null,null,null,null,null,null,null,null,null,null,20211007,"10:00:00",null,"XXX",null,null,null,null,null,null,null,null,null,null,null,null,null,null,null,null,null,null,null,null,null,null,null,null,null,null,null,null,null,null,null,"",""]
[null,null,null,null,null,null,null,null,null,null,null,null,null,null,null,null,20211008,"08:00:00",null,"XXX",null,null,null,null,null,null,null,null,null,null,null,null,null,null,null,null,null,null,null,null,null,null,null,null,null,null,null,null,null,null,null,"",""]
[null,null,null,null,null,null,null,null,null,null,null,null,null,null,null,null,20211009,"01:00:00",null,"XXX",null,null,null,null,null,null,null,null,null,null,null,null,null,null,null,null,null,null,null,null,null,null,null,null,null,null,null,null,null,null,null,"",""]
[null,null,null,null,null,null,null,null,null,null,null,null,null,null,null,null,20211011,"04:00:00",null,"XXX",null,null,null,null,null,null,null,null,null,null,null,null,null,null,null,null,null,null,null,null,null,null,null,null,null,null,null,null,null,null,null,"",""]
[null,null,null,null,null,null,null,null,null,null,null,null,null,null,null,null,20211012,"15:00:00",null,"XXX",null,null,null,null,null,null,null,null,null,null,null,null,null,null,null,null,null,null,null,null,null,null,null,null,null,null,null,null,null,null,null,"",""]
[null,null,null,null,null,null,null,null,null,null,null,null,null,null,null,null,20211013,"07:00:00",null,"XXX",null,null,null,null,null,null,null,null,null,null,null,null,null,null,null,null,null,null,null,null,null,null,null,null,null,null,null,null,null,null,null,"",""]
[null,null,null,null,null,null,null,null,null,null,null,null,null,null,null,null,20211014,"18:00:00",null,"XXX",null,null,null,null,null,null,null,null,null,null,null,null,null,null,null,null,null,null,null,null,null,null,null,null,null,null,null,null,null,null,null,"",""]
[null,null,null,null,null,null,null,null,null,null,null,null,null,null,null,null,20211016,"21:00:00",null,"XXX",null,null,null,null,null,null,null,null,null,null,null,null,null,null,null,null,null,null,null,null,null,null,null,null,null,null,null,null,null,null,null,"",""]
[null,null,null,null,null,null,null,null,null,null,null,null,null,null,null,null,20211017,"14:00:00",null,"XXX",null,null,null,null,null,null,null,null,null,null,null,null,null,null,null,null,null,null,null,null,null,null,null,null,null,null,null,null,null,null,null,"",""]
[null,null,null,null,null,null,null,null,null,null,null,null,null,null,null,null,20211018,"21:00:00",null,"XXX",null,null,null,null,null,null,null,null,null,null,null,null,null,null,null,null,null,null,null,null,null,null,null,null,null,null,null,null,null,null,null,"",""]
[null,null,null,null,null,null,null,null,null,null,null,null,null,null,null,null,20211021,"03:00:00",null,"XXX",null,null,null,null,null,null,null,null,null,null,null,null,null,null,null,null,null,null,null,null,null,null,null,null,null,null,null,null,null,null,null,"",""]
[null,null,null,null,null,null,null,null,null,null,null,null,null,null,null,null,20211022,"14:00:00",null,"XXX",null,null,null,null,null,null,null,null,null,null,null,null,null,null,null,null,null,null,null,null,null,null,null,null,null,null,null,null,null,null,null,"",""]
[null,null,null,null,null,null,null,null,null,null,null,null,null,null,null,null,20211023,"07:00:00",null,"XXX",null,null,null,null,null,null,null,null,null,null,null,null,null,null,null,null,null,null,null,null,null,null,null,null,null,null,null,null,null,null,null,"",""]
[null,null,null,null,null,null,null,null,null,null,null,null,null,null,null,null,20211025,"10:00:00",null,"XXX",null,null,null,null,null,null,null,null,null,null,null,null,null,null,null,null,null,null,null,null,null,null,null,null,null,null,null,null,null,null,null,"",""]
[null,null,null,null,null,null,null,null,null,null,null,null,null,null,null,null,20211026,"03:00:00",null,"XXX",null,null,null,null,null,null,null,null,null,null,null,null,null,null,null,null,null,null,null,null,null,null,null,null,null,null,null,null,null,null,null,"",""]
[null,null,null,null,null,null,null,null,null,null,null,null,null,null,null,null,20211027,"13:00:00",null,"XXX",null,null,null,null,null,null,null,null,null,null,null,null,null,null,null,null,null,null,null,null,null,null,null,null,null,null,null,null,null,null,null,"",""]
[null,null,null,null,null,null,null,null,null,null,null,null,null,null,null,null,20211029,"16:00:00",null,"XXX",null,null,null,null,null,null,null,null,null,null,null,null,null,null,null,null,null,null,null,null,null,null,null,null,null,null,null,null,null,null,null,"",""]
[null,null,null,null,null,null,null,null,null,null,null,null,null,null,null,null,20211031,"03:00:00",null,"XXX",null,null,null,null,null,null,null,null,null,null,null,null,null,null,null,null,null,null,null,null,null,null,null,null,null,null,null,null,null,null,null,"",""]
[null,null,null,null,null,null,null,null,null,null,null,null,null,null,null,null,20211031,"20:00:00",null,"XXX",null,null,null,null,null,null,null,null,null,null,null,null,null,null,null,null,null,null,null,null,null,null,null,null,null,null,null,null,null,null,null,"",""]
[null,null,null,null,null,null,null,null,null,null,null,null,null,null,null,null,20211102,"09:00:00",null,"XXX",null,null,null,null,null,null,null,null,null,null,null,null,null,null,null,null,null,null,null,null,null,null,null,null,null,null,null,null,null,null,null,"",""]
[null,null,null,null,null,null,null,null,null,null,null,null,null,null,null,null,20211104,"09:00:00",null,"XXX",null,null,null,null,null,null,null,null,null,null,null,null,null,null,null,null,null,null,null,null,null,null,null,null,null,null,null,null,null,null,null,"",""]
[null,null,null,null,null,null,null,null,null,null,null,null,null,null,null,null,20211105,"02:00:00",null,"XXX",null,null,null,null,null,null,null,null,null,null,null,null,null,null,null,null,null,null,null,null,null,null,null,null,null,null,null,null,null,null,null,"",""]
[null,null,null,null,null,null,null,null,null,null,null,null,null,null,null,null,20211106,"13:00:00",null,"XXX",null,null,null,null,null,null,null,null,null,null,null,null,null,null,null,null,null,null,null,null,null,null,null,null,null,null,null,null,null,null,null,"",""]
[null,null,null,null,null,null,null,null,null,null,null,null,null,null,null,null,20211108,"16:00:00",null,"XXX",null,null,null,null,null,null,null,null,null,null,null,null,null,null,null,null,null,null,null,null,null,null,null,null,null,null,null,null,null,null,null,"",""]
[null,null,null,null,null,null,null,null,null,null,null,null,null,null,null,null,20211109,"11:00:00",null,"XXX",null,null,null,null,null,null,null,null,null,null,null,null,null,null,null,null,null,null,null,null,null,null,null,null,null,null,null,null,null,null,null,"",""]
[null,null,null,null,null,null,null,null,null,null,null,null,null,null,null,null,20211110,"19:00:00",null,"XXX",null,null,null,null,null,null,null,null,null,null,null,null,null,null,null,null,null,null,null,null,null,null,null,null,null,null,null,null,null,null,null,"",""]
[null,null,null,null,null,null,null,null,null,null,null,null,null,null,null,null,20211112,"22:00:00",null,"XXX",null,null,null,null,null,null,null,null,null,null,null,null,null,null,null,null,null,null,null,null,null,null,null,null,null,null,null,null,null,null,null,"",""]
[null,null,null,null,null,null,null,null,null,null,null,null,null,null,null,null,20211114,"09:00:00",null,"XXX",null,null,null,null,null,null,null,null,null,null,null,null,null,null,null,null,null,null,null,null,null,null,null,null,null,null,null,null,null,null,null,"",""]
[null,null,null,null,null,null,null,null,null,null,null,null,null,null,null,null,20211115,"02:00:00",null,"XXX",null,null,null,null,null,null,null,null,null,null,null,null,null,null,null,null,null,null,null,null,null,null,null,null,null,null,null,null,null,null,null,"",""]
[null,null,null,null,null,null,null,null,null,null,null,null,null,null,null,null,20211116,"17:00:00",null,"XXX",null,null,null,null,null,null,null,null,null,null,null,null,null,null,null,null,null,null,null,null,null,null,null,null,null,null,null,null,null,null,null,"",""]
[null,null,null,null,null,null,null,null,null,null,null,null,null,null,null,null,20211118,"15:00:00",null,"XXX",null,null,null,null,null,null,null,null,null,null,null,null,null,null,null,null,null,null,null,null,null,null,null,null,null,null,null,null,null,null,null,"",""]
[null,null,null,null,null,null,null,null,null,null,null,null,null,null,null,null,20211119,"08:00:00",null,"XXX",null,null,null,null,null,null,null,null,null,null,null,null,null,null,null,null,null,null,null,null,null,null,null,null,null,null,null,null,null,null,null,"",""]
[null,null,null,null,null,null,null,null,null,null,null,null,null,null,null,null,20211120,"19:00:00",null,"XXX",null,null,null,null,null,null,null,null,null,null,null,null,null,null,null,null,null,null,null,null,null,null,null,null,null,null,null,null,null,null,null,"",""]
[null,null,null,null,null,null,null,null,null,null,null,null,null,null,null,null,20211122,"07:00:00",null,"XXX",null,null,null,null,null,null,null,null,null,null,null,null,null,null,null,null,null,null,null,null,null,null,null,null,null,null,null,null,null,null,null,"",""]
[null,null,null,null,null,null,null,null,null,null,null,null,null,null,null,null,20211123,"14:00:00",null,"XXX",null,null,null,null,null,null,null,null,null,null,null,null,null,null,null,null,null,null,null,null,null,null,null,null,null,null,null,null,null,null,null,"",""]
[null,null,null,null,null,null,null,null,null,null,null,null,null,null,null,null,20211125,"01:00:00",null,"XXX",null,null,null,null,null,null,null,null,null,null,null,null,null,null,null,null,null,null,null,null,null,null,null,null,null,null,null,null,null,null,null,"",""]
[null,null,null,null,null,null,null,null,null,null,null,null,null,null,null,null,20211127,"04:00:00",null,"XXX",null,null,null,null,null,null,null,null,null,null,null,null,null,null,null,null,null,null,null,null,null,null,null,null,null,null,null,null,null,null,null,"",""]
[null,null,null,null,null,null,null,null,null,null,null,null,null,null,null,null,20211127,"21:00:00",null,"XXX",null,null,null,null,null,null,null,null,null,null,null,null,null,null,null,null,null,null,null,null,null,null,null,null,null,null,null,null,null,null,null,"",""]
[null,null,null,null,null,null,null,null,null,null,null,null,null,null,null,null,20211129,"13:00:00",null,"XXX",null,null,null,null,null,null,null,null,null,null,null,null,null,null,null,null,null,null,null,null,null,null,null,null,null,null,null,null,null,null,null,"",""]
[null,null,null,null,null,null,null,null,null,null,null,null,null,null,null,null,20211130,"00:00:00",null,"XXX",null,null,null,null,null,null,null,null,null,null,null,null,null,null,null,null,null,null,null,null,null,null,null,null,null,null,null,null,null,null,null,"",""]
[null,null,null,null,null,null,null,null,null,null,null,null,null,null,null,null,20211201,"11:00:00",null,"XXX",null,null,null,null,null,null,null,null,null,null,null,null,null,null,null,null,null,null,null,null,null,null,null,null,null,null,null,null,null,null,null,"",""]
[null,null,null,null,null,null,null,null,null,null,null,null,null,null,null,null,20211203,"14:00:00",null,"XXX",null,null,null,null,null,null,null,null,null,null,null,null,null,null,null,null,null,null,null,null,null,null,null,null,null,null,null,null,null,null,null,"",""]
[null,null,null,null,null,null,null,null,null,null,null,null,null,null,null,null,20211204,"07:00:00",null,"XXX",null,null,null,null,null,null,null,null,null,null,null,null,null,null,null,null,null,null,null,null,null,null,null,null,null,null,null,null,null,null,null,"",""]
[null,null,null,null,null,null,null,null,null,null,null,null,null,null,null,null,20211206,"19:00:00",null,"XXX",null,null,null,null,null,null,null,null,null,null,null,null,null,null,null,null,null,null,null,null,null,null,null,null,null,null,null,null,null,null,null,"",""]
[null,null,null,null,null,null,null,null,null,null,null,null,null,null,null,null,20211207,"20:00:00",null,"XXX",null,null,null,null,null,null,null,null,null,null,null,null,null,null,null,null,null,null,null,null,null,null,null,null,null,null,null,null,null,null,null,"",""]
[null,null,null,null,null,null,null,null,null,null,null,null,null,null,null,null,20211209,"07:00:00",null,"XXX",null,null,null,null,null,null,null,null,null,null,null,null,null,null,null,null,null,null,null,null,null,null,null,null,null,null,null,null,null,null,null,"",""]
[null,null,null,null,null,null,null,null,null,null,null,null,null,null,null,null,20211210,"00:00:00",null,"XXX",null,null,null,null,null,null,null,null,null,null,null,null,null,null,null,null,null,null,null,null,null,null,null,null,null,null,null,null,null,null,null,"",""]
[null,null,null,null,null,null,null,null,null,null,null,null,null,null,null,null,20211212,"03:00:00",null,"XXX",null,null,null,null,null,null,null,null,null,null,null,null,null,null,null,null,null,null,null,null,null,null,null,null,null,null,null,null,null,null,null,"",""]
[null,null,null,null,null,null,null,null,null,null,null,null,null,null,null,null,20211214,"01:00:00",null,"XXX",null,null,null,null,null,null,null,null,null,null,null,null,null,null,null,null,null,null,null,null,null,null,null,null,null,null,null,null,null,null,null,"",""]
[null,null,null,null,null,null,null,null,null,null,null,null,null,null,null,null,20211214,"06:00:00",null,"XXX",null,null,null,null,null,null,null,null,null,null,null,null,null,null,null,null,null,null,null,null,null,null,null,null,null,null,null,null,null,null,null,"",""]
[null,null,null,null,null,null,null,null,null,null,null,null,null,null,null,null,20211216,"09:00:00",null,"XXX",null,null,null,null,null,null,null,null,null,null,null,null,null,null,null,null,null,null,null,null,null,null,null,null,null,null,null,null,null,null,null,"",""]
[null,null,null,null,null,null,null,null,null,null,null,null,null,null,null,null,20211217,"20:00:00",null,"XXX",null,null,null,null,null,null,null,null,null,null,null,null,null,null,null,null,null,null,null,null,null,null,null,null,null,null,null,null,null,null,null,"",""]
[null,null,null,null,null,null,null,null,null,null,null,null,null,null,null,null,20211218,"13:00:00",null,"XXX",null,null,null,null,null,null,null,null,null,null,null,null,null,null,null,null,null,null,null,null,null,null,null,null,null,null,null,null,null,null,null,"",""]
[null,null,null,null,null,null,null,null,null,null,null,null,null,null,null,null,20211219,"22:00:00",null,"XXX",null,null,null,null,null,null,null,null,null,null,null,null,null,null,null,null,null,null,null,null,null,null,null,null,null,null,null,null,null,null,null,"",""]
[null,null,null,null,null,null,null,null,null,null,null,null,null,null,null,null,20211222,"02:00:00",null,"XXX",null,null,null,null,null,null,null,null,null,null,null,null,null,null,null,null,null,null,null,null,null,null,null,null,null,null,null,null,null,null,null,"",{"$f":"IF(AO17284=\"\",\"\",IF(AO17284=AO17283,IF(AP17284=AP17283,\"\",\"X\"),\"X\"))","v":""}]
[null,null,null,null,null,null,null,null,null,null,null,null,null,null,null,null,20211222,"19:00:00",null,"XXX",null,null,null,null,null,null,null,null,null,null,null,null,null,null,null,null,null,null,null,null,null,null,null,null,null,null,null,null,null,null,null,"",""]
[null,null,null,null,null,null,null,null,null,null,null,null,null,null,null,null,20211224,"06:00:00",null,"XXX",null,null,null,null,null,null,null,null,null,null,null,null,null,null,null,null,null,null,null,null,null,null,null,null,null,null,null,null,null,null,null,"",""]
[null,null,null,null,null,null,null,null,null,null,null,null,null,null,null,null,20211226,"09:00:00",null,"XXX",null,null,null,null,null,null,null,null,null,null,null,null,null,null,null,null,null,null,null,null,null,null,null,null,null,null,null,null,null,null,null,"",""]
[null,null,null,null,null,null,null,null,null,null,null,null,null,null,null,null,20211226,"19:00:00",null,"XXX",null,null,null,null,null,null,null,null,null,null,null,null,null,null,null,null,null,null,null,null,null,null,null,null,null,null,null,null,null,null,null,"",""]
[null,null,null,null,null,null,null,null,null,null,null,null,null,null,null,null,20211226,"20:00:00",null,"XXX",null,null,null,null,null,null,null,null,null,null,null,null,null,null,null,null,null,null,null,null,null,null,null,null,null,null,null,null,null,null,null,"",""]
[null,null,null,null,null,null,null,null,null,null,null,null,null,null,null,null,20211226,"21:00:00",null,"XXX",null,null,null,null,null,null,null,null,null,null,null,null,null,null,null,null,null,null,null,null,null,null,null,null,null,null,null,null,null,null,null,"",""]
[null,null,null,null,null,null,null,null,null,null,null,null,null,null,null,null,20211226,"22:00:00",null,"XXX",null,null,null,null,null,null,null,null,null,null,null,null,null,null,null,null,null,null,null,null,null,null,null,null,null,null,null,null,null,null,null,"",""]
[null,null,null,null,null,null,null,null,null,null,null,null,null,null,null,null,20211226,"23:00:00",null,"XXX",null,null,null,null,null,null,null,null,null,null,null,null,null,null,null,null,null,null,null,null,null,null,null,null,null,null,null,null,null,null,null,"",""]
[null,null,null,null,null,null,null,null,null,null,null,null,null,null,null,null,20211227,"00:00:00",null,"XXX",null,null,null,null,null,null,null,null,null,null,null,null,null,null,null,null,null,null,null,null,null,null,null,null,null,null,null,null,null,null,null,"",""]
[null,null,null,null,null,null,null,null,null,null,null,null,null,null,null,null,20211227,"01:00:00",null,"XXX",null,null,null,null,null,null,null,null,null,null,null,null,null,null,null,null,null,null,null,null,null,null,null,null,null,null,null,null,null,null,null,"",""]
[null,null,null,null,null,null,null,null,null,null,null,null,null,null,null,null,20211227,"02:00:00",null,"XXX",null,null,null,null,null,null,null,null,null,null,null,null,null,null,null,null,null,null,null,null,null,null,null,null,null,null,null,null,null,null,null,"",""]
[null,null,null,null,null,null,null,null,null,null,null,null,null,null,null,null,20211227,"03:00:00",null,"XXX",null,null,null,null,null,null,null,null,null,null,null,null,null,null,null,null,null,null,null,null,null,null,null,null,null,null,null,null,null,null,null,"",""]
[null,null,null,null,null,null,null,null,null,null,null,null,null,null,null,null,20211227,"04:00:00",null,"XXX",null,null,null,null,null,null,null,null,null,null,null,null,null,null,null,null,null,null,null,null,null,null,null,null,null,null,null,null,null,null,null,"",""]
[null,null,null,null,null,null,null,null,null,null,null,null,null,null,null,null,20211227,"05:00:00",null,"XXX",null,null,null,null,null,null,null,null,null,null,null,null,null,null,null,null,null,null,null,null,null,null,null,null,null,null,null,null,null,null,null,"",""]
[null,null,null,null,null,null,null,null,null,null,null,null,null,null,null,null,20211227,"06:00:00",null,"XXX",null,null,null,null,null,null,null,null,null,null,null,null,null,null,null,null,null,null,null,null,null,null,null,null,null,null,null,null,null,null,null,"",""]
[null,null,null,null,null,null,null,null,null,null,null,null,null,null,null,null,20211227,"07:00:00",null,"XXX",null,null,null,null,null,null,null,null,null,null,null,null,null,null,null,null,null,null,null,null,null,null,null,null,null,null,null,null,null,null,null,"",""]
[null,null,null,null,null,null,null,null,null,null,null,null,null,null,null,null,20211227,"08:00:00",null,"XXX",null,null,null,null,null,null,null,null,null,null,null,null,null,null,null,null,null,null,null,null,null,null,null,null,null,null,null,null,null,null,null,"",""]
[null,null,null,null,null,null,null,null,null,null,null,null,null,null,null,null,20211227,"09:00:00",null,"XXX",null,null,null,null,null,null,null,null,null,null,null,null,null,null,null,null,null,null,null,null,null,null,null,null,null,null,null,null,null,null,null,"",""]
[null,null,null,null,null,null,null,null,null,null,null,null,null,null,null,null,20211227,"10:00:00",null,"XXX",null,null,null,null,null,null,null,null,null,null,null,null,null,null,null,null,null,null,null,null,null,null,null,null,null,null,null,null,null,null,null,"",{"$f":"IF(AO17412=\"\",\"\",IF(AO17412=AO17411,IF(AP17412=AP17411,\"\",\"X\"),\"X\"))","v":""}]
[null,null,null,null,null,null,null,null,null,null,null,null,null,null,null,null,20211227,"11:00:00",null,"XXX",null,null,null,null,null,null,null,null,null,null,null,null,null,null,null,null,null,null,null,null,null,null,null,null,null,null,null,null,null,null,null,"",""]
[null,null,null,null,null,null,null,null,null,null,null,null,null,null,null,null,20211227,"12:00:00",null,"XXX",null,null,null,null,null,null,null,null,null,null,null,null,null,null,null,null,null,null,null,null,null,null,null,null,null,null,null,null,null,null,null,"",""]
[null,null,null,null,null,null,null,null,null,null,null,null,null,null,null,null,20211227,"13:00:00",null,"XXX",null,null,null,null,null,null,null,null,null,null,null,null,null,null,null,null,null,null,null,null,null,null,null,null,null,null,null,null,null,null,null,"",""]
[null,null,null,null,null,null,null,null,null,null,null,null,null,null,null,null,20211227,"14:00:00",null,"XXX",null,null,null,null,null,null,null,null,null,null,null,null,null,null,null,null,null,null,null,null,null,null,null,null,null,null,null,null,null,null,null,"",""]
[null,null,null,null,null,null,null,null,null,null,null,null,null,null,null,null,20211227,"15:00:00",null,"XXX",null,null,null,null,null,null,null,null,null,null,null,null,null,null,null,null,null,null,null,null,null,null,null,null,null,null,null,null,null,null,null,"",""]
[null,null,null,null,null,null,null,null,null,null,null,null,null,null,null,null,20211227,"16:00:00",null,"XXX",null,null,null,null,null,null,null,null,null,null,null,null,null,null,null,null,null,null,null,null,null,null,null,null,null,null,null,null,null,null,null,"",""]
[null,null,null,null,null,null,null,null,null,null,null,null,null,null,null,null,20211227,"17:00:00",null,"XXX",null,null,null,null,null,null,null,null,null,null,null,null,null,null,null,null,null,null,null,null,null,null,null,null,null,null,null,null,null,null,null,"",""]
[null,null,null,null,null,null,null,null,null,null,null,null,null,null,null,null,20211227,"18:00:00",null,"XXX",null,null,null,null,null,null,null,null,null,null,null,null,null,null,null,null,null,null,null,null,null,null,null,null,null,null,null,null,null,null,null,"",""]
[null,null,null,null,null,null,null,null,null,null,null,null,null,null,null,null,20211227,"19:00:00",null,"XXX",null,null,null,null,null,null,null,null,null,null,null,null,null,null,null,null,null,null,null,null,null,null,null,null,null,null,null,null,null,null,null,"",""]
[null,null,null,null,null,null,null,null,null,null,null,null,null,null,null,null,20211227,"20:00:00",null,"XXX",null,null,null,null,null,null,null,null,null,null,null,null,null,null,null,null,null,null,null,null,null,null,null,null,null,null,null,null,null,null,null,"",""]
[null,null,null,null,null,null,null,null,null,null,null,null,null,null,null,null,20211227,"21:00:00",null,"XXX",null,null,null,null,null,null,null,null,null,null,null,null,null,null,null,null,null,null,null,null,null,null,null,null,null,null,null,null,null,null,null,"",""]
[null,null,null,null,null,null,null,null,null,null,null,null,null,null,null,null,20211227,"22:00:00",null,"XXX",null,null,null,null,null,null,null,null,null,null,null,null,null,null,null,null,null,null,null,null,null,null,null,null,null,null,null,null,null,null,null,"",""]
[null,null,null,null,null,null,null,null,null,null,null,null,null,null,null,null,20211227,"23:00:00",null,"XXX",null,null,null,null,null,null,null,null,null,null,null,null,null,null,null,null,null,null,null,null,null,null,null,null,null,null,null,null,null,null,null,"",""]
[null,null,null,null,null,null,null,null,null,null,null,null,null,null,null,null,20211228,"00:00:00",null,"XXX",null,null,null,null,null,null,null,null,null,null,null,null,null,null,null,null,null,null,null,null,null,null,null,null,null,null,null,null,null,null,null,"",""]
[null,null,null,null,null,null,null,null,null,null,null,null,null,null,null,null,20211228,"01:00:00",null,"XXX",null,null,null,null,null,null,null,null,null,null,null,null,null,null,null,null,null,null,null,null,null,null,null,null,null,null,null,null,null,null,null,"",""]
[null,null,null,null,null,null,null,null,null,null,null,null,null,null,null,null,20211228,"02:00:00",null,"XXX",null,null,null,null,null,null,null,null,null,null,null,null,null,null,null,null,null,null,null,null,null,null,null,null,null,null,null,null,null,null,null,"",""]
[null,null,null,null,null,null,null,null,null,null,null,null,null,null,null,null,20211228,"03:00:00",null,"XXX",null,null,null,null,null,null,null,null,null,null,null,null,null,null,null,null,null,null,null,null,null,null,null,null,null,null,null,null,null,null,null,"",""]
[null,null,null,null,null,null,null,null,null,null,null,null,null,null,null,null,20211228,"04:00:00",null,"XXX",null,null,null,null,null,null,null,null,null,null,null,null,null,null,null,null,null,null,null,null,null,null,null,null,null,null,null,null,null,null,null,"",""]
[null,null,null,null,null,null,null,null,null,null,null,null,null,null,null,null,20211228,"05:00:00",null,"XXX",null,null,null,null,null,null,null,null,null,null,null,null,null,null,null,null,null,null,null,null,null,null,null,null,null,null,null,null,null,null,null,"",""]
[null,null,null,null,null,null,null,null,null,null,null,null,null,null,null,null,20211228,"06:00:00",null,"XXX",null,null,null,null,null,null,null,null,null,null,null,null,null,null,null,null,null,null,null,null,null,null,null,null,null,null,null,null,null,null,null,"",""]
[null,null,null,null,null,null,null,null,null,null,null,null,null,null,null,null,20211228,"07:00:00",null,"XXX",null,null,null,null,null,null,null,null,null,null,null,null,null,null,null,null,null,null,null,null,null,null,null,null,null,null,null,null,null,null,null,"",""]
[null,null,null,null,null,null,null,null,null,null,null,null,null,null,null,null,20211228,"08:00:00",null,"XXX",null,null,null,null,null,null,null,null,null,null,null,null,null,null,null,null,null,null,null,null,null,null,null,null,null,null,null,null,null,null,null,"",""]
[null,null,null,null,null,null,null,null,null,null,null,null,null,null,null,null,20211228,"09:00:00",null,"XXX",null,null,null,null,null,null,null,null,null,null,null,null,null,null,null,null,null,null,null,null,null,null,null,null,null,null,null,null,null,null,null,"",""]
[null,null,null,null,null,null,null,null,null,null,null,null,null,null,null,null,20211228,"10:00:00",null,"XXX",null,null,null,null,null,null,null,null,null,null,null,null,null,null,null,null,null,null,null,null,null,null,null,null,null,null,null,null,null,null,null,"",""]
[null,null,null,null,null,null,null,null,null,null,null,null,null,null,null,null,20211228,"11:00:00",null,"XXX",null,null,null,null,null,null,null,null,null,null,null,null,null,null,null,null,null,null,null,null,null,null,null,null,null,null,null,null,null,null,null,"",""]
[null,null,null,null,null,null,null,null,null,null,null,null,null,null,null,null,20211228,"12:00:00",null,"XXX",null,null,null,null,null,null,null,null,null,null,null,null,null,null,null,null,null,null,null,null,null,null,null,null,null,null,null,null,null,null,null,"",""]
[null,null,null,null,null,null,null,null,null,null,null,null,null,null,null,null,20211228,"13:00:00",null,"XXX",null,null,null,null,null,null,null,null,null,null,null,null,null,null,null,null,null,null,null,null,null,null,null,null,null,null,null,null,null,null,null,"",""]
[null,null,null,null,null,null,null,null,null,null,null,null,null,null,null,null,20211228,"14:00:00",null,"XXX",null,null,null,null,null,null,null,null,null,null,null,null,null,null,null,null,null,null,null,null,null,null,null,null,null,null,null,null,null,null,null,"",""]
[null,null,null,null,null,null,null,null,null,null,null,null,null,null,null,null,20211228,"15:00:00",null,"XXX",null,null,null,null,null,null,null,null,null,null,null,null,null,null,null,null,null,null,null,null,null,null,null,null,null,null,null,null,null,null,null,"",""]
[null,null,null,null,null,null,null,null,null,null,null,null,null,null,null,null,20211228,"16:00:00",null,"XXX",null,null,null,null,null,null,null,null,null,null,null,null,null,null,null,null,null,null,null,null,null,null,null,null,null,null,null,null,null,null,null,"",""]
[null,null,null,null,null,null,null,null,null,null,null,null,null,null,null,null,20211228,"17:00:00",null,"XXX",null,null,null,null,null,null,null,null,null,null,null,null,null,null,null,null,null,null,null,null,null,null,null,null,null,null,null,null,null,null,null,"",""]
[null,null,null,null,null,null,null,null,null,null,null,null,null,null,null,null,20211228,"18:00:00",null,"XXX",null,null,null,null,null,null,null,null,null,null,null,null,null,null,null,null,null,null,null,null,null,null,null,null,null,null,null,null,null,null,null,"",""]
[null,null,null,null,null,null,null,null,null,null,null,null,null,null,null,null,20211228,"19:00:00",null,"XXX",null,null,null,null,null,null,null,null,null,null,null,null,null,null,null,null,null,null,null,null,null,null,null,null,null,null,null,null,null,null,null,"",""]
[null,null,null,null,null,null,null,null,null,null,null,null,null,null,null,null,20211228,"20:00:00",null,"XXX",null,null,null,null,null,null,null,null,null,null,null,null,null,null,null,null,null,null,null,null,null,null,null,null,null,null,null,null,null,null,null,"",""]
[null,null,null,null,null,null,null,null,null,null,null,null,null,null,null,null,20211228,"21:00:00",null,"XXX",null,null,null,null,null,null,null,null,null,null,null,null,null,null,null,null,null,null,null,null,null,null,null,null,null,null,null,null,null,null,null,"",""]
[null,null,null,null,null,null,null,null,null,null,null,null,null,null,null,null,20211228,"22:00:00",null,"XXX",null,null,null,null,null,null,null,null,null,null,null,null,null,null,null,null,null,null,null,null,null,null,null,null,null,null,null,null,null,null,null,"",""]
[null,null,null,null,null,null,null,null,null,null,null,null,null,null,null,null,20211228,"23:00:00",null,"XXX",null,null,null,null,null,null,null,null,null,null,null,null,null,null,null,null,null,null,null,null,null,null,null,null,null,null,null,null,null,null,null,"",""]
[null,null,null,null,null,null,null,null,null,null,null,null,null,null,null,null,20211229,"00:00:00",null,"XXX",null,null,null,null,null,null,null,null,null,null,null,null,null,null,null,null,null,null,null,null,null,null,null,null,null,null,null,null,null,null,null,"",""]
[null,null,null,null,null,null,null,null,null,null,null,null,null,null,null,null,20211229,"01:00:00",null,"XXX",null,null,null,null,null,null,null,null,null,null,null,null,null,null,null,null,null,null,null,null,null,null,null,null,null,null,null,null,null,null,null,"",""]
[null,null,null,null,null,null,null,null,null,null,null,null,null,null,null,null,20211229,"02:00:00",null,"XXX",null,null,null,null,null,null,null,null,null,null,null,null,null,null,null,null,null,null,null,null,null,null,null,null,null,null,null,null,null,null,null,"",""]
[null,null,null,null,null,null,null,null,null,null,null,null,null,null,null,null,20211229,"03:00:00",null,"XXX",null,null,null,null,null,null,null,null,null,null,null,null,null,null,null,null,null,null,null,null,null,null,null,null,null,null,null,null,null,null,null,"",""]
[null,null,null,null,null,null,null,null,null,null,null,null,null,null,null,null,20211229,"04:00:00",null,"XXX",null,null,null,null,null,null,null,null,null,null,null,null,null,null,null,null,null,null,null,null,null,null,null,null,null,null,null,null,null,null,null,"",""]
[null,null,null,null,null,null,null,null,null,null,null,null,null,null,null,null,20211229,"05:00:00",null,"XXX",null,null,null,null,null,null,null,null,null,null,null,null,null,null,null,null,null,null,null,null,null,null,null,null,null,null,null,null,null,null,null,"",""]
[null,null,null,null,null,null,null,null,null,null,null,null,null,null,null,null,20211229,"06:00:00",null,"XXX",null,null,null,null,null,null,null,null,null,null,null,null,null,null,null,null,null,null,null,null,null,null,null,null,null,null,null,null,null,null,null,"",""]
[null,null,null,null,null,null,null,null,null,null,null,null,null,null,null,null,20211229,"07:00:00",null,"XXX",null,null,null,null,null,null,null,null,null,null,null,null,null,null,null,null,null,null,null,null,null,null,null,null,null,null,null,null,null,null,null,"",""]
[null,null,null,null,null,null,null,null,null,null,null,null,null,null,null,null,20211229,"08:00:00",null,"XXX",null,null,null,null,null,null,null,null,null,null,null,null,null,null,null,null,null,null,null,null,null,null,null,null,null,null,null,null,null,null,null,"",""]
[null,null,null,null,null,null,null,null,null,null,null,null,null,null,null,null,20211229,"09:00:00",null,"XXX",null,null,null,null,null,null,null,null,null,null,null,null,null,null,null,null,null,null,null,null,null,null,null,null,null,null,null,null,null,null,null,"",""]
[null,null,null,null,null,null,null,null,null,null,null,null,null,null,null,null,20211229,"10:00:00",null,"XXX",null,null,null,null,null,null,null,null,null,null,null,null,null,null,null,null,null,null,null,null,null,null,null,null,null,null,null,null,null,null,null,"",""]
[null,null,null,null,null,null,null,null,null,null,null,null,null,null,null,null,20211229,"11:00:00",null,"XXX",null,null,null,null,null,null,null,null,null,null,null,null,null,null,null,null,null,null,null,null,null,null,null,null,null,null,null,null,null,null,null,"",""]
[null,null,null,null,null,null,null,null,null,null,null,null,null,null,null,null,20211229,"12:00:00",null,"XXX",null,null,null,null,null,null,null,null,null,null,null,null,null,null,null,null,null,null,null,null,null,null,null,null,null,null,null,null,null,null,null,"",""]
[null,null,null,null,null,null,null,null,null,null,null,null,null,null,null,null,20211229,"13:00:00",null,"XXX",null,null,null,null,null,null,null,null,null,null,null,null,null,null,null,null,null,null,null,null,null,null,null,null,null,null,null,null,null,null,null,"",""]
[null,null,null,null,null,null,null,null,null,null,null,null,null,null,null,null,20211229,"14:00:00",null,"XXX",null,null,null,null,null,null,null,null,null,null,null,null,null,null,null,null,null,null,null,null,null,null,null,null,null,null,null,null,null,null,null,"",""]
[null,null,null,null,null,null,null,null,null,null,null,null,null,null,null,null,20211229,"15:00:00",null,"XXX",null,null,null,null,null,null,null,null,null,null,null,null,null,null,null,null,null,null,null,null,null,null,null,null,null,null,null,null,null,null,null,"",""]
[null,null,null,null,null,null,null,null,null,null,null,null,null,null,null,null,20211229,"16:00:00",null,"XXX",null,null,null,null,null,null,null,null,null,null,null,null,null,null,null,null,null,null,null,null,null,null,null,null,null,null,null,null,null,null,null,"",""]
[null,null,null,null,null,null,null,null,null,null,null,null,null,null,null,null,20211229,"17:00:00",null,"XXX",null,null,null,null,null,null,null,null,null,null,null,null,null,null,null,null,null,null,null,null,null,null,null,null,null,null,null,null,null,null,null,"",""]
[null,null,null,null,null,null,null,null,null,null,null,null,null,null,null,null,20211229,"18:00:00",null,"XXX",null,null,null,null,null,null,null,null,null,null,null,null,null,null,null,null,null,null,null,null,null,null,null,null,null,null,null,null,null,null,null,"",""]
[null,null,null,null,null,null,null,null,null,null,null,null,null,null,null,null,20211229,"19:00:00",null,"XXX",null,null,null,null,null,null,null,null,null,null,null,null,null,null,null,null,null,null,null,null,null,null,null,null,null,null,null,null,null,null,null,"",""]
[null,null,null,null,null,null,null,null,null,null,null,null,null,null,null,null,20211229,"20:00:00",null,"XXX",null,null,null,null,null,null,null,null,null,null,null,null,null,null,null,null,null,null,null,null,null,null,null,null,null,null,null,null,null,null,null,"",""]
[null,null,null,null,null,null,null,null,null,null,null,null,null,null,null,null,20211229,"21:00:00",null,"XXX",null,null,null,null,null,null,null,null,null,null,null,null,null,null,null,null,null,null,null,null,null,null,null,null,null,null,null,null,null,null,null,"",""]
[null,null,null,null,null,null,null,null,null,null,null,null,null,null,null,null,20211229,"22:00:00",null,"XXX",null,null,null,null,null,null,null,null,null,null,null,null,null,null,null,null,null,null,null,null,null,null,null,null,null,null,null,null,null,null,null,"",""]
[null,null,null,null,null,null,null,null,null,null,null,null,null,null,null,null,20211229,"23:00:00",null,"XXX",null,null,null,null,null,null,null,null,null,null,null,null,null,null,null,null,null,null,null,null,null,null,null,null,null,null,null,null,null,null,null,"",""]
[null,null,null,null,null,null,null,null,null,null,null,null,null,null,null,null,20211230,"00:00:00",null,"XXX",null,null,null,null,null,null,null,null,null,null,null,null,null,null,null,null,null,null,null,null,null,null,null,null,null,null,null,null,null,null,null,"",""]
[null,null,null,null,null,null,null,null,null,null,null,null,null,null,null,null,20211230,"01:00:00",null,"XXX",null,null,null,null,null,null,null,null,null,null,null,null,null,null,null,null,null,null,null,null,null,null,null,null,null,null,null,null,null,null,null,"",""]
[null,null,null,null,null,null,null,null,null,null,null,null,null,null,null,null,20211230,"02:00:00",null,"XXX",null,null,null,null,null,null,null,null,null,null,null,null,null,null,null,null,null,null,null,null,null,null,null,null,null,null,null,null,null,null,null,"",{"$f":"IF(AO17476=\"\",\"\",IF(AO17476=AO17475,IF(AP17476=AP17475,\"\",\"X\"),\"X\"))","v":""}]
[null,null,null,null,null,null,null,null,null,null,null,null,null,null,null,null,20211230,"03:00:00",null,"XXX",null,null,null,null,null,null,null,null,null,null,null,null,null,null,null,null,null,null,null,null,null,null,null,null,null,null,null,null,null,null,null,"",""]
[null,null,null,null,null,null,null,null,null,null,null,null,null,null,null,null,20211230,"04:00:00",null,"XXX",null,null,null,null,null,null,null,null,null,null,null,null,null,null,null,null,null,null,null,null,null,null,null,null,null,null,null,null,null,null,null,"",""]
[null,null,null,null,null,null,null,null,null,null,null,null,null,null,null,null,20211230,"05:00:00",null,"XXX",null,null,null,null,null,null,null,null,null,null,null,null,null,null,null,null,null,null,null,null,null,null,null,null,null,null,null,null,null,null,null,"",""]
[null,null,null,null,null,null,null,null,null,null,null,null,null,null,null,null,20211230,"06:00:00",null,"XXX",null,null,null,null,null,null,null,null,null,null,null,null,null,null,null,null,null,null,null,null,null,null,null,null,null,null,null,null,null,null,null,"",""]
[null,null,null,null,null,null,null,null,null,null,null,null,null,null,null,null,20211230,"07:00:00",null,"XXX",null,null,null,null,null,null,null,null,null,null,null,null,null,null,null,null,null,null,null,null,null,null,null,null,null,null,null,null,null,null,null,"",""]
[null,null,null,null,null,null,null,null,null,null,null,null,null,null,null,null,20211230,"08:00:00",null,"XXX",null,null,null,null,null,null,null,null,null,null,null,null,null,null,null,null,null,null,null,null,null,null,null,null,null,null,null,null,null,null,null,"",""]
[null,null,null,null,null,null,null,null,null,null,null,null,null,null,null,null,20211230,"09:00:00",null,"XXX",null,null,null,null,null,null,null,null,null,null,null,null,null,null,null,null,null,null,null,null,null,null,null,null,null,null,null,null,null,null,null,"",""]
[null,null,null,null,null,null,null,null,null,null,null,null,null,null,null,null,20211230,"10:00:00",null,"XXX",null,null,null,null,null,null,null,null,null,null,null,null,null,null,null,null,null,null,null,null,null,null,null,null,null,null,null,null,null,null,null,"",""]
[null,null,null,null,null,null,null,null,null,null,null,null,null,null,null,null,20211230,"11:00:00",null,"XXX",null,null,null,null,null,null,null,null,null,null,null,null,null,null,null,null,null,null,null,null,null,null,null,null,null,null,null,null,null,null,null,"",""]
[null,null,null,null,null,null,null,null,null,null,null,null,null,null,null,null,20211230,"12:00:00",null,"XXX",null,null,null,null,null,null,null,null,null,null,null,null,null,null,null,null,null,null,null,null,null,null,null,null,null,null,null,null,null,null,null,"",""]
[null,null,null,null,null,null,null,null,null,null,null,null,null,null,null,null,20211230,"13:00:00",null,"XXX",null,null,null,null,null,null,null,null,null,null,null,null,null,null,null,null,null,null,null,null,null,null,null,null,null,null,null,null,null,null,null,"",""]
[null,null,null,null,null,null,null,null,null,null,null,null,null,null,null,null,20211230,"14:00:00",null,"XXX",null,null,null,null,null,null,null,null,null,null,null,null,null,null,null,null,null,null,null,null,null,null,null,null,null,null,null,null,null,null,null,"",""]
[null,null,null,null,null,null,null,null,null,null,null,null,null,null,null,null,20211230,"15:00:00",null,"XXX",null,null,null,null,null,null,null,null,null,null,null,null,null,null,null,null,null,null,null,null,null,null,null,null,null,null,null,null,null,null,null,"",""]
[null,null,null,null,null,null,null,null,null,null,null,null,null,null,null,null,20211230,"16:00:00",null,"XXX",null,null,null,null,null,null,null,null,null,null,null,null,null,null,null,null,null,null,null,null,null,null,null,null,null,null,null,null,null,null,null,"",""]
[null,null,null,null,null,null,null,null,null,null,null,null,null,null,null,null,20211230,"17:00:00",null,"XXX",null,null,null,null,null,null,null,null,null,null,null,null,null,null,null,null,null,null,null,null,null,null,null,null,null,null,null,null,null,null,null,"",""]
[null,null,null,null,null,null,null,null,null,null,null,null,null,null,null,null,20211230,"18:00:00",null,"XXX",null,null,null,null,null,null,null,null,null,null,null,null,null,null,null,null,null,null,null,null,null,null,null,null,null,null,null,null,null,null,null,"",""]
[null,null,null,null,null,null,null,null,null,null,null,null,null,null,null,null,20211230,"19:00:00",null,"XXX",null,null,null,null,null,null,null,null,null,null,null,null,null,null,null,null,null,null,null,null,null,null,null,null,null,null,null,null,null,null,null,"",""]
[null,null,null,null,null,null,null,null,null,null,null,null,null,null,null,null,20211230,"20:00:00",null,"XXX",null,null,null,null,null,null,null,null,null,null,null,null,null,null,null,null,null,null,null,null,null,null,null,null,null,null,null,null,null,null,null,"",""]
[null,null,null,null,null,null,null,null,null,null,null,null,null,null,null,null,20211230,"21:00:00",null,"XXX",null,null,null,null,null,null,null,null,null,null,null,null,null,null,null,null,null,null,null,null,null,null,null,null,null,null,null,null,null,null,null,"",""]
[null,null,null,null,null,null,null,null,null,null,null,null,null,null,null,null,20211230,"22:00:00",null,"XXX",null,null,null,null,null,null,null,null,null,null,null,null,null,null,null,null,null,null,null,null,null,null,null,null,null,null,null,null,null,null,null,"",""]
[null,null,null,null,null,null,null,null,null,null,null,null,null,null,null,null,20211230,"23:00:00",null,"XXX",null,null,null,null,null,null,null,null,null,null,null,null,null,null,null,null,null,null,null,null,null,null,null,null,null,null,null,null,null,null,null,"",""]
[null,null,null,null,null,null,null,null,null,null,null,null,null,null,null,null,20211231,"00:00:00",null,"XXX",null,null,null,null,null,null,null,null,null,null,null,null,null,null,null,null,null,null,null,null,null,null,null,null,null,null,null,null,null,null,null,"",""]
[null,null,null,null,null,null,null,null,null,null,null,null,null,null,null,null,20211231,"01:00:00",null,"XXX",null,null,null,null,null,null,null,null,null,null,null,null,null,null,null,null,null,null,null,null,null,null,null,null,null,null,null,null,null,null,null,"",""]
[null,null,null,null,null,null,null,null,null,null,null,null,null,null,null,null,20211231,"02:00:00",null,"XXX",null,null,null,null,null,null,null,null,null,null,null,null,null,null,null,null,null,null,null,null,null,null,null,null,null,null,null,null,null,null,null,"",""]
[null,null,null,null,null,null,null,null,null,null,null,null,null,null,null,null,20211231,"03:00:00",null,"XXX",null,null,null,null,null,null,null,null,null,null,null,null,null,null,null,null,null,null,null,null,null,null,null,null,null,null,null,null,null,null,null,"",""]
[null,null,null,null,null,null,null,null,null,null,null,null,null,null,null,null,20211231,"04:00:00",null,"XXX",null,null,null,null,null,null,null,null,null,null,null,null,null,null,null,null,null,null,null,null,null,null,null,null,null,null,null,null,null,null,null,"",""]
[null,null,null,null,null,null,null,null,null,null,null,null,null,null,null,null,20211231,"05:00:00",null,"XXX",null,null,null,null,null,null,null,null,null,null,null,null,null,null,null,null,null,null,null,null,null,null,null,null,null,null,null,null,null,null,null,"",""]
[null,null,null,null,null,null,null,null,null,null,null,null,null,null,null,null,20211231,"06:00:00",null,"XXX",null,null,null,null,null,null,null,null,null,null,null,null,null,null,null,null,null,null,null,null,null,null,null,null,null,null,null,null,null,null,null,"",""]
[null,null,null,null,null,null,null,null,null,null,null,null,null,null,null,null,20211231,"07:00:00",null,"XXX",null,null,null,null,null,null,null,null,null,null,null,null,null,null,null,null,null,null,null,null,null,null,null,null,null,null,null,null,null,null,null,"",""]
[null,null,null,null,null,null,null,null,null,null,null,null,null,null,null,null,20211231,"08:00:00",null,"XXX",null,null,null,null,null,null,null,null,null,null,null,null,null,null,null,null,null,null,null,null,null,null,null,null,null,null,null,null,null,null,null,"",""]
[null,null,null,null,null,null,null,null,null,null,null,null,null,null,null,null,20211231,"09:00:00",null,"XXX",null,null,null,null,null,null,null,null,null,null,null,null,null,null,null,null,null,null,null,null,null,null,null,null,null,null,null,null,null,null,null,"",""]
[null,null,null,null,null,null,null,null,null,null,null,null,null,null,null,null,20211231,"10:00:00",null,"XXX",null,null,null,null,null,null,null,null,null,null,null,null,null,null,null,null,null,null,null,null,null,null,null,null,null,null,null,null,null,null,null,"",""]
[null,null,null,null,null,null,null,null,null,null,null,null,null,null,null,null,20211231,"11:00:00",null,"XXX",null,null,null,null,null,null,null,null,null,null,null,null,null,null,null,null,null,null,null,null,null,null,null,null,null,null,null,null,null,null,null,"",""]
[null,null,null,null,null,null,null,null,null,null,null,null,null,null,null,null,20211231,"12:00:00",null,"XXX",null,null,null,null,null,null,null,null,null,null,null,null,null,null,null,null,null,null,null,null,null,null,null,null,null,null,null,null,null,null,null,"",""]
[null,null,null,null,null,null,null,null,null,null,null,null,null,null,null,null,20211231,"13:00:00",null,"XXX",null,null,null,null,null,null,null,null,null,null,null,null,null,null,null,null,null,null,null,null,null,null,null,null,null,null,null,null,null,null,null,"",""]
[null,null,null,null,null,null,null,null,null,null,null,null,null,null,null,null,20211231,"14:00:00",null,"XXX",null,null,null,null,null,null,null,null,null,null,null,null,null,null,null,null,null,null,null,null,null,null,null,null,null,null,null,null,null,null,null,"",""]
[null,null,null,null,null,null,null,null,null,null,null,null,null,null,null,null,20211231,"15:00:00",null,"XXX",null,null,null,null,null,null,null,null,null,null,null,null,null,null,null,null,null,null,null,null,null,null,null,null,null,null,null,null,null,null,null,"",""]
[null,null,null,null,null,null,null,null,null,null,null,null,null,null,null,null,20211231,"16:00:00",null,"XXX",null,null,null,null,null,null,null,null,null,null,null,null,null,null,null,null,null,null,null,null,null,null,null,null,null,null,null,null,null,null,null,"",""]
[null,null,null,null,null,null,null,null,null,null,null,null,null,null,null,null,20211231,"17:00:00",null,"XXX",null,null,null,null,null,null,null,null,null,null,null,null,null,null,null,null,null,null,null,null,null,null,null,null,null,null,null,null,null,null,null,"",""]
[null,null,null,null,null,null,null,null,null,null,null,null,null,null,null,null,20211231,"18:00:00",null,"XXX",null,null,null,null,null,null,null,null,null,null,null,null,null,null,null,null,null,null,null,null,null,null,null,null,null,null,null,null,null,null,null,"",""]
[null,null,null,null,null,null,null,null,null,null,null,null,null,null,null,null,20211231,"19:00:00",null,"XXX",null,null,null,null,null,null,null,null,null,null,null,null,null,null,null,null,null,null,null,null,null,null,null,null,null,null,null,null,null,null,null,"",""]
[null,null,null,null,null,null,null,null,null,null,null,null,null,null,null,null,20211231,"20:00:00",null,"XXX",null,null,null,null,null,null,null,null,null,null,null,null,null,null,null,null,null,null,null,null,null,null,null,null,null,null,null,null,null,null,null,"",""]
[null,null,null,null,null,null,null,null,null,null,null,null,null,null,null,null,20211231,"21:00:00",null,"XXX",null,null,null,null,null,null,null,null,null,null,null,null,null,null,null,null,null,null,null,null,null,null,null,null,null,null,null,null,null,null,null,"",""]
[null,null,null,null,null,null,null,null,null,null,null,null,null,null,null,null,20211231,"22:00:00",null,"XXX",null,null,null,null,null,null,null,null,null,null,null,null,null,null,null,null,null,null,null,null,null,null,null,null,null,null,null,null,null,null,null,"",""]
[null,null,null,null,null,null,null,null,null,null,null,null,null,null,null,null,20211231,"23:00:00",null,"XXX",null,null,null,null,null,null,null,null,null,null,null,null,null,null,null,null,null,null,null,null,null,null,null,null,null,null,null,null,null,null,null,"",""]